Workbook

Sheet 1.x PC
A8: ENTRADAS | D8: SAÍDAS | M8: TRANSFERÊNCIAS
A9: =CONCATENATE('2.1 PC Rec.'!A5," - ",'2.1 PC Rec.'!B5) -> 1.01 - Receita de vendas | B9: =CONCATENATE('2.1 PC Rec.'!D5," - ",'2.1 PC Rec.'!E5) -> 1.02 - Receitas financeiras | C9: =CONCATENATE('2.1 PC Rec.'!G5," - ",'2.1 PC Rec.'!H5) -> 1.03 - Outras entradas | D9: =CONCATENATE('2.2 PC. Desp.'!A5," - ",'2.2 PC. Desp.'!B5) -> 2.01 - Despesa Operacional | E9: =CONCATENATE('2.2 PC. Desp.'!D5," - ",'2.2 PC. Desp.'!E5) -> 2.02 - Despesa com pessoal | F9: =CONCATENATE('2.2 PC. Desp.'!G5," - ",'2.2 PC. Desp.'!H5) -> 2.03 - Despesas comerciais | G9: =CONCATENATE('2.2 PC. Desp.'!J5," - ",'2.2 PC. Desp.'!K5) -> 2.04 - Despesas administrativas | H9: =CONCATENATE('2.2 PC. Desp.'!M5," - ",'2.2 PC. Desp.'!N5) -> 2.05 - Despesas financeiras | I9: =CONCATENATE('2.2 PC. Desp.'!P5," - ",'2.2 PC. Desp.'!Q5) -> 2.06 - Impostos | J9: =CONCATENATE('2.2 PC. Desp.'!S5," - ",'2.2 PC. Desp.'!T5) -> 2.07 - Investimentos | K9: =CONCATENATE('2.2 PC. Desp.'!V5," - ",'2.2 PC. Desp.'!W5) -> 2.08 - Retirada de sócios | L9: =CONCATENATE('2.2 PC. Desp.'!Y5," - ",'2.2 PC. Desp.'!Z5) -> 2.09 - Outras saídas | M9: =CONCATENATE('2.3 PC. Transf.'!A5," - ",'2.3 PC. Transf.'!B5) -> 3.01 - TRANSFERÊNCIAS (CRÉDITO) | N9: =CONCATENATE('2.3 PC. Transf.'!D5," - ",'2.3 PC. Transf.'!E5) -> 3.02 - TRANSFERÊNCIAS (DÉBITO)
A10: =CONCATENATE('2.1 PC Rec.'!A6," - ",'2.1 PC Rec.'!B6) -> 1.01.01 - CEPA | B10: =CONCATENATE('2.1 PC Rec.'!D6," - ",'2.1 PC Rec.'!E6) -> 1.02.01 - Rendimentos | C10: =CONCATENATE('2.1 PC Rec.'!G6," - ",'2.1 PC Rec.'!H6) -> 1.03.01 - Receita não identificada | D10: =CONCATENATE('2.2 PC. Desp.'!A6," - ",'2.2 PC. Desp.'!B6) -> 2.01.01 - Materiais de Consumo | E10: =CONCATENATE('2.2 PC. Desp.'!D6," - ",'2.2 PC. Desp.'!E6) -> 2.02.01 - Pró labore | F10: =CONCATENATE('2.2 PC. Desp.'!G6," - ",'2.2 PC. Desp.'!H6) -> 2.03.01 - Comissões | G10: =CONCATENATE('2.2 PC. Desp.'!J6," - ",'2.2 PC. Desp.'!K6) -> 2.04.01 - Aluguel | H10: =CONCATENATE('2.2 PC. Desp.'!M6," - ",'2.2 PC. Desp.'!N6) -> 2.05.01 - Despesas bancárias | I10: =CONCATENATE('2.2 PC. Desp.'!P6," - ",'2.2 PC. Desp.'!Q6) -> 2.06.01 - DAS | J10: =CONCATENATE('2.2 PC. Desp.'!S6," - ",'2.2 PC. Desp.'!T6) -> 2.07.01 - TI | K10: =CONCATENATE('2.2 PC. Desp.'!V6," - ",'2.2 PC. Desp.'!W6) -> 2.08.01 - Distribuição de Lucros | L10: =CONCATENATE('2.2 PC. Desp.'!Y6," - ",'2.2 PC. Desp.'!Z6) -> 2.09.01 - Pagamento indevido | M10: =CONCATENATE('2.3 PC. Transf.'!A6," - ",'2.3 PC. Transf.'!B6) -> 3.01.01 - | N10: =CONCATENATE('2.3 PC. Transf.'!D6," - ",'2.3 PC. Transf.'!E6) -> 3.02.01 -
A11: =CONCATENATE('2.1 PC Rec.'!A7," - ",'2.1 PC Rec.'!B7) -> 1.01.02 - GAC | B11: =CONCATENATE('2.1 PC Rec.'!D7," - ",'2.1 PC Rec.'!E7) -> 1.02.02 - Estorno | C11: =CONCATENATE('2.1 PC Rec.'!G7," - ",'2.1 PC Rec.'!H7) -> 1.03.02 - Estorno de pagamento | D11: =CONCATENATE('2.2 PC. Desp.'!A7," - ",'2.2 PC. Desp.'!B7) -> 2.01.02 - Fretes e Carretos | E11: =CONCATENATE('2.2 PC. Desp.'!D7," - ",'2.2 PC. Desp.'!E7) -> 2.02.02 - Salário mensal | F11: =CONCATENATE('2.2 PC. Desp.'!G7," - ",'2.2 PC. Desp.'!H7) -> 2.03.02 - Institucional | G11: =CONCATENATE('2.2 PC. Desp.'!J7," - ",'2.2 PC. Desp.'!K7) -> 2.04.02 - Materiais de escritório | H11: =CONCATENATE('2.2 PC. Desp.'!M7," - ",'2.2 PC. Desp.'!N7) -> 2.05.02 - Juros e multas | I11: =CONCATENATE('2.2 PC. Desp.'!P7," - ",'2.2 PC. Desp.'!Q7) -> 2.06.02 - Pis / Cofins | J11: =CONCATENATE('2.2 PC. Desp.'!S7," - ",'2.2 PC. Desp.'!T7) -> 2.07.02 - | K11: =CONCATENATE('2.2 PC. Desp.'!V7," - ",'2.2 PC. Desp.'!W7) -> 2.08.02 - Mensal | L11: =CONCATENATE('2.2 PC. Desp.'!Y7," - ",'2.2 PC. Desp.'!Z7) -> 2.09.02 - Devolução de estorno | M11: =CONCATENATE('2.3 PC. Transf.'!A7," - ",'2.3 PC. Transf.'!B7) -> 3.01.02 - | N11: =CONCATENATE('2.3 PC. Transf.'!D7," - ",'2.3 PC. Transf.'!E7) -> 3.02.02 -
A12: =CONCATENATE('2.1 PC Rec.'!A8," - ",'2.1 PC Rec.'!B8) -> 1.01.03 - RE | B12: =CONCATENATE('2.1 PC Rec.'!D8," - ",'2.1 PC Rec.'!E8) -> 1.02.03 - | C12: =CONCATENATE('2.1 PC Rec.'!G8," - ",'2.1 PC Rec.'!H8) -> 1.03.03 - Aporte de capital | D12: =CONCATENATE('2.2 PC. Desp.'!A8," - ",'2.2 PC. Desp.'!B8) -> 2.01.03 - Serviços de Terceiros | E12: =CONCATENATE('2.2 PC. Desp.'!D8," - ",'2.2 PC. Desp.'!E8) -> 2.02.03 - 13º salário | F12: =CONCATENATE('2.2 PC. Desp.'!G8," - ",'2.2 PC. Desp.'!H8) -> 2.03.03 - Reuniões / Visitas | G12: =CONCATENATE('2.2 PC. Desp.'!J8," - ",'2.2 PC. Desp.'!K8) -> 2.04.03 - Contas de Consumo | H12: =CONCATENATE('2.2 PC. Desp.'!M8," - ",'2.2 PC. Desp.'!N8) -> 2.05.03 - | I12: =CONCATENATE('2.2 PC. Desp.'!P8," - ",'2.2 PC. Desp.'!Q8) -> 2.06.03 - IR/CS | J12: =CONCATENATE('2.2 PC. Desp.'!S8," - ",'2.2 PC. Desp.'!T8) -> 2.07.03 - | K12: =CONCATENATE('2.2 PC. Desp.'!V8," - ",'2.2 PC. Desp.'!W8) -> 2.08.03 - | L12: =CONCATENATE('2.2 PC. Desp.'!Y8," - ",'2.2 PC. Desp.'!Z8) -> 2.09.03 - Dev. de aporte de capital | M12: =CONCATENATE('2.3 PC. Transf.'!A8," - ",'2.3 PC. Transf.'!B8) -> 3.01.03 - | N12: =CONCATENATE('2.3 PC. Transf.'!D8," - ",'2.3 PC. Transf.'!E8) -> 3.02.03 -
A13: =CONCATENATE('2.1 PC Rec.'!A9," - ",'2.1 PC Rec.'!B9) -> 1.01.04 - ECT | B13: =CONCATENATE('2.1 PC Rec.'!D9," - ",'2.1 PC Rec.'!E9) -> 1.02.04 - | C13: =CONCATENATE('2.1 PC Rec.'!G9," - ",'2.1 PC Rec.'!H9) -> 1.03.04 - Empréstimo contratato | D13: =CONCATENATE('2.2 PC. Desp.'!A9," - ",'2.2 PC. Desp.'!B9) -> 2.01.04 - | E13: =CONCATENATE('2.2 PC. Desp.'!D9," - ",'2.2 PC. Desp.'!E9) -> 2.02.04 - Horas extras | F13: =CONCATENATE('2.2 PC. Desp.'!G9," - ",'2.2 PC. Desp.'!H9) -> 2.03.04 - Propostas | G13: =CONCATENATE('2.2 PC. Desp.'!J9," - ",'2.2 PC. Desp.'!K9) -> 2.04.04 - Assessoria Jurídica / Despachante | H13: =CONCATENATE('2.2 PC. Desp.'!M9," - ",'2.2 PC. Desp.'!N9) -> 2.05.04 - | I13: =CONCATENATE('2.2 PC. Desp.'!P9," - ",'2.2 PC. Desp.'!Q9) -> 2.06.04 - Imp. Retidos Fornecedores | J13: =CONCATENATE('2.2 PC. Desp.'!S9," - ",'2.2 PC. Desp.'!T9) -> 2.07.04 - | K13: =CONCATENATE('2.2 PC. Desp.'!V9," - ",'2.2 PC. Desp.'!W9) -> 2.08.04 - | L13: =CONCATENATE('2.2 PC. Desp.'!Y9," - ",'2.2 PC. Desp.'!Z9) -> 2.09.04 - Pagamento empréstimos | M13: =CONCATENATE('2.3 PC. Transf.'!A9," - ",'2.3 PC. Transf.'!B9) -> 3.01.04 - | N13: =CONCATENATE('2.3 PC. Transf.'!D9," - ",'2.3 PC. Transf.'!E9) -> 3.02.04 -
A14: =CONCATENATE('2.1 PC Rec.'!A10," - ",'2.1 PC Rec.'!B10) -> 1.01.05 - | B14: =CONCATENATE('2.1 PC Rec.'!D10," - ",'2.1 PC Rec.'!E10) -> 1.02.05 - | C14: =CONCATENATE('2.1 PC Rec.'!G10," - ",'2.1 PC Rec.'!H10) -> 1.03.05 - Reembolso Cliente | D14: =CONCATENATE('2.2 PC. Desp.'!A10," - ",'2.2 PC. Desp.'!B10) -> 2.01.05 - | E14: =CONCATENATE('2.2 PC. Desp.'!D10," - ",'2.2 PC. Desp.'!E10) -> 2.02.05 - Férias | F14: =CONCATENATE('2.2 PC. Desp.'!G10," - ",'2.2 PC. Desp.'!H10) -> 2.03.05 - | G14: =CONCATENATE('2.2 PC. Desp.'!J10," - ",'2.2 PC. Desp.'!K10) -> 2.04.05 - Contabilidade | H14: =CONCATENATE('2.2 PC. Desp.'!M10," - ",'2.2 PC. Desp.'!N10) -> 2.05.05 - | I14: =CONCATENATE('2.2 PC. Desp.'!P10," - ",'2.2 PC. Desp.'!Q10) -> 2.06.05 - | J14: =CONCATENATE('2.2 PC. Desp.'!S10," - ",'2.2 PC. Desp.'!T10) -> 2.07.05 - | K14: =CONCATENATE('2.2 PC. Desp.'!V10," - ",'2.2 PC. Desp.'!W10) -> 2.08.05 - | L14: =CONCATENATE('2.2 PC. Desp.'!Y10," - ",'2.2 PC. Desp.'!Z10) -> 2.09.05 - Transferencia entre contas | M14: =CONCATENATE('2.3 PC. Transf.'!A10," - ",'2.3 PC. Transf.'!B10) -> 3.01.05 - | N14: =CONCATENATE('2.3 PC. Transf.'!D10," - ",'2.3 PC. Transf.'!E10) -> 3.02.05 -
A15: =CONCATENATE('2.1 PC Rec.'!A11," - ",'2.1 PC Rec.'!B11) -> 1.01.06 - | B15: =CONCATENATE('2.1 PC Rec.'!D11," - ",'2.1 PC Rec.'!E11) -> 1.02.06 - | C15: =CONCATENATE('2.1 PC Rec.'!G11," - ",'2.1 PC Rec.'!H11) -> 1.03.06 - Transferencia entre contas | D15: =CONCATENATE('2.2 PC. Desp.'!A11," - ",'2.2 PC. Desp.'!B11) -> 2.01.06 - | E15: =CONCATENATE('2.2 PC. Desp.'!D11," - ",'2.2 PC. Desp.'!E11) -> 2.02.06 - Assistência médica | F15: =CONCATENATE('2.2 PC. Desp.'!G11," - ",'2.2 PC. Desp.'!H11) -> 2.03.06 - | G15: =CONCATENATE('2.2 PC. Desp.'!J11," - ",'2.2 PC. Desp.'!K11) -> 2.04.06 - Seguros | H15: =CONCATENATE('2.2 PC. Desp.'!M11," - ",'2.2 PC. Desp.'!N11) -> 2.05.06 - | I15: =CONCATENATE('2.2 PC. Desp.'!P11," - ",'2.2 PC. Desp.'!Q11) -> 2.06.06 - | J15: =CONCATENATE('2.2 PC. Desp.'!S11," - ",'2.2 PC. Desp.'!T11) -> 2.07.06 - | K15: =CONCATENATE('2.2 PC. Desp.'!V11," - ",'2.2 PC. Desp.'!W11) -> 2.08.06 - | L15: =CONCATENATE('2.2 PC. Desp.'!Y11," - ",'2.2 PC. Desp.'!Z11) -> 2.09.06 - | M15: =CONCATENATE('2.3 PC. Transf.'!A11," - ",'2.3 PC. Transf.'!B11) -> 3.01.06 - | N15: =CONCATENATE('2.3 PC. Transf.'!D11," - ",'2.3 PC. Transf.'!E11) -> 3.02.06 -
A16: =CONCATENATE('2.1 PC Rec.'!A12," - ",'2.1 PC Rec.'!B12) -> 1.01.07 - | B16: =CONCATENATE('2.1 PC Rec.'!D12," - ",'2.1 PC Rec.'!E12) -> 1.02.07 - | C16: =CONCATENATE('2.1 PC Rec.'!G12," - ",'2.1 PC Rec.'!H12) -> 1.03.07 - Crédito Imposto | D16: =CONCATENATE('2.2 PC. Desp.'!A12," - ",'2.2 PC. Desp.'!B12) -> 2.01.07 - | E16: =CONCATENATE('2.2 PC. Desp.'!D12," - ",'2.2 PC. Desp.'!E12) -> 2.02.07 - | F16: =CONCATENATE('2.2 PC. Desp.'!G12," - ",'2.2 PC. Desp.'!H12) -> 2.03.07 - | G16: =CONCATENATE('2.2 PC. Desp.'!J12," - ",'2.2 PC. Desp.'!K12) -> 2.04.07 - Portador | H16: =CONCATENATE('2.2 PC. Desp.'!M12," - ",'2.2 PC. Desp.'!N12) -> 2.05.07 - | I16: =CONCATENATE('2.2 PC. Desp.'!P12," - ",'2.2 PC. Desp.'!Q12) -> 2.06.07 - | J16: =CONCATENATE('2.2 PC. Desp.'!S12," - ",'2.2 PC. Desp.'!T12) -> 2.07.07 - | K16: =CONCATENATE('2.2 PC. Desp.'!V12," - ",'2.2 PC. Desp.'!W12) -> 2.08.07 - | L16: =CONCATENATE('2.2 PC. Desp.'!Y12," - ",'2.2 PC. Desp.'!Z12) -> 2.09.07 - | M16: =CONCATENATE('2.3 PC. Transf.'!A12," - ",'2.3 PC. Transf.'!B12) -> 3.01.07 - | N16: =CONCATENATE('2.3 PC. Transf.'!D12," - ",'2.3 PC. Transf.'!E12) -> 3.02.07 -
A17: =CONCATENATE('2.1 PC Rec.'!A13," - ",'2.1 PC Rec.'!B13) -> 1.01.08 - | B17: =CONCATENATE('2.1 PC Rec.'!D13," - ",'2.1 PC Rec.'!E13) -> 1.02.08 - | C17: =CONCATENATE('2.1 PC Rec.'!G13," - ",'2.1 PC Rec.'!H13) -> 1.03.08 - | D17: =CONCATENATE('2.2 PC. Desp.'!A13," - ",'2.2 PC. Desp.'!B13) -> 2.01.08 - | E17: =CONCATENATE('2.2 PC. Desp.'!D13," - ",'2.2 PC. Desp.'!E13) -> 2.02.08 - | F17: =CONCATENATE('2.2 PC. Desp.'!G13," - ",'2.2 PC. Desp.'!H13) -> 2.03.08 - | G17: =CONCATENATE('2.2 PC. Desp.'!J13," - ",'2.2 PC. Desp.'!K13) -> 2.04.08 - Cartório | H17: =CONCATENATE('2.2 PC. Desp.'!M13," - ",'2.2 PC. Desp.'!N13) -> 2.05.08 - | I17: =CONCATENATE('2.2 PC. Desp.'!P13," - ",'2.2 PC. Desp.'!Q13) -> 2.06.08 - | J17: =CONCATENATE('2.2 PC. Desp.'!S13," - ",'2.2 PC. Desp.'!T13) -> 2.07.08 - | K17: =CONCATENATE('2.2 PC. Desp.'!V13," - ",'2.2 PC. Desp.'!W13) -> 2.08.08 - | L17: =CONCATENATE('2.2 PC. Desp.'!Y13," - ",'2.2 PC. Desp.'!Z13) -> 2.09.08 - | M17: =CONCATENATE('2.3 PC. Transf.'!A13," - ",'2.3 PC. Transf.'!B13) -> 3.01.08 - | N17: =CONCATENATE('2.3 PC. Transf.'!D13," - ",'2.3 PC. Transf.'!E13) -> 3.02.08 -
A18: =CONCATENATE('2.1 PC Rec.'!A14," - ",'2.1 PC Rec.'!B14) -> 1.01.09 - | B18: =CONCATENATE('2.1 PC Rec.'!D14," - ",'2.1 PC Rec.'!E14) -> 1.02.09 - | C18: =CONCATENATE('2.1 PC Rec.'!G14," - ",'2.1 PC Rec.'!H14) -> 1.03.09 - | D18: =CONCATENATE('2.2 PC. Desp.'!A14," - ",'2.2 PC. Desp.'!B14) -> 2.01.09 - | E18: =CONCATENATE('2.2 PC. Desp.'!D14," - ",'2.2 PC. Desp.'!E14) -> 2.02.09 - | F18: =CONCATENATE('2.2 PC. Desp.'!G14," - ",'2.2 PC. Desp.'!H14) -> 2.03.09 - | G18: =CONCATENATE('2.2 PC. Desp.'!J14," - ",'2.2 PC. Desp.'!K14) -> 2.04.09 - Informatica | H18: =CONCATENATE('2.2 PC. Desp.'!M14," - ",'2.2 PC. Desp.'!N14) -> 2.05.09 - | I18: =CONCATENATE('2.2 PC. Desp.'!P14," - ",'2.2 PC. Desp.'!Q14) -> 2.06.09 - | J18: =CONCATENATE('2.2 PC. Desp.'!S14," - ",'2.2 PC. Desp.'!T14) -> 2.07.09 - | K18: =CONCATENATE('2.2 PC. Desp.'!V14," - ",'2.2 PC. Desp.'!W14) -> 2.08.09 - | L18: =CONCATENATE('2.2 PC. Desp.'!Y14," - ",'2.2 PC. Desp.'!Z14) -> 2.09.09 - | M18: =CONCATENATE('2.3 PC. Transf.'!A14," - ",'2.3 PC. Transf.'!B14) -> 3.01.09 - | N18: =CONCATENATE('2.3 PC. Transf.'!D14," - ",'2.3 PC. Transf.'!E14) -> 3.02.09 -
A19: =CONCATENATE('2.1 PC Rec.'!A15," - ",'2.1 PC Rec.'!B15) -> 1.01.10 - | B19: =CONCATENATE('2.1 PC Rec.'!D15," - ",'2.1 PC Rec.'!E15) -> 1.02.10 - | C19: =CONCATENATE('2.1 PC Rec.'!G15," - ",'2.1 PC Rec.'!H15) -> 1.03.10 - | D19: =CONCATENATE('2.2 PC. Desp.'!A15," - ",'2.2 PC. Desp.'!B15) -> 2.01.10 - | E19: =CONCATENATE('2.2 PC. Desp.'!D15," - ",'2.2 PC. Desp.'!E15) -> 2.02.10 - | F19: =CONCATENATE('2.2 PC. Desp.'!G15," - ",'2.2 PC. Desp.'!H15) -> 2.03.10 - | G19: =CONCATENATE('2.2 PC. Desp.'!J15," - ",'2.2 PC. Desp.'!K15) -> 2.04.10 - Taxas | H19: =CONCATENATE('2.2 PC. Desp.'!M15," - ",'2.2 PC. Desp.'!N15) -> 2.05.10 - | I19: =CONCATENATE('2.2 PC. Desp.'!P15," - ",'2.2 PC. Desp.'!Q15) -> 2.06.10 - | J19: =CONCATENATE('2.2 PC. Desp.'!S15," - ",'2.2 PC. Desp.'!T15) -> 2.07.10 - | K19: =CONCATENATE('2.2 PC. Desp.'!V15," - ",'2.2 PC. Desp.'!W15) -> 2.08.10 - | L19: =CONCATENATE('2.2 PC. Desp.'!Y15," - ",'2.2 PC. Desp.'!Z15) -> 2.09.10 - | M19: =CONCATENATE('2.3 PC. Transf.'!A15," - ",'2.3 PC. Transf.'!B15) -> 3.01.10 - | N19: =CONCATENATE('2.3 PC. Transf.'!D15," - ",'2.3 PC. Transf.'!E15) -> 3.02.10 -
A20: =CONCATENATE('2.1 PC Rec.'!A16," - ",'2.1 PC Rec.'!B16) -> 1.01.11 - | B20: =CONCATENATE('2.1 PC Rec.'!D16," - ",'2.1 PC Rec.'!E16) -> 1.02.11 - | C20: =CONCATENATE('2.1 PC Rec.'!G16," - ",'2.1 PC Rec.'!H16) -> 1.03.11 - | D20: =CONCATENATE('2.2 PC. Desp.'!A16," - ",'2.2 PC. Desp.'!B16) -> 2.01.11 - | E20: =CONCATENATE('2.2 PC. Desp.'!D16," - ",'2.2 PC. Desp.'!E16) -> 2.02.11 - | F20: =CONCATENATE('2.2 PC. Desp.'!G16," - ",'2.2 PC. Desp.'!H16) -> 2.03.11 - | G20: =CONCATENATE('2.2 PC. Desp.'!J16," - ",'2.2 PC. Desp.'!K16) -> 2.04.11 - Confraternizações | H20: =CONCATENATE('2.2 PC. Desp.'!M16," - ",'2.2 PC. Desp.'!N16) -> 2.05.11 - | I20: =CONCATENATE('2.2 PC. Desp.'!P16," - ",'2.2 PC. Desp.'!Q16) -> 2.06.11 - | J20: =CONCATENATE('2.2 PC. Desp.'!S16," - ",'2.2 PC. Desp.'!T16) -> 2.07.11 - | K20: =CONCATENATE('2.2 PC. Desp.'!V16," - ",'2.2 PC. Desp.'!W16) -> 2.08.11 - | L20: =CONCATENATE('2.2 PC. Desp.'!Y16," - ",'2.2 PC. Desp.'!Z16) -> 2.09.11 - | M20: =CONCATENATE('2.3 PC. Transf.'!A16," - ",'2.3 PC. Transf.'!B16) -> 3.01.11 - | N20: =CONCATENATE('2.3 PC. Transf.'!D16," - ",'2.3 PC. Transf.'!E16) -> 3.02.11 -
A21: =CONCATENATE('2.1 PC Rec.'!A17," - ",'2.1 PC Rec.'!B17) -> 1.01.12 - | B21: =CONCATENATE('2.1 PC Rec.'!D17," - ",'2.1 PC Rec.'!E17) -> 1.02.12 - | C21: =CONCATENATE('2.1 PC Rec.'!G17," - ",'2.1 PC Rec.'!H17) -> 1.03.12 - | D21: =CONCATENATE('2.2 PC. Desp.'!A17," - ",'2.2 PC. Desp.'!B17) -> 2.01.12 - | E21: =CONCATENATE('2.2 PC. Desp.'!D17," - ",'2.2 PC. Desp.'!E17) -> 2.02.12 - | F21: =CONCATENATE('2.2 PC. Desp.'!G17," - ",'2.2 PC. Desp.'!H17) -> 2.03.12 - | G21: =CONCATENATE('2.2 PC. Desp.'!J17," - ",'2.2 PC. Desp.'!K17) -> 2.04.12 - Outras Despesas | H21: =CONCATENATE('2.2 PC. Desp.'!M17," - ",'2.2 PC. Desp.'!N17) -> 2.05.12 - | I21: =CONCATENATE('2.2 PC. Desp.'!P17," - ",'2.2 PC. Desp.'!Q17) -> 2.06.12 - | J21: =CONCATENATE('2.2 PC. Desp.'!S17," - ",'2.2 PC. Desp.'!T17) -> 2.07.12 - | K21: =CONCATENATE('2.2 PC. Desp.'!V17," - ",'2.2 PC. Desp.'!W17) -> 2.08.12 - | L21: =CONCATENATE('2.2 PC. Desp.'!Y17," - ",'2.2 PC. Desp.'!Z17) -> 2.09.12 - | M21: =CONCATENATE('2.3 PC. Transf.'!A17," - ",'2.3 PC. Transf.'!B17) -> 3.01.12 - | N21: =CONCATENATE('2.3 PC. Transf.'!D17," - ",'2.3 PC. Transf.'!E17) -> 3.02.12 -
A22: =CONCATENATE('2.1 PC Rec.'!A18," - ",'2.1 PC Rec.'!B18) -> 1.01.13 - | B22: =CONCATENATE('2.1 PC Rec.'!D18," - ",'2.1 PC Rec.'!E18) -> 1.02.13 - | C22: =CONCATENATE('2.1 PC Rec.'!G18," - ",'2.1 PC Rec.'!H18) -> 1.03.13 - | D22: =CONCATENATE('2.2 PC. Desp.'!A18," - ",'2.2 PC. Desp.'!B18) -> 2.01.13 - | E22: =CONCATENATE('2.2 PC. Desp.'!D18," - ",'2.2 PC. Desp.'!E18) -> 2.02.13 - | F22: =CONCATENATE('2.2 PC. Desp.'!G18," - ",'2.2 PC. Desp.'!H18) -> 2.03.13 - | G22: =CONCATENATE('2.2 PC. Desp.'!J18," - ",'2.2 PC. Desp.'!K18) -> 2.04.13 - | H22: =CONCATENATE('2.2 PC. Desp.'!M18," - ",'2.2 PC. Desp.'!N18) -> 2.05.13 - | I22: =CONCATENATE('2.2 PC. Desp.'!P18," - ",'2.2 PC. Desp.'!Q18) -> 2.06.13 - | J22: =CONCATENATE('2.2 PC. Desp.'!S18," - ",'2.2 PC. Desp.'!T18) -> 2.07.13 - | K22: =CONCATENATE('2.2 PC. Desp.'!V18," - ",'2.2 PC. Desp.'!W18) -> 2.08.13 - | L22: =CONCATENATE('2.2 PC. Desp.'!Y18," - ",'2.2 PC. Desp.'!Z18) -> 2.09.13 - | M22: =CONCATENATE('2.3 PC. Transf.'!A18," - ",'2.3 PC. Transf.'!B18) -> 3.01.13 - | N22: =CONCATENATE('2.3 PC. Transf.'!D18," - ",'2.3 PC. Transf.'!E18) -> 3.02.13 -
A23: =CONCATENATE('2.1 PC Rec.'!A19," - ",'2.1 PC Rec.'!B19) -> 1.01.14 - | B23: =CONCATENATE('2.1 PC Rec.'!D19," - ",'2.1 PC Rec.'!E19) -> 1.02.14 - | C23: =CONCATENATE('2.1 PC Rec.'!G19," - ",'2.1 PC Rec.'!H19) -> 1.03.14 - | D23: =CONCATENATE('2.2 PC. Desp.'!A19," - ",'2.2 PC. Desp.'!B19) -> 2.01.14 - | E23: =CONCATENATE('2.2 PC. Desp.'!D19," - ",'2.2 PC. Desp.'!E19) -> 2.02.14 - | F23: =CONCATENATE('2.2 PC. Desp.'!G19," - ",'2.2 PC. Desp.'!H19) -> 2.03.14 - | G23: =CONCATENATE('2.2 PC. Desp.'!J19," - ",'2.2 PC. Desp.'!K19) -> 2.04.14 - | H23: =CONCATENATE('2.2 PC. Desp.'!M19," - ",'2.2 PC. Desp.'!N19) -> 2.05.14 - | I23: =CONCATENATE('2.2 PC. Desp.'!P19," - ",'2.2 PC. Desp.'!Q19) -> 2.06.14 - | J23: =CONCATENATE('2.2 PC. Desp.'!S19," - ",'2.2 PC. Desp.'!T19) -> 2.07.14 - | K23: =CONCATENATE('2.2 PC. Desp.'!V19," - ",'2.2 PC. Desp.'!W19) -> 2.08.14 - | L23: =CONCATENATE('2.2 PC. Desp.'!Y19," - ",'2.2 PC. Desp.'!Z19) -> 2.09.14 - | M23: =CONCATENATE('2.3 PC. Transf.'!A19," - ",'2.3 PC. Transf.'!B19) -> 3.01.14 - | N23: =CONCATENATE('2.3 PC. Transf.'!D19," - ",'2.3 PC. Transf.'!E19) -> 3.02.14 -
A24: =CONCATENATE('2.1 PC Rec.'!A20," - ",'2.1 PC Rec.'!B20) -> 1.01.15 - | B24: =CONCATENATE('2.1 PC Rec.'!D20," - ",'2.1 PC Rec.'!E20) -> 1.02.15 - | C24: =CONCATENATE('2.1 PC Rec.'!G20," - ",'2.1 PC Rec.'!H20) -> 1.03.15 - | D24: =CONCATENATE('2.2 PC. Desp.'!A20," - ",'2.2 PC. Desp.'!B20) -> 2.01.15 - | E24: =CONCATENATE('2.2 PC. Desp.'!D20," - ",'2.2 PC. Desp.'!E20) -> 2.02.15 - | F24: =CONCATENATE('2.2 PC. Desp.'!G20," - ",'2.2 PC. Desp.'!H20) -> 2.03.15 - | G24: =CONCATENATE('2.2 PC. Desp.'!J20," - ",'2.2 PC. Desp.'!K20) -> 2.04.15 - | H24: =CONCATENATE('2.2 PC. Desp.'!M20," - ",'2.2 PC. Desp.'!N20) -> 2.05.15 - | I24: =CONCATENATE('2.2 PC. Desp.'!P20," - ",'2.2 PC. Desp.'!Q20) -> 2.06.15 - | J24: =CONCATENATE('2.2 PC. Desp.'!S20," - ",'2.2 PC. Desp.'!T20) -> 2.07.15 - | K24: =CONCATENATE('2.2 PC. Desp.'!V20," - ",'2.2 PC. Desp.'!W20) -> 2.08.15 - | L24: =CONCATENATE('2.2 PC. Desp.'!Y20," - ",'2.2 PC. Desp.'!Z20) -> 2.09.15 - | M24: =CONCATENATE('2.3 PC. Transf.'!A20," - ",'2.3 PC. Transf.'!B20) -> 3.01.15 - | N24: =CONCATENATE('2.3 PC. Transf.'!D20," - ",'2.3 PC. Transf.'!E20) -> 3.02.15 -
A25: =CONCATENATE('2.1 PC Rec.'!A21," - ",'2.1 PC Rec.'!B21) -> 1.01.16 - | B25: =CONCATENATE('2.1 PC Rec.'!D21," - ",'2.1 PC Rec.'!E21) -> 1.02.16 - | C25: =CONCATENATE('2.1 PC Rec.'!G21," - ",'2.1 PC Rec.'!H21) -> 1.03.16 - | D25: =CONCATENATE('2.2 PC. Desp.'!A21," - ",'2.2 PC. Desp.'!B21) -> 2.01.16 - | E25: =CONCATENATE('2.2 PC. Desp.'!D21," - ",'2.2 PC. Desp.'!E21) -> 2.02.16 - | F25: =CONCATENATE('2.2 PC. Desp.'!G21," - ",'2.2 PC. Desp.'!H21) -> 2.03.16 - | G25: =CONCATENATE('2.2 PC. Desp.'!J21," - ",'2.2 PC. Desp.'!K21) -> 2.04.16 - | H25: =CONCATENATE('2.2 PC. Desp.'!M21," - ",'2.2 PC. Desp.'!N21) -> 2.05.16 - | I25: =CONCATENATE('2.2 PC. Desp.'!P21," - ",'2.2 PC. Desp.'!Q21) -> 2.06.16 - | J25: =CONCATENATE('2.2 PC. Desp.'!S21," - ",'2.2 PC. Desp.'!T21) -> 2.07.16 - | K25: =CONCATENATE('2.2 PC. Desp.'!V21," - ",'2.2 PC. Desp.'!W21) -> 2.08.16 - | L25: =CONCATENATE('2.2 PC. Desp.'!Y21," - ",'2.2 PC. Desp.'!Z21) -> 2.09.16 - | M25: =CONCATENATE('2.3 PC. Transf.'!A21," - ",'2.3 PC. Transf.'!B21) -> 3.01.16 - | N25: =CONCATENATE('2.3 PC. Transf.'!D21," - ",'2.3 PC. Transf.'!E21) -> 3.02.16 -
A26: =CONCATENATE('2.1 PC Rec.'!A22," - ",'2.1 PC Rec.'!B22) -> - | B26: =CONCATENATE('2.1 PC Rec.'!D22," - ",'2.1 PC Rec.'!E22) -> - | C26: =CONCATENATE('2.1 PC Rec.'!G22," - ",'2.1 PC Rec.'!H22) -> - | D26: =CONCATENATE('2.2 PC. Desp.'!A22," - ",'2.2 PC. Desp.'!B22) -> 2.01.17 - | E26: =CONCATENATE('2.2 PC. Desp.'!D22," - ",'2.2 PC. Desp.'!E22) -> 2.02.17 - | F26: =CONCATENATE('2.2 PC. Desp.'!G22," - ",'2.2 PC. Desp.'!H22) -> 2.03.17 - | G26: =CONCATENATE('2.2 PC. Desp.'!J22," - ",'2.2 PC. Desp.'!K22) -> 2.04.17 - | H26: =CONCATENATE('2.2 PC. Desp.'!M22," - ",'2.2 PC. Desp.'!N22) -> 2.05.17 - | I26: =CONCATENATE('2.2 PC. Desp.'!P22," - ",'2.2 PC. Desp.'!Q22) -> 2.06.17 - | J26: =CONCATENATE('2.2 PC. Desp.'!S22," - ",'2.2 PC. Desp.'!T22) -> 2.07.17 - | K26: =CONCATENATE('2.2 PC. Desp.'!V22," - ",'2.2 PC. Desp.'!W22) -> 2.08.17 - | L26: =CONCATENATE('2.2 PC. Desp.'!Y22," - ",'2.2 PC. Desp.'!Z22) -> 2.09.17 - | M26: =CONCATENATE('2.3 PC. Transf.'!A22," - ",'2.3 PC. Transf.'!B22) -> - | N26: =CONCATENATE('2.3 PC. Transf.'!D22," - ",'2.3 PC. Transf.'!E22) -> -
A27: =CONCATENATE('2.1 PC Rec.'!A23," - ",'2.1 PC Rec.'!B23) -> - | B27: =CONCATENATE('2.1 PC Rec.'!D23," - ",'2.1 PC Rec.'!E23) -> - | C27: =CONCATENATE('2.1 PC Rec.'!G23," - ",'2.1 PC Rec.'!H23) -> - | D27: =CONCATENATE('2.2 PC. Desp.'!A23," - ",'2.2 PC. Desp.'!B23) -> 2.01.18 - | E27: =CONCATENATE('2.2 PC. Desp.'!D23," - ",'2.2 PC. Desp.'!E23) -> 2.02.18 - | F27: =CONCATENATE('2.2 PC. Desp.'!G23," - ",'2.2 PC. Desp.'!H23) -> 2.03.18 - | G27: =CONCATENATE('2.2 PC. Desp.'!J23," - ",'2.2 PC. Desp.'!K23) -> 2.04.18 - | H27: =CONCATENATE('2.2 PC. Desp.'!M23," - ",'2.2 PC. Desp.'!N23) -> 2.05.18 - | I27: =CONCATENATE('2.2 PC. Desp.'!P23," - ",'2.2 PC. Desp.'!Q23) -> 2.06.18 - | J27: =CONCATENATE('2.2 PC. Desp.'!S23," - ",'2.2 PC. Desp.'!T23) -> 2.07.18 - | K27: =CONCATENATE('2.2 PC. Desp.'!V23," - ",'2.2 PC. Desp.'!W23) -> 2.08.18 - | L27: =CONCATENATE('2.2 PC. Desp.'!Y23," - ",'2.2 PC. Desp.'!Z23) -> 2.09.18 - | M27: =CONCATENATE('2.3 PC. Transf.'!A23," - ",'2.3 PC. Transf.'!B23) -> - | N27: =CONCATENATE('2.3 PC. Transf.'!D23," - ",'2.3 PC. Transf.'!E23) -> -
A28: =CONCATENATE('2.1 PC Rec.'!A24," - ",'2.1 PC Rec.'!B24) -> - | B28: =CONCATENATE('2.1 PC Rec.'!D24," - ",'2.1 PC Rec.'!E24) -> - | C28: =CONCATENATE('2.1 PC Rec.'!G24," - ",'2.1 PC Rec.'!H24) -> - | D28: =CONCATENATE('2.2 PC. Desp.'!A24," - ",'2.2 PC. Desp.'!B24) -> 2.01.19 - | E28: =CONCATENATE('2.2 PC. Desp.'!D24," - ",'2.2 PC. Desp.'!E24) -> 2.02.19 - | F28: =CONCATENATE('2.2 PC. Desp.'!G24," - ",'2.2 PC. Desp.'!H24) -> 2.03.19 - | G28: =CONCATENATE('2.2 PC. Desp.'!J24," - ",'2.2 PC. Desp.'!K24) -> 2.04.19 - | H28: =CONCATENATE('2.2 PC. Desp.'!M24," - ",'2.2 PC. Desp.'!N24) -> 2.05.19 - | I28: =CONCATENATE('2.2 PC. Desp.'!P24," - ",'2.2 PC. Desp.'!Q24) -> 2.06.19 - | J28: =CONCATENATE('2.2 PC. Desp.'!S24," - ",'2.2 PC. Desp.'!T24) -> 2.07.19 - | K28: =CONCATENATE('2.2 PC. Desp.'!V24," - ",'2.2 PC. Desp.'!W24) -> 2.08.19 - | L28: =CONCATENATE('2.2 PC. Desp.'!Y24," - ",'2.2 PC. Desp.'!Z24) -> 2.09.19 - | M28: =CONCATENATE('2.3 PC. Transf.'!A24," - ",'2.3 PC. Transf.'!B24) -> - | N28: =CONCATENATE('2.3 PC. Transf.'!D24," - ",'2.3 PC. Transf.'!E24) -> -
A29: =CONCATENATE('2.1 PC Rec.'!A25," - ",'2.1 PC Rec.'!B25) -> - | B29: =CONCATENATE('2.1 PC Rec.'!D25," - ",'2.1 PC Rec.'!E25) -> - | C29: =CONCATENATE('2.1 PC Rec.'!G25," - ",'2.1 PC Rec.'!H25) -> - | D29: =CONCATENATE('2.2 PC. Desp.'!A25," - ",'2.2 PC. Desp.'!B25) -> 2.01.20 - | E29: =CONCATENATE('2.2 PC. Desp.'!D25," - ",'2.2 PC. Desp.'!E25) -> 2.02.20 - | F29: =CONCATENATE('2.2 PC. Desp.'!G25," - ",'2.2 PC. Desp.'!H25) -> 2.03.20 - | G29: =CONCATENATE('2.2 PC. Desp.'!J25," - ",'2.2 PC. Desp.'!K25) -> 2.04.20 - | H29: =CONCATENATE('2.2 PC. Desp.'!M25," - ",'2.2 PC. Desp.'!N25) -> 2.05.20 - | I29: =CONCATENATE('2.2 PC. Desp.'!P25," - ",'2.2 PC. Desp.'!Q25) -> 2.06.20 - | J29: =CONCATENATE('2.2 PC. Desp.'!S25," - ",'2.2 PC. Desp.'!T25) -> 2.07.20 - | K29: =CONCATENATE('2.2 PC. Desp.'!V25," - ",'2.2 PC. Desp.'!W25) -> 2.08.20 - | L29: =CONCATENATE('2.2 PC. Desp.'!Y25," - ",'2.2 PC. Desp.'!Z25) -> 2.09.20 - | M29: =CONCATENATE('2.3 PC. Transf.'!A25," - ",'2.3 PC. Transf.'!B25) -> - | N29: =CONCATENATE('2.3 PC. Transf.'!D25," - ",'2.3 PC. Transf.'!E25) -> -
A30: =CONCATENATE('2.1 PC Rec.'!A26," - ",'2.1 PC Rec.'!B26) -> - | B30: =CONCATENATE('2.1 PC Rec.'!D26," - ",'2.1 PC Rec.'!E26) -> - | C30: =CONCATENATE('2.1 PC Rec.'!G26," - ",'2.1 PC Rec.'!H26) -> - | D30: =CONCATENATE('2.2 PC. Desp.'!A26," - ",'2.2 PC. Desp.'!B26) -> 2.01.21 - | E30: =CONCATENATE('2.2 PC. Desp.'!D26," - ",'2.2 PC. Desp.'!E26) -> 2.02.21 - | F30: =CONCATENATE('2.2 PC. Desp.'!G26," - ",'2.2 PC. Desp.'!H26) -> 2.03.21 - | G30: =CONCATENATE('2.2 PC. Desp.'!J26," - ",'2.2 PC. Desp.'!K26) -> 2.04.21 - | H30: =CONCATENATE('2.2 PC. Desp.'!M26," - ",'2.2 PC. Desp.'!N26) -> 2.05.21 - | I30: =CONCATENATE('2.2 PC. Desp.'!P26," - ",'2.2 PC. Desp.'!Q26) -> 2.06.21 - | J30: =CONCATENATE('2.2 PC. Desp.'!S26," - ",'2.2 PC. Desp.'!T26) -> 2.07.21 - | K30: =CONCATENATE('2.2 PC. Desp.'!V26," - ",'2.2 PC. Desp.'!W26) -> 2.08.21 - | L30: =CONCATENATE('2.2 PC. Desp.'!Y26," - ",'2.2 PC. Desp.'!Z26) -> 2.09.21 - | M30: =CONCATENATE('2.3 PC. Transf.'!A26," - ",'2.3 PC. Transf.'!B26) -> - | N30: =CONCATENATE('2.3 PC. Transf.'!D26," - ",'2.3 PC. Transf.'!E26) -> -
A31: =CONCATENATE('2.1 PC Rec.'!A27," - ",'2.1 PC Rec.'!B27) -> - | B31: =CONCATENATE('2.1 PC Rec.'!D27," - ",'2.1 PC Rec.'!E27) -> - | C31: =CONCATENATE('2.1 PC Rec.'!G27," - ",'2.1 PC Rec.'!H27) -> - | D31: =CONCATENATE('2.2 PC. Desp.'!A27," - ",'2.2 PC. Desp.'!B27) -> 2.01.22 - | E31: =CONCATENATE('2.2 PC. Desp.'!D27," - ",'2.2 PC. Desp.'!E27) -> 2.02.22 - | F31: =CONCATENATE('2.2 PC. Desp.'!G27," - ",'2.2 PC. Desp.'!H27) -> 2.03.22 - | G31: =CONCATENATE('2.2 PC. Desp.'!J27," - ",'2.2 PC. Desp.'!K27) -> 2.04.22 - | H31: =CONCATENATE('2.2 PC. Desp.'!M27," - ",'2.2 PC. Desp.'!N27) -> 2.05.22 - | I31: =CONCATENATE('2.2 PC. Desp.'!P27," - ",'2.2 PC. Desp.'!Q27) -> 2.06.22 - | J31: =CONCATENATE('2.2 PC. Desp.'!S27," - ",'2.2 PC. Desp.'!T27) -> 2.07.22 - | K31: =CONCATENATE('2.2 PC. Desp.'!V27," - ",'2.2 PC. Desp.'!W27) -> 2.08.22 - | L31: =CONCATENATE('2.2 PC. Desp.'!Y27," - ",'2.2 PC. Desp.'!Z27) -> 2.09.22 - | M31: =CONCATENATE('2.3 PC. Transf.'!A27," - ",'2.3 PC. Transf.'!B27) -> - | N31: =CONCATENATE('2.3 PC. Transf.'!D27," - ",'2.3 PC. Transf.'!E27) -> -
A32: =CONCATENATE('2.1 PC Rec.'!A28," - ",'2.1 PC Rec.'!B28) -> - | B32: =CONCATENATE('2.1 PC Rec.'!D28," - ",'2.1 PC Rec.'!E28) -> - | C32: =CONCATENATE('2.1 PC Rec.'!G28," - ",'2.1 PC Rec.'!H28) -> - | D32: =CONCATENATE('2.2 PC. Desp.'!A28," - ",'2.2 PC. Desp.'!B28) -> 2.01.23 - | E32: =CONCATENATE('2.2 PC. Desp.'!D28," - ",'2.2 PC. Desp.'!E28) -> 2.02.23 - | F32: =CONCATENATE('2.2 PC. Desp.'!G28," - ",'2.2 PC. Desp.'!H28) -> 2.03.23 - | G32: =CONCATENATE('2.2 PC. Desp.'!J28," - ",'2.2 PC. Desp.'!K28) -> 2.04.23 - | H32: =CONCATENATE('2.2 PC. Desp.'!M28," - ",'2.2 PC. Desp.'!N28) -> 2.05.23 - | I32: =CONCATENATE('2.2 PC. Desp.'!P28," - ",'2.2 PC. Desp.'!Q28) -> 2.06.23 - | J32: =CONCATENATE('2.2 PC. Desp.'!S28," - ",'2.2 PC. Desp.'!T28) -> 2.07.23 - | K32: =CONCATENATE('2.2 PC. Desp.'!V28," - ",'2.2 PC. Desp.'!W28) -> 2.08.23 - | L32: =CONCATENATE('2.2 PC. Desp.'!Y28," - ",'2.2 PC. Desp.'!Z28) -> 2.09.23 - | M32: =CONCATENATE('2.3 PC. Transf.'!A28," - ",'2.3 PC. Transf.'!B28) -> - | N32: =CONCATENATE('2.3 PC. Transf.'!D28," - ",'2.3 PC. Transf.'!E28) -> -
A33: =CONCATENATE('2.1 PC Rec.'!A29," - ",'2.1 PC Rec.'!B29) -> - | B33: =CONCATENATE('2.1 PC Rec.'!D29," - ",'2.1 PC Rec.'!E29) -> - | C33: =CONCATENATE('2.1 PC Rec.'!G29," - ",'2.1 PC Rec.'!H29) -> - | D33: =CONCATENATE('2.2 PC. Desp.'!A29," - ",'2.2 PC. Desp.'!B29) -> 2.01.24 - | E33: =CONCATENATE('2.2 PC. Desp.'!D29," - ",'2.2 PC. Desp.'!E29) -> 2.02.24 - | F33: =CONCATENATE('2.2 PC. Desp.'!G29," - ",'2.2 PC. Desp.'!H29) -> 2.03.24 - | G33: =CONCATENATE('2.2 PC. Desp.'!J29," - ",'2.2 PC. Desp.'!K29) -> 2.04.24 - | H33: =CONCATENATE('2.2 PC. Desp.'!M29," - ",'2.2 PC. Desp.'!N29) -> 2.05.24 - | I33: =CONCATENATE('2.2 PC. Desp.'!P29," - ",'2.2 PC. Desp.'!Q29) -> 2.06.24 - | J33: =CONCATENATE('2.2 PC. Desp.'!S29," - ",'2.2 PC. Desp.'!T29) -> 2.07.24 - | K33: =CONCATENATE('2.2 PC. Desp.'!V29," - ",'2.2 PC. Desp.'!W29) -> 2.08.24 - | L33: =CONCATENATE('2.2 PC. Desp.'!Y29," - ",'2.2 PC. Desp.'!Z29) -> 2.09.24 - | M33: =CONCATENATE('2.3 PC. Transf.'!A29," - ",'2.3 PC. Transf.'!B29) -> - | N33: =CONCATENATE('2.3 PC. Transf.'!D29," - ",'2.3 PC. Transf.'!E29) -> -
A34: =CONCATENATE('2.1 PC Rec.'!A30," - ",'2.1 PC Rec.'!B30) -> - | B34: =CONCATENATE('2.1 PC Rec.'!D30," - ",'2.1 PC Rec.'!E30) -> - | C34: =CONCATENATE('2.1 PC Rec.'!G30," - ",'2.1 PC Rec.'!H30) -> - | D34: =CONCATENATE('2.2 PC. Desp.'!A30," - ",'2.2 PC. Desp.'!B30) -> 2.01.25 - | E34: =CONCATENATE('2.2 PC. Desp.'!D30," - ",'2.2 PC. Desp.'!E30) -> 2.02.25 - | F34: =CONCATENATE('2.2 PC. Desp.'!G30," - ",'2.2 PC. Desp.'!H30) -> 2.03.25 - | G34: =CONCATENATE('2.2 PC. Desp.'!J30," - ",'2.2 PC. Desp.'!K30) -> 2.04.25 - | H34: =CONCATENATE('2.2 PC. Desp.'!M30," - ",'2.2 PC. Desp.'!N30) -> 2.05.25 - | I34: =CONCATENATE('2.2 PC. Desp.'!P30," - ",'2.2 PC. Desp.'!Q30) -> 2.06.25 - | J34: =CONCATENATE('2.2 PC. Desp.'!S30," - ",'2.2 PC. Desp.'!T30) -> 2.07.25 - | K34: =CONCATENATE('2.2 PC. Desp.'!V30," - ",'2.2 PC. Desp.'!W30) -> 2.08.25 - | L34: =CONCATENATE('2.2 PC. Desp.'!Y30," - ",'2.2 PC. Desp.'!Z30) -> 2.09.25 - | M34: =CONCATENATE('2.3 PC. Transf.'!A30," - ",'2.3 PC. Transf.'!B30) -> - | N34: =CONCATENATE('2.3 PC. Transf.'!D30," - ",'2.3 PC. Transf.'!E30) -> -
A35: =CONCATENATE('2.1 PC Rec.'!A31," - ",'2.1 PC Rec.'!B31) -> - | B35: =CONCATENATE('2.1 PC Rec.'!D31," - ",'2.1 PC Rec.'!E31) -> - | C35: =CONCATENATE('2.1 PC Rec.'!G31," - ",'2.1 PC Rec.'!H31) -> - | D35: =CONCATENATE('2.2 PC. Desp.'!A31," - ",'2.2 PC. Desp.'!B31) -> 2.01.26 - | E35: =CONCATENATE('2.2 PC. Desp.'!D31," - ",'2.2 PC. Desp.'!E31) -> 2.02.26 - | F35: =CONCATENATE('2.2 PC. Desp.'!G31," - ",'2.2 PC. Desp.'!H31) -> 2.03.26 - | G35: =CONCATENATE('2.2 PC. Desp.'!J31," - ",'2.2 PC. Desp.'!K31) -> 2.04.26 - | H35: =CONCATENATE('2.2 PC. Desp.'!M31," - ",'2.2 PC. Desp.'!N31) -> 2.05.26 - | I35: =CONCATENATE('2.2 PC. Desp.'!P31," - ",'2.2 PC. Desp.'!Q31) -> 2.06.26 - | J35: =CONCATENATE('2.2 PC. Desp.'!S31," - ",'2.2 PC. Desp.'!T31) -> 2.07.26 - | K35: =CONCATENATE('2.2 PC. Desp.'!V31," - ",'2.2 PC. Desp.'!W31) -> 2.08.26 - | L35: =CONCATENATE('2.2 PC. Desp.'!Y31," - ",'2.2 PC. Desp.'!Z31) -> 2.09.26 - | M35: =CONCATENATE('2.3 PC. Transf.'!A31," - ",'2.3 PC. Transf.'!B31) -> - | N35: =CONCATENATE('2.3 PC. Transf.'!D31," - ",'2.3 PC. Transf.'!E31) -> -
A36: =CONCATENATE('2.1 PC Rec.'!A32," - ",'2.1 PC Rec.'!B32) -> - | B36: =CONCATENATE('2.1 PC Rec.'!D32," - ",'2.1 PC Rec.'!E32) -> - | C36: =CONCATENATE('2.1 PC Rec.'!G32," - ",'2.1 PC Rec.'!H32) -> - | D36: =CONCATENATE('2.2 PC. Desp.'!A32," - ",'2.2 PC. Desp.'!B32) -> 2.01.27 - | E36: =CONCATENATE('2.2 PC. Desp.'!D32," - ",'2.2 PC. Desp.'!E32) -> 2.02.27 - | F36: =CONCATENATE('2.2 PC. Desp.'!G32," - ",'2.2 PC. Desp.'!H32) -> 2.03.27 - | G36: =CONCATENATE('2.2 PC. Desp.'!J32," - ",'2.2 PC. Desp.'!K32) -> 2.04.27 - | H36: =CONCATENATE('2.2 PC. Desp.'!M32," - ",'2.2 PC. Desp.'!N32) -> 2.05.27 - | I36: =CONCATENATE('2.2 PC. Desp.'!P32," - ",'2.2 PC. Desp.'!Q32) -> 2.06.27 - | J36: =CONCATENATE('2.2 PC. Desp.'!S32," - ",'2.2 PC. Desp.'!T32) -> 2.07.27 - | K36: =CONCATENATE('2.2 PC. Desp.'!V32," - ",'2.2 PC. Desp.'!W32) -> 2.08.27 - | L36: =CONCATENATE('2.2 PC. Desp.'!Y32," - ",'2.2 PC. Desp.'!Z32) -> 2.09.27 - | M36: =CONCATENATE('2.3 PC. Transf.'!A32," - ",'2.3 PC. Transf.'!B32) -> - | N36: =CONCATENATE('2.3 PC. Transf.'!D32," - ",'2.3 PC. Transf.'!E32) -> -
A37: =CONCATENATE('2.1 PC Rec.'!A33," - ",'2.1 PC Rec.'!B33) -> - | B37: =CONCATENATE('2.1 PC Rec.'!D33," - ",'2.1 PC Rec.'!E33) -> - | C37: =CONCATENATE('2.1 PC Rec.'!G33," - ",'2.1 PC Rec.'!H33) -> - | D37: =CONCATENATE('2.2 PC. Desp.'!A33," - ",'2.2 PC. Desp.'!B33) -> 2.01.28 - | E37: =CONCATENATE('2.2 PC. Desp.'!D33," - ",'2.2 PC. Desp.'!E33) -> 2.02.28 - | F37: =CONCATENATE('2.2 PC. Desp.'!G33," - ",'2.2 PC. Desp.'!H33) -> 2.03.28 - | G37: =CONCATENATE('2.2 PC. Desp.'!J33," - ",'2.2 PC. Desp.'!K33) -> 2.04.28 - | H37: =CONCATENATE('2.2 PC. Desp.'!M33," - ",'2.2 PC. Desp.'!N33) -> 2.05.28 - | I37: =CONCATENATE('2.2 PC. Desp.'!P33," - ",'2.2 PC. Desp.'!Q33) -> 2.06.28 - | J37: =CONCATENATE('2.2 PC. Desp.'!S33," - ",'2.2 PC. Desp.'!T33) -> 2.07.28 - | K37: =CONCATENATE('2.2 PC. Desp.'!V33," - ",'2.2 PC. Desp.'!W33) -> 2.08.28 - | L37: =CONCATENATE('2.2 PC. Desp.'!Y33," - ",'2.2 PC. Desp.'!Z33) -> 2.09.28 - | M37: =CONCATENATE('2.3 PC. Transf.'!A33," - ",'2.3 PC. Transf.'!B33) -> - | N37: =CONCATENATE('2.3 PC. Transf.'!D33," - ",'2.3 PC. Transf.'!E33) -> -
A38: =CONCATENATE('2.1 PC Rec.'!A34," - ",'2.1 PC Rec.'!B34) -> - | B38: =CONCATENATE('2.1 PC Rec.'!D34," - ",'2.1 PC Rec.'!E34) -> - | C38: =CONCATENATE('2.1 PC Rec.'!G34," - ",'2.1 PC Rec.'!H34) -> - | D38: =CONCATENATE('2.2 PC. Desp.'!A34," - ",'2.2 PC. Desp.'!B34) -> 2.01.29 - | E38: =CONCATENATE('2.2 PC. Desp.'!D34," - ",'2.2 PC. Desp.'!E34) -> 2.02.29 - | F38: =CONCATENATE('2.2 PC. Desp.'!G34," - ",'2.2 PC. Desp.'!H34) -> 2.03.29 - | G38: =CONCATENATE('2.2 PC. Desp.'!J34," - ",'2.2 PC. Desp.'!K34) -> 2.04.29 - | H38: =CONCATENATE('2.2 PC. Desp.'!M34," - ",'2.2 PC. Desp.'!N34) -> 2.05.29 - | I38: =CONCATENATE('2.2 PC. Desp.'!P34," - ",'2.2 PC. Desp.'!Q34) -> 2.06.29 - | J38: =CONCATENATE('2.2 PC. Desp.'!S34," - ",'2.2 PC. Desp.'!T34) -> 2.07.29 - | K38: =CONCATENATE('2.2 PC. Desp.'!V34," - ",'2.2 PC. Desp.'!W34) -> 2.08.29 - | L38: =CONCATENATE('2.2 PC. Desp.'!Y34," - ",'2.2 PC. Desp.'!Z34) -> 2.09.29 - | M38: =CONCATENATE('2.3 PC. Transf.'!A34," - ",'2.3 PC. Transf.'!B34) -> - | N38: =CONCATENATE('2.3 PC. Transf.'!D34," - ",'2.3 PC. Transf.'!E34) -> -
A39: =CONCATENATE('2.1 PC Rec.'!A35," - ",'2.1 PC Rec.'!B35) -> - | B39: =CONCATENATE('2.1 PC Rec.'!D35," - ",'2.1 PC Rec.'!E35) -> - | C39: =CONCATENATE('2.1 PC Rec.'!G35," - ",'2.1 PC Rec.'!H35) -> - | D39: =CONCATENATE('2.2 PC. Desp.'!A35," - ",'2.2 PC. Desp.'!B35) -> 2.01.30 - | E39: =CONCATENATE('2.2 PC. Desp.'!D35," - ",'2.2 PC. Desp.'!E35) -> 2.02.30 - | F39: =CONCATENATE('2.2 PC. Desp.'!G35," - ",'2.2 PC. Desp.'!H35) -> 2.03.30 - | G39: =CONCATENATE('2.2 PC. Desp.'!J35," - ",'2.2 PC. Desp.'!K35) -> 2.04.30 - | H39: =CONCATENATE('2.2 PC. Desp.'!M35," - ",'2.2 PC. Desp.'!N35) -> 2.05.30 - | I39: =CONCATENATE('2.2 PC. Desp.'!P35," - ",'2.2 PC. Desp.'!Q35) -> 2.06.30 - | J39: =CONCATENATE('2.2 PC. Desp.'!S35," - ",'2.2 PC. Desp.'!T35) -> 2.07.30 - | K39: =CONCATENATE('2.2 PC. Desp.'!V35," - ",'2.2 PC. Desp.'!W35) -> 2.08.30 - | L39: =CONCATENATE('2.2 PC. Desp.'!Y35," - ",'2.2 PC. Desp.'!Z35) -> 2.09.30 - | M39: =CONCATENATE('2.3 PC. Transf.'!A35," - ",'2.3 PC. Transf.'!B35) -> - | N39: =CONCATENATE('2.3 PC. Transf.'!D35," - ",'2.3 PC. Transf.'!E35) -> -
A40: =CONCATENATE('2.1 PC Rec.'!A36," - ",'2.1 PC Rec.'!B36) -> - | B40: =CONCATENATE('2.1 PC Rec.'!D36," - ",'2.1 PC Rec.'!E36) -> - | C40: =CONCATENATE('2.1 PC Rec.'!G36," - ",'2.1 PC Rec.'!H36) -> - | D40: =CONCATENATE('2.2 PC. Desp.'!A36," - ",'2.2 PC. Desp.'!B36) -> - | E40: =CONCATENATE('2.2 PC. Desp.'!D36," - ",'2.2 PC. Desp.'!E36) -> - | F40: =CONCATENATE('2.2 PC. Desp.'!G36," - ",'2.2 PC. Desp.'!H36) -> - | G40: =CONCATENATE('2.2 PC. Desp.'!J36," - ",'2.2 PC. Desp.'!K36) -> - | H40: =CONCATENATE('2.2 PC. Desp.'!M36," - ",'2.2 PC. Desp.'!N36) -> - | I40: =CONCATENATE('2.2 PC. Desp.'!P36," - ",'2.2 PC. Desp.'!Q36) -> - | J40: =CONCATENATE('2.2 PC. Desp.'!S36," - ",'2.2 PC. Desp.'!T36) -> - | K40: =CONCATENATE('2.2 PC. Desp.'!V36," - ",'2.2 PC. Desp.'!W36) -> - | L40: =CONCATENATE('2.2 PC. Desp.'!Y36," - ",'2.2 PC. Desp.'!Z36) -> - | M40: =CONCATENATE('2.3 PC. Transf.'!A36," - ",'2.3 PC. Transf.'!B36) -> - | N40: =CONCATENATE('2.3 PC. Transf.'!D36," - ",'2.3 PC. Transf.'!E36) -> -
A41: =CONCATENATE('2.1 PC Rec.'!A37," - ",'2.1 PC Rec.'!B37) -> - | B41: =CONCATENATE('2.1 PC Rec.'!D37," - ",'2.1 PC Rec.'!E37) -> - | C41: =CONCATENATE('2.1 PC Rec.'!G37," - ",'2.1 PC Rec.'!H37) -> - | D41: =CONCATENATE('2.2 PC. Desp.'!A37," - ",'2.2 PC. Desp.'!B37) -> - | E41: =CONCATENATE('2.2 PC. Desp.'!D37," - ",'2.2 PC. Desp.'!E37) -> - | F41: =CONCATENATE('2.2 PC. Desp.'!G37," - ",'2.2 PC. Desp.'!H37) -> - | G41: =CONCATENATE('2.2 PC. Desp.'!J37," - ",'2.2 PC. Desp.'!K37) -> - | H41: =CONCATENATE('2.2 PC. Desp.'!M37," - ",'2.2 PC. Desp.'!N37) -> - | I41: =CONCATENATE('2.2 PC. Desp.'!P37," - ",'2.2 PC. Desp.'!Q37) -> - | J41: =CONCATENATE('2.2 PC. Desp.'!S37," - ",'2.2 PC. Desp.'!T37) -> - | K41: =CONCATENATE('2.2 PC. Desp.'!V37," - ",'2.2 PC. Desp.'!W37) -> - | L41: =CONCATENATE('2.2 PC. Desp.'!Y37," - ",'2.2 PC. Desp.'!Z37) -> - | M41: =CONCATENATE('2.3 PC. Transf.'!A37," - ",'2.3 PC. Transf.'!B37) -> - | N41: =CONCATENATE('2.3 PC. Transf.'!D37," - ",'2.3 PC. Transf.'!E37) -> -
A42: =CONCATENATE('2.1 PC Rec.'!A38," - ",'2.1 PC Rec.'!B38) -> - | B42: =CONCATENATE('2.1 PC Rec.'!D38," - ",'2.1 PC Rec.'!E38) -> - | C42: =CONCATENATE('2.1 PC Rec.'!G38," - ",'2.1 PC Rec.'!H38) -> - | D42: =CONCATENATE('2.2 PC. Desp.'!A38," - ",'2.2 PC. Desp.'!B38) -> - | E42: =CONCATENATE('2.2 PC. Desp.'!D38," - ",'2.2 PC. Desp.'!E38) -> - | F42: =CONCATENATE('2.2 PC. Desp.'!G38," - ",'2.2 PC. Desp.'!H38) -> - | G42: =CONCATENATE('2.2 PC. Desp.'!J38," - ",'2.2 PC. Desp.'!K38) -> - | H42: =CONCATENATE('2.2 PC. Desp.'!M38," - ",'2.2 PC. Desp.'!N38) -> - | I42: =CONCATENATE('2.2 PC. Desp.'!P38," - ",'2.2 PC. Desp.'!Q38) -> - | J42: =CONCATENATE('2.2 PC. Desp.'!S38," - ",'2.2 PC. Desp.'!T38) -> - | K42: =CONCATENATE('2.2 PC. Desp.'!V38," - ",'2.2 PC. Desp.'!W38) -> - | L42: =CONCATENATE('2.2 PC. Desp.'!Y38," - ",'2.2 PC. Desp.'!Z38) -> - | M42: =CONCATENATE('2.3 PC. Transf.'!A38," - ",'2.3 PC. Transf.'!B38) -> - | N42: =CONCATENATE('2.3 PC. Transf.'!D38," - ",'2.3 PC. Transf.'!E38) -> -
A43: =CONCATENATE('2.1 PC Rec.'!A39," - ",'2.1 PC Rec.'!B39) -> - | B43: =CONCATENATE('2.1 PC Rec.'!D39," - ",'2.1 PC Rec.'!E39) -> - | C43: =CONCATENATE('2.1 PC Rec.'!G39," - ",'2.1 PC Rec.'!H39) -> - | D43: =CONCATENATE('2.2 PC. Desp.'!A39," - ",'2.2 PC. Desp.'!B39) -> - | E43: =CONCATENATE('2.2 PC. Desp.'!D39," - ",'2.2 PC. Desp.'!E39) -> - | F43: =CONCATENATE('2.2 PC. Desp.'!G39," - ",'2.2 PC. Desp.'!H39) -> - | G43: =CONCATENATE('2.2 PC. Desp.'!J39," - ",'2.2 PC. Desp.'!K39) -> - | H43: =CONCATENATE('2.2 PC. Desp.'!M39," - ",'2.2 PC. Desp.'!N39) -> - | I43: =CONCATENATE('2.2 PC. Desp.'!P39," - ",'2.2 PC. Desp.'!Q39) -> - | J43: =CONCATENATE('2.2 PC. Desp.'!S39," - ",'2.2 PC. Desp.'!T39) -> - | K43: =CONCATENATE('2.2 PC. Desp.'!V39," - ",'2.2 PC. Desp.'!W39) -> - | L43: =CONCATENATE('2.2 PC. Desp.'!Y39," - ",'2.2 PC. Desp.'!Z39) -> - | M43: =CONCATENATE('2.3 PC. Transf.'!A39," - ",'2.3 PC. Transf.'!B39) -> - | N43: =CONCATENATE('2.3 PC. Transf.'!D39," - ",'2.3 PC. Transf.'!E39) -> -
A44: =CONCATENATE('2.1 PC Rec.'!A40," - ",'2.1 PC Rec.'!B40) -> - | B44: =CONCATENATE('2.1 PC Rec.'!D40," - ",'2.1 PC Rec.'!E40) -> - | C44: =CONCATENATE('2.1 PC Rec.'!G40," - ",'2.1 PC Rec.'!H40) -> - | D44: =CONCATENATE('2.2 PC. Desp.'!A40," - ",'2.2 PC. Desp.'!B40) -> - | E44: =CONCATENATE('2.2 PC. Desp.'!D40," - ",'2.2 PC. Desp.'!E40) -> - | F44: =CONCATENATE('2.2 PC. Desp.'!G40," - ",'2.2 PC. Desp.'!H40) -> - | G44: =CONCATENATE('2.2 PC. Desp.'!J40," - ",'2.2 PC. Desp.'!K40) -> - | H44: =CONCATENATE('2.2 PC. Desp.'!M40," - ",'2.2 PC. Desp.'!N40) -> - | I44: =CONCATENATE('2.2 PC. Desp.'!P40," - ",'2.2 PC. Desp.'!Q40) -> - | J44: =CONCATENATE('2.2 PC. Desp.'!S40," - ",'2.2 PC. Desp.'!T40) -> - | K44: =CONCATENATE('2.2 PC. Desp.'!V40," - ",'2.2 PC. Desp.'!W40) -> - | L44: =CONCATENATE('2.2 PC. Desp.'!Y40," - ",'2.2 PC. Desp.'!Z40) -> - | M44: =CONCATENATE('2.3 PC. Transf.'!A40," - ",'2.3 PC. Transf.'!B40) -> - | N44: =CONCATENATE('2.3 PC. Transf.'!D40," - ",'2.3 PC. Transf.'!E40) -> -
A45: =CONCATENATE('2.1 PC Rec.'!A41," - ",'2.1 PC Rec.'!B41) -> - | B45: =CONCATENATE('2.1 PC Rec.'!D41," - ",'2.1 PC Rec.'!E41) -> - | C45: =CONCATENATE('2.1 PC Rec.'!G41," - ",'2.1 PC Rec.'!H41) -> - | D45: =CONCATENATE('2.2 PC. Desp.'!A41," - ",'2.2 PC. Desp.'!B41) -> - | E45: =CONCATENATE('2.2 PC. Desp.'!D41," - ",'2.2 PC. Desp.'!E41) -> - | F45: =CONCATENATE('2.2 PC. Desp.'!G41," - ",'2.2 PC. Desp.'!H41) -> - | G45: =CONCATENATE('2.2 PC. Desp.'!J41," - ",'2.2 PC. Desp.'!K41) -> - | H45: =CONCATENATE('2.2 PC. Desp.'!M41," - ",'2.2 PC. Desp.'!N41) -> - | I45: =CONCATENATE('2.2 PC. Desp.'!P41," - ",'2.2 PC. Desp.'!Q41) -> - | J45: =CONCATENATE('2.2 PC. Desp.'!S41," - ",'2.2 PC. Desp.'!T41) -> - | K45: =CONCATENATE('2.2 PC. Desp.'!V41," - ",'2.2 PC. Desp.'!W41) -> - | L45: =CONCATENATE('2.2 PC. Desp.'!Y41," - ",'2.2 PC. Desp.'!Z41) -> - | M45: =CONCATENATE('2.3 PC. Transf.'!A41," - ",'2.3 PC. Transf.'!B41) -> - | N45: =CONCATENATE('2.3 PC. Transf.'!D41," - ",'2.3 PC. Transf.'!E41) -> -
A46: =CONCATENATE('2.1 PC Rec.'!A42," - ",'2.1 PC Rec.'!B42) -> - | B46: =CONCATENATE('2.1 PC Rec.'!D42," - ",'2.1 PC Rec.'!E42) -> - | C46: =CONCATENATE('2.1 PC Rec.'!G42," - ",'2.1 PC Rec.'!H42) -> - | D46: =CONCATENATE('2.2 PC. Desp.'!A42," - ",'2.2 PC. Desp.'!B42) -> - | E46: =CONCATENATE('2.2 PC. Desp.'!D42," - ",'2.2 PC. Desp.'!E42) -> - | F46: =CONCATENATE('2.2 PC. Desp.'!G42," - ",'2.2 PC. Desp.'!H42) -> - | G46: =CONCATENATE('2.2 PC. Desp.'!J42," - ",'2.2 PC. Desp.'!K42) -> - | H46: =CONCATENATE('2.2 PC. Desp.'!M42," - ",'2.2 PC. Desp.'!N42) -> - | I46: =CONCATENATE('2.2 PC. Desp.'!P42," - ",'2.2 PC. Desp.'!Q42) -> - | J46: =CONCATENATE('2.2 PC. Desp.'!S42," - ",'2.2 PC. Desp.'!T42) -> - | K46: =CONCATENATE('2.2 PC. Desp.'!V42," - ",'2.2 PC. Desp.'!W42) -> - | L46: =CONCATENATE('2.2 PC. Desp.'!Y42," - ",'2.2 PC. Desp.'!Z42) -> - | M46: =CONCATENATE('2.3 PC. Transf.'!A42," - ",'2.3 PC. Transf.'!B42) -> - | N46: =CONCATENATE('2.3 PC. Transf.'!D42," - ",'2.3 PC. Transf.'!E42) -> -
A47: =CONCATENATE('2.1 PC Rec.'!A43," - ",'2.1 PC Rec.'!B43) -> - | B47: =CONCATENATE('2.1 PC Rec.'!D43," - ",'2.1 PC Rec.'!E43) -> - | C47: =CONCATENATE('2.1 PC Rec.'!G43," - ",'2.1 PC Rec.'!H43) -> - | D47: =CONCATENATE('2.2 PC. Desp.'!A43," - ",'2.2 PC. Desp.'!B43) -> - | E47: =CONCATENATE('2.2 PC. Desp.'!D43," - ",'2.2 PC. Desp.'!E43) -> - | F47: =CONCATENATE('2.2 PC. Desp.'!G43," - ",'2.2 PC. Desp.'!H43) -> - | G47: =CONCATENATE('2.2 PC. Desp.'!J43," - ",'2.2 PC. Desp.'!K43) -> - | H47: =CONCATENATE('2.2 PC. Desp.'!M43," - ",'2.2 PC. Desp.'!N43) -> - | I47: =CONCATENATE('2.2 PC. Desp.'!P43," - ",'2.2 PC. Desp.'!Q43) -> - | J47: =CONCATENATE('2.2 PC. Desp.'!S43," - ",'2.2 PC. Desp.'!T43) -> - | K47: =CONCATENATE('2.2 PC. Desp.'!V43," - ",'2.2 PC. Desp.'!W43) -> - | L47: =CONCATENATE('2.2 PC. Desp.'!Y43," - ",'2.2 PC. Desp.'!Z43) -> - | M47: =CONCATENATE('2.3 PC. Transf.'!A43," - ",'2.3 PC. Transf.'!B43) -> - | N47: =CONCATENATE('2.3 PC. Transf.'!D43," - ",'2.3 PC. Transf.'!E43) -> -
A48: =CONCATENATE('2.1 PC Rec.'!A44," - ",'2.1 PC Rec.'!B44) -> - | B48: =CONCATENATE('2.1 PC Rec.'!D44," - ",'2.1 PC Rec.'!E44) -> - | C48: =CONCATENATE('2.1 PC Rec.'!G44," - ",'2.1 PC Rec.'!H44) -> - | D48: =CONCATENATE('2.2 PC. Desp.'!A44," - ",'2.2 PC. Desp.'!B44) -> - | E48: =CONCATENATE('2.2 PC. Desp.'!D44," - ",'2.2 PC. Desp.'!E44) -> - | F48: =CONCATENATE('2.2 PC. Desp.'!G44," - ",'2.2 PC. Desp.'!H44) -> - | G48: =CONCATENATE('2.2 PC. Desp.'!J44," - ",'2.2 PC. Desp.'!K44) -> - | H48: =CONCATENATE('2.2 PC. Desp.'!M44," - ",'2.2 PC. Desp.'!N44) -> - | I48: =CONCATENATE('2.2 PC. Desp.'!P44," - ",'2.2 PC. Desp.'!Q44) -> - | J48: =CONCATENATE('2.2 PC. Desp.'!S44," - ",'2.2 PC. Desp.'!T44) -> - | K48: =CONCATENATE('2.2 PC. Desp.'!V44," - ",'2.2 PC. Desp.'!W44) -> - | L48: =CONCATENATE('2.2 PC. Desp.'!Y44," - ",'2.2 PC. Desp.'!Z44) -> - | M48: =CONCATENATE('2.3 PC. Transf.'!A44," - ",'2.3 PC. Transf.'!B44) -> - | N48: =CONCATENATE('2.3 PC. Transf.'!D44," - ",'2.3 PC. Transf.'!E44) -> -
A49: =CONCATENATE('2.1 PC Rec.'!A45," - ",'2.1 PC Rec.'!B45) -> - | B49: =CONCATENATE('2.1 PC Rec.'!D45," - ",'2.1 PC Rec.'!E45) -> - | C49: =CONCATENATE('2.1 PC Rec.'!G45," - ",'2.1 PC Rec.'!H45) -> - | D49: =CONCATENATE('2.2 PC. Desp.'!A45," - ",'2.2 PC. Desp.'!B45) -> - | E49: =CONCATENATE('2.2 PC. Desp.'!D45," - ",'2.2 PC. Desp.'!E45) -> - | F49: =CONCATENATE('2.2 PC. Desp.'!G45," - ",'2.2 PC. Desp.'!H45) -> - | G49: =CONCATENATE('2.2 PC. Desp.'!J45," - ",'2.2 PC. Desp.'!K45) -> - | H49: =CONCATENATE('2.2 PC. Desp.'!M45," - ",'2.2 PC. Desp.'!N45) -> - | I49: =CONCATENATE('2.2 PC. Desp.'!P45," - ",'2.2 PC. Desp.'!Q45) -> - | J49: =CONCATENATE('2.2 PC. Desp.'!S45," - ",'2.2 PC. Desp.'!T45) -> - | K49: =CONCATENATE('2.2 PC. Desp.'!V45," - ",'2.2 PC. Desp.'!W45) -> - | L49: =CONCATENATE('2.2 PC. Desp.'!Y45," - ",'2.2 PC. Desp.'!Z45) -> - | M49: =CONCATENATE('2.3 PC. Transf.'!A45," - ",'2.3 PC. Transf.'!B45) -> - | N49: =CONCATENATE('2.3 PC. Transf.'!D45," - ",'2.3 PC. Transf.'!E45) -> -
A50: =CONCATENATE('2.1 PC Rec.'!A46," - ",'2.1 PC Rec.'!B46) -> - | B50: =CONCATENATE('2.1 PC Rec.'!D46," - ",'2.1 PC Rec.'!E46) -> - | C50: =CONCATENATE('2.1 PC Rec.'!G46," - ",'2.1 PC Rec.'!H46) -> - | D50: =CONCATENATE('2.2 PC. Desp.'!A46," - ",'2.2 PC. Desp.'!B46) -> - | E50: =CONCATENATE('2.2 PC. Desp.'!D46," - ",'2.2 PC. Desp.'!E46) -> - | F50: =CONCATENATE('2.2 PC. Desp.'!G46," - ",'2.2 PC. Desp.'!H46) -> - | G50: =CONCATENATE('2.2 PC. Desp.'!J46," - ",'2.2 PC. Desp.'!K46) -> - | H50: =CONCATENATE('2.2 PC. Desp.'!M46," - ",'2.2 PC. Desp.'!N46) -> - | I50: =CONCATENATE('2.2 PC. Desp.'!P46," - ",'2.2 PC. Desp.'!Q46) -> - | J50: =CONCATENATE('2.2 PC. Desp.'!S46," - ",'2.2 PC. Desp.'!T46) -> - | K50: =CONCATENATE('2.2 PC. Desp.'!V46," - ",'2.2 PC. Desp.'!W46) -> - | L50: =CONCATENATE('2.2 PC. Desp.'!Y46," - ",'2.2 PC. Desp.'!Z46) -> - | M50: =CONCATENATE('2.3 PC. Transf.'!A46," - ",'2.3 PC. Transf.'!B46) -> - | N50: =CONCATENATE('2.3 PC. Transf.'!D46," - ",'2.3 PC. Transf.'!E46) -> -
A51: =CONCATENATE('2.1 PC Rec.'!A47," - ",'2.1 PC Rec.'!B47) -> - | B51: =CONCATENATE('2.1 PC Rec.'!D47," - ",'2.1 PC Rec.'!E47) -> - | C51: =CONCATENATE('2.1 PC Rec.'!G47," - ",'2.1 PC Rec.'!H47) -> - | D51: =CONCATENATE('2.2 PC. Desp.'!A47," - ",'2.2 PC. Desp.'!B47) -> - | E51: =CONCATENATE('2.2 PC. Desp.'!D47," - ",'2.2 PC. Desp.'!E47) -> - | F51: =CONCATENATE('2.2 PC. Desp.'!G47," - ",'2.2 PC. Desp.'!H47) -> - | G51: =CONCATENATE('2.2 PC. Desp.'!J47," - ",'2.2 PC. Desp.'!K47) -> - | H51: =CONCATENATE('2.2 PC. Desp.'!M47," - ",'2.2 PC. Desp.'!N47) -> - | I51: =CONCATENATE('2.2 PC. Desp.'!P47," - ",'2.2 PC. Desp.'!Q47) -> - | J51: =CONCATENATE('2.2 PC. Desp.'!S47," - ",'2.2 PC. Desp.'!T47) -> - | K51: =CONCATENATE('2.2 PC. Desp.'!V47," - ",'2.2 PC. Desp.'!W47) -> - | L51: =CONCATENATE('2.2 PC. Desp.'!Y47," - ",'2.2 PC. Desp.'!Z47) -> - | M51: =CONCATENATE('2.3 PC. Transf.'!A47," - ",'2.3 PC. Transf.'!B47) -> - | N51: =CONCATENATE('2.3 PC. Transf.'!D47," - ",'2.3 PC. Transf.'!E47) -> -
A52: =CONCATENATE('2.1 PC Rec.'!A48," - ",'2.1 PC Rec.'!B48) -> - | B52: =CONCATENATE('2.1 PC Rec.'!D48," - ",'2.1 PC Rec.'!E48) -> - | C52: =CONCATENATE('2.1 PC Rec.'!G48," - ",'2.1 PC Rec.'!H48) -> - | D52: =CONCATENATE('2.2 PC. Desp.'!A48," - ",'2.2 PC. Desp.'!B48) -> - | E52: =CONCATENATE('2.2 PC. Desp.'!D48," - ",'2.2 PC. Desp.'!E48) -> - | F52: =CONCATENATE('2.2 PC. Desp.'!G48," - ",'2.2 PC. Desp.'!H48) -> - | G52: =CONCATENATE('2.2 PC. Desp.'!J48," - ",'2.2 PC. Desp.'!K48) -> - | H52: =CONCATENATE('2.2 PC. Desp.'!M48," - ",'2.2 PC. Desp.'!N48) -> - | I52: =CONCATENATE('2.2 PC. Desp.'!P48," - ",'2.2 PC. Desp.'!Q48) -> - | J52: =CONCATENATE('2.2 PC. Desp.'!S48," - ",'2.2 PC. Desp.'!T48) -> - | K52: =CONCATENATE('2.2 PC. Desp.'!V48," - ",'2.2 PC. Desp.'!W48) -> - | L52: =CONCATENATE('2.2 PC. Desp.'!Y48," - ",'2.2 PC. Desp.'!Z48) -> - | M52: =CONCATENATE('2.3 PC. Transf.'!A48," - ",'2.3 PC. Transf.'!B48) -> - | N52: =CONCATENATE('2.3 PC. Transf.'!D48," - ",'2.3 PC. Transf.'!E48) -> -
A53: =CONCATENATE('2.1 PC Rec.'!A49," - ",'2.1 PC Rec.'!B49) -> - | B53: =CONCATENATE('2.1 PC Rec.'!D49," - ",'2.1 PC Rec.'!E49) -> - | C53: =CONCATENATE('2.1 PC Rec.'!G49," - ",'2.1 PC Rec.'!H49) -> - | D53: =CONCATENATE('2.2 PC. Desp.'!A49," - ",'2.2 PC. Desp.'!B49) -> - | E53: =CONCATENATE('2.2 PC. Desp.'!D49," - ",'2.2 PC. Desp.'!E49) -> - | F53: =CONCATENATE('2.2 PC. Desp.'!G49," - ",'2.2 PC. Desp.'!H49) -> - | G53: =CONCATENATE('2.2 PC. Desp.'!J49," - ",'2.2 PC. Desp.'!K49) -> - | H53: =CONCATENATE('2.2 PC. Desp.'!M49," - ",'2.2 PC. Desp.'!N49) -> - | I53: =CONCATENATE('2.2 PC. Desp.'!P49," - ",'2.2 PC. Desp.'!Q49) -> - | J53: =CONCATENATE('2.2 PC. Desp.'!S49," - ",'2.2 PC. Desp.'!T49) -> - | K53: =CONCATENATE('2.2 PC. Desp.'!V49," - ",'2.2 PC. Desp.'!W49) -> - | L53: =CONCATENATE('2.2 PC. Desp.'!Y49," - ",'2.2 PC. Desp.'!Z49) -> - | M53: =CONCATENATE('2.3 PC. Transf.'!A49," - ",'2.3 PC. Transf.'!B49) -> - | N53: =CONCATENATE('2.3 PC. Transf.'!D49," - ",'2.3 PC. Transf.'!E49) -> -
A54: =CONCATENATE('2.1 PC Rec.'!A50," - ",'2.1 PC Rec.'!B50) -> - | B54: =CONCATENATE('2.1 PC Rec.'!D50," - ",'2.1 PC Rec.'!E50) -> - | C54: =CONCATENATE('2.1 PC Rec.'!G50," - ",'2.1 PC Rec.'!H50) -> - | D54: =CONCATENATE('2.2 PC. Desp.'!A50," - ",'2.2 PC. Desp.'!B50) -> - | E54: =CONCATENATE('2.2 PC. Desp.'!D50," - ",'2.2 PC. Desp.'!E50) -> - | F54: =CONCATENATE('2.2 PC. Desp.'!G50," - ",'2.2 PC. Desp.'!H50) -> - | G54: =CONCATENATE('2.2 PC. Desp.'!J50," - ",'2.2 PC. Desp.'!K50) -> - | H54: =CONCATENATE('2.2 PC. Desp.'!M50," - ",'2.2 PC. Desp.'!N50) -> - | I54: =CONCATENATE('2.2 PC. Desp.'!P50," - ",'2.2 PC. Desp.'!Q50) -> - | J54: =CONCATENATE('2.2 PC. Desp.'!S50," - ",'2.2 PC. Desp.'!T50) -> - | K54: =CONCATENATE('2.2 PC. Desp.'!V50," - ",'2.2 PC. Desp.'!W50) -> - | L54: =CONCATENATE('2.2 PC. Desp.'!Y50," - ",'2.2 PC. Desp.'!Z50) -> - | M54: =CONCATENATE('2.3 PC. Transf.'!A50," - ",'2.3 PC. Transf.'!B50) -> - | N54: =CONCATENATE('2.3 PC. Transf.'!D50," - ",'2.3 PC. Transf.'!E50) -> -
A55: =CONCATENATE('2.1 PC Rec.'!A51," - ",'2.1 PC Rec.'!B51) -> - | B55: =CONCATENATE('2.1 PC Rec.'!D51," - ",'2.1 PC Rec.'!E51) -> - | C55: =CONCATENATE('2.1 PC Rec.'!G51," - ",'2.1 PC Rec.'!H51) -> - | D55: =CONCATENATE('2.2 PC. Desp.'!A51," - ",'2.2 PC. Desp.'!B51) -> - | E55: =CONCATENATE('2.2 PC. Desp.'!D51," - ",'2.2 PC. Desp.'!E51) -> - | F55: =CONCATENATE('2.2 PC. Desp.'!G51," - ",'2.2 PC. Desp.'!H51) -> - | G55: =CONCATENATE('2.2 PC. Desp.'!J51," - ",'2.2 PC. Desp.'!K51) -> - | H55: =CONCATENATE('2.2 PC. Desp.'!M51," - ",'2.2 PC. Desp.'!N51) -> - | I55: =CONCATENATE('2.2 PC. Desp.'!P51," - ",'2.2 PC. Desp.'!Q51) -> - | J55: =CONCATENATE('2.2 PC. Desp.'!S51," - ",'2.2 PC. Desp.'!T51) -> - | K55: =CONCATENATE('2.2 PC. Desp.'!V51," - ",'2.2 PC. Desp.'!W51) -> - | L55: =CONCATENATE('2.2 PC. Desp.'!Y51," - ",'2.2 PC. Desp.'!Z51) -> - | M55: =CONCATENATE('2.3 PC. Transf.'!A51," - ",'2.3 PC. Transf.'!B51) -> - | N55: =CONCATENATE('2.3 PC. Transf.'!D51," - ",'2.3 PC. Transf.'!E51) -> -
A56: =CONCATENATE('2.1 PC Rec.'!A52," - ",'2.1 PC Rec.'!B52) -> - | B56: =CONCATENATE('2.1 PC Rec.'!D52," - ",'2.1 PC Rec.'!E52) -> - | C56: =CONCATENATE('2.1 PC Rec.'!G52," - ",'2.1 PC Rec.'!H52) -> - | D56: =CONCATENATE('2.2 PC. Desp.'!A52," - ",'2.2 PC. Desp.'!B52) -> - | E56: =CONCATENATE('2.2 PC. Desp.'!D52," - ",'2.2 PC. Desp.'!E52) -> - | F56: =CONCATENATE('2.2 PC. Desp.'!G52," - ",'2.2 PC. Desp.'!H52) -> - | G56: =CONCATENATE('2.2 PC. Desp.'!J52," - ",'2.2 PC. Desp.'!K52) -> - | H56: =CONCATENATE('2.2 PC. Desp.'!M52," - ",'2.2 PC. Desp.'!N52) -> - | I56: =CONCATENATE('2.2 PC. Desp.'!P52," - ",'2.2 PC. Desp.'!Q52) -> - | J56: =CONCATENATE('2.2 PC. Desp.'!S52," - ",'2.2 PC. Desp.'!T52) -> - | K56: =CONCATENATE('2.2 PC. Desp.'!V52," - ",'2.2 PC. Desp.'!W52) -> - | L56: =CONCATENATE('2.2 PC. Desp.'!Y52," - ",'2.2 PC. Desp.'!Z52) -> - | M56: =CONCATENATE('2.3 PC. Transf.'!A52," - ",'2.3 PC. Transf.'!B52) -> - | N56: =CONCATENATE('2.3 PC. Transf.'!D52," - ",'2.3 PC. Transf.'!E52) -> -
A57: =CONCATENATE('2.1 PC Rec.'!A53," - ",'2.1 PC Rec.'!B53) -> - | B57: =CONCATENATE('2.1 PC Rec.'!D53," - ",'2.1 PC Rec.'!E53) -> - | C57: =CONCATENATE('2.1 PC Rec.'!G53," - ",'2.1 PC Rec.'!H53) -> - | D57: =CONCATENATE('2.2 PC. Desp.'!A53," - ",'2.2 PC. Desp.'!B53) -> - | E57: =CONCATENATE('2.2 PC. Desp.'!D53," - ",'2.2 PC. Desp.'!E53) -> - | F57: =CONCATENATE('2.2 PC. Desp.'!G53," - ",'2.2 PC. Desp.'!H53) -> - | G57: =CONCATENATE('2.2 PC. Desp.'!J53," - ",'2.2 PC. Desp.'!K53) -> - | H57: =CONCATENATE('2.2 PC. Desp.'!M53," - ",'2.2 PC. Desp.'!N53) -> - | I57: =CONCATENATE('2.2 PC. Desp.'!P53," - ",'2.2 PC. Desp.'!Q53) -> - | J57: =CONCATENATE('2.2 PC. Desp.'!S53," - ",'2.2 PC. Desp.'!T53) -> - | K57: =CONCATENATE('2.2 PC. Desp.'!V53," - ",'2.2 PC. Desp.'!W53) -> - | L57: =CONCATENATE('2.2 PC. Desp.'!Y53," - ",'2.2 PC. Desp.'!Z53) -> - | M57: =CONCATENATE('2.3 PC. Transf.'!A53," - ",'2.3 PC. Transf.'!B53) -> - | N57: =CONCATENATE('2.3 PC. Transf.'!D53," - ",'2.3 PC. Transf.'!E53) -> -
A58: =CONCATENATE('2.1 PC Rec.'!A54," - ",'2.1 PC Rec.'!B54) -> - | B58: =CONCATENATE('2.1 PC Rec.'!D54," - ",'2.1 PC Rec.'!E54) -> - | C58: =CONCATENATE('2.1 PC Rec.'!G54," - ",'2.1 PC Rec.'!H54) -> - | D58: =CONCATENATE('2.2 PC. Desp.'!A54," - ",'2.2 PC. Desp.'!B54) -> - | E58: =CONCATENATE('2.2 PC. Desp.'!D54," - ",'2.2 PC. Desp.'!E54) -> - | F58: =CONCATENATE('2.2 PC. Desp.'!G54," - ",'2.2 PC. Desp.'!H54) -> - | G58: =CONCATENATE('2.2 PC. Desp.'!J54," - ",'2.2 PC. Desp.'!K54) -> - | H58: =CONCATENATE('2.2 PC. Desp.'!M54," - ",'2.2 PC. Desp.'!N54) -> - | I58: =CONCATENATE('2.2 PC. Desp.'!P54," - ",'2.2 PC. Desp.'!Q54) -> - | J58: =CONCATENATE('2.2 PC. Desp.'!S54," - ",'2.2 PC. Desp.'!T54) -> - | K58: =CONCATENATE('2.2 PC. Desp.'!V54," - ",'2.2 PC. Desp.'!W54) -> - | L58: =CONCATENATE('2.2 PC. Desp.'!Y54," - ",'2.2 PC. Desp.'!Z54) -> - | M58: =CONCATENATE('2.3 PC. Transf.'!A54," - ",'2.3 PC. Transf.'!B54) -> - | N58: =CONCATENATE('2.3 PC. Transf.'!D54," - ",'2.3 PC. Transf.'!E54) -> -
A59: =CONCATENATE('2.1 PC Rec.'!A55," - ",'2.1 PC Rec.'!B55) -> - | B59: =CONCATENATE('2.1 PC Rec.'!D55," - ",'2.1 PC Rec.'!E55) -> - | C59: =CONCATENATE('2.1 PC Rec.'!G55," - ",'2.1 PC Rec.'!H55) -> - | D59: =CONCATENATE('2.2 PC. Desp.'!A55," - ",'2.2 PC. Desp.'!B55) -> - | E59: =CONCATENATE('2.2 PC. Desp.'!D55," - ",'2.2 PC. Desp.'!E55) -> - | F59: =CONCATENATE('2.2 PC. Desp.'!G55," - ",'2.2 PC. Desp.'!H55) -> - | G59: =CONCATENATE('2.2 PC. Desp.'!J55," - ",'2.2 PC. Desp.'!K55) -> - | H59: =CONCATENATE('2.2 PC. Desp.'!M55," - ",'2.2 PC. Desp.'!N55) -> - | I59: =CONCATENATE('2.2 PC. Desp.'!P55," - ",'2.2 PC. Desp.'!Q55) -> - | J59: =CONCATENATE('2.2 PC. Desp.'!S55," - ",'2.2 PC. Desp.'!T55) -> - | K59: =CONCATENATE('2.2 PC. Desp.'!V55," - ",'2.2 PC. Desp.'!W55) -> - | L59: =CONCATENATE('2.2 PC. Desp.'!Y55," - ",'2.2 PC. Desp.'!Z55) -> - | M59: =CONCATENATE('2.3 PC. Transf.'!A55," - ",'2.3 PC. Transf.'!B55) -> - | N59: =CONCATENATE('2.3 PC. Transf.'!D55," - ",'2.3 PC. Transf.'!E55) -> -

Sheet 2.1 PC Rec.
A3: Entradas
A5: 1.01 | B5: Receita de vendas | D5: 1.02 | E5: Receitas financeiras | G5: 1.03 | H5: Outras entradas
A6: 1.01.01 | B6: CEPA | D6: 1.02.01 | E6: Rendimentos | G6: 1.03.01 | H6: Receita não identificada
A7: 1.01.02 | B7: GAC | D7: 1.02.02 | E7: Estorno | G7: 1.03.02 | H7: Estorno de pagamento
A8: 1.01.03 | B8: RE | D8: 1.02.03 | G8: 1.03.03 | H8: Aporte de capital
A9: 1.01.04 | B9: ECT | D9: 1.02.04 | G9: 1.03.04 | H9: Empréstimo contratato
A10: 1.01.05 | D10: 1.02.05 | G10: 1.03.05 | H10: Reembolso Cliente
A11: 1.01.06 | D11: 1.02.06 | G11: 1.03.06 | H11: Transferencia entre contas
A12: 1.01.07 | D12: 1.02.07 | G12: 1.03.07 | H12: Crédito Imposto
A13: 1.01.08 | D13: 1.02.08 | G13: 1.03.08
A14: 1.01.09 | D14: 1.02.09 | G14: 1.03.09
A15: 1.01.10 | D15: 1.02.10 | G15: 1.03.10
A16: 1.01.11 | D16: 1.02.11 | G16: 1.03.11
A17: 1.01.12 | D17: 1.02.12 | G17: 1.03.12
A18: 1.01.13 | D18: 1.02.13 | G18: 1.03.13
A19: 1.01.14 | D19: 1.02.14 | G19: 1.03.14
A20: 1.01.15 | D20: 1.02.15 | G20: 1.03.15
A21: 1.01.16 | D21: 1.02.16 | G21: 1.03.16

Sheet 2.2 PC. Desp.
A3: Saídas
A5: 2.01 | B5: Despesa Operacional | D5: 2.02 | E5: Despesa com pessoal | G5: 2.03 | H5: Despesas comerciais | J5: 2.04 | K5: Despesas administrativas | M5: 2.05 | N5: Despesas financeiras | P5: 2.06 | Q5: Impostos | S5: 2.07 | T5: Investimentos | V5: 2.08 | W5: Retirada de sócios | Y5: 2.09 | Z5: Outras saídas
A6: 2.01.01 | B6: Materiais de Consumo | D6: 2.02.01 | E6: Pró labore | G6: 2.03.01 | H6: Comissões | J6: 2.04.01 | K6: Aluguel | M6: 2.05.01 | N6: Despesas bancárias | P6: 2.06.01 | Q6: DAS | S6: 2.07.01 | T6: TI | V6: 2.08.01 | W6: Distribuição de Lucros | Y6: 2.09.01 | Z6: Pagamento indevido
A7: 2.01.02 | B7: Fretes e Carretos | D7: 2.02.02 | E7: Salário mensal | G7: 2.03.02 | H7: Institucional | J7: 2.04.02 | K7: Materiais de escritório | M7: 2.05.02 | N7: Juros e multas | P7: 2.06.02 | Q7: Pis / Cofins | S7: 2.07.02 | V7: 2.08.02 | W7: Mensal | Y7: 2.09.02 | Z7: Devolução de estorno
A8: 2.01.03 | B8: Serviços de Terceiros | D8: 2.02.03 | E8: 13º salário | G8: 2.03.03 | H8: Reuniões / Visitas | J8: 2.04.03 | K8: Contas de Consumo | M8: 2.05.03 | P8: 2.06.03 | Q8: IR/CS | S8: 2.07.03 | V8: 2.08.03 | Y8: 2.09.03 | Z8: Dev. de aporte de capital
A9: 2.01.04 | D9: 2.02.04 | E9: Horas extras | G9: 2.03.04 | H9: Propostas | J9: 2.04.04 | K9: Assessoria Jurídica / Despachante | M9: 2.05.04 | P9: 2.06.04 | Q9: Imp. Retidos Fornecedores | S9: 2.07.04 | V9: 2.08.04 | Y9: 2.09.04 | Z9: Pagamento empréstimos
A10: 2.01.05 | D10: 2.02.05 | E10: Férias | G10: 2.03.05 | J10: 2.04.05 | K10: Contabilidade | M10: 2.05.05 | P10: 2.06.05 | S10: 2.07.05 | V10: 2.08.05 | Y10: 2.09.05 | Z10: Transferencia entre contas
A11: 2.01.06 | D11: 2.02.06 | E11: Assistência médica | G11: 2.03.06 | J11: 2.04.06 | K11: Seguros | M11: 2.05.06 | P11: 2.06.06 | S11: 2.07.06 | V11: 2.08.06 | Y11: 2.09.06
A12: 2.01.07 | D12: 2.02.07 | G12: 2.03.07 | J12: 2.04.07 | K12: Portador | M12: 2.05.07 | P12: 2.06.07 | S12: 2.07.07 | V12: 2.08.07 | Y12: 2.09.07
A13: 2.01.08 | D13: 2.02.08 | G13: 2.03.08 | J13: 2.04.08 | K13: Cartório | M13: 2.05.08 | P13: 2.06.08 | S13: 2.07.08 | V13: 2.08.08 | Y13: 2.09.08
A14: 2.01.09 | D14: 2.02.09 | G14: 2.03.09 | J14: 2.04.09 | K14: Informatica | M14: 2.05.09 | P14: 2.06.09 | S14: 2.07.09 | V14: 2.08.09 | Y14: 2.09.09
A15: 2.01.10 | D15: 2.02.10 | G15: 2.03.10 | J15: 2.04.10 | K15: Taxas | M15: 2.05.10 | P15: 2.06.10 | S15: 2.07.10 | V15: 2.08.10 | Y15: 2.09.10
A16: 2.01.11 | D16: 2.02.11 | G16: 2.03.11 | J16: 2.04.11 | K16: Confraternizações | M16: 2.05.11 | P16: 2.06.11 | S16: 2.07.11 | V16: 2.08.11 | Y16: 2.09.11
A17: 2.01.12 | D17: 2.02.12 | G17: 2.03.12 | J17: 2.04.12 | K17: Outras Despesas | M17: 2.05.12 | P17: 2.06.12 | S17: 2.07.12 | V17: 2.08.12 | Y17: 2.09.12
A18: 2.01.13 | D18: 2.02.13 | G18: 2.03.13 | J18: 2.04.13 | M18: 2.05.13 | P18: 2.06.13 | S18: 2.07.13 | V18: 2.08.13 | Y18: 2.09.13
A19: 2.01.14 | D19: 2.02.14 | G19: 2.03.14 | J19: 2.04.14 | M19: 2.05.14 | P19: 2.06.14 | S19: 2.07.14 | V19: 2.08.14 | Y19: 2.09.14
A20: 2.01.15 | D20: 2.02.15 | G20: 2.03.15 | J20: 2.04.15 | M20: 2.05.15 | P20: 2.06.15 | S20: 2.07.15 | V20: 2.08.15 | Y20: 2.09.15
A21: 2.01.16 | D21: 2.02.16 | G21: 2.03.16 | J21: 2.04.16 | M21: 2.05.16 | P21: 2.06.16 | S21: 2.07.16 | V21: 2.08.16 | Y21: 2.09.16
A22: 2.01.17 | D22: 2.02.17 | G22: 2.03.17 | J22: 2.04.17 | M22: 2.05.17 | P22: 2.06.17 | S22: 2.07.17 | V22: 2.08.17 | Y22: 2.09.17
A23: 2.01.18 | D23: 2.02.18 | G23: 2.03.18 | J23: 2.04.18 | M23: 2.05.18 | P23: 2.06.18 | S23: 2.07.18 | V23: 2.08.18 | Y23: 2.09.18
A24: 2.01.19 | D24: 2.02.19 | G24: 2.03.19 | J24: 2.04.19 | M24: 2.05.19 | P24: 2.06.19 | S24: 2.07.19 | V24: 2.08.19 | Y24: 2.09.19
A25: 2.01.20 | D25: 2.02.20 | G25: 2.03.20 | J25: 2.04.20 | M25: 2.05.20 | P25: 2.06.20 | S25: 2.07.20 | V25: 2.08.20 | Y25: 2.09.20
A26: 2.01.21 | D26: 2.02.21 | G26: 2.03.21 | J26: 2.04.21 | M26: 2.05.21 | P26: 2.06.21 | S26: 2.07.21 | V26: 2.08.21 | Y26: 2.09.21
A27: 2.01.22 | D27: 2.02.22 | G27: 2.03.22 | J27: 2.04.22 | M27: 2.05.22 | P27: 2.06.22 | S27: 2.07.22 | V27: 2.08.22 | Y27: 2.09.22
A28: 2.01.23 | D28: 2.02.23 | G28: 2.03.23 | J28: 2.04.23 | M28: 2.05.23 | P28: 2.06.23 | S28: 2.07.23 | V28: 2.08.23 | Y28: 2.09.23
A29: 2.01.24 | D29: 2.02.24 | G29: 2.03.24 | J29: 2.04.24 | M29: 2.05.24 | P29: 2.06.24 | S29: 2.07.24 | V29: 2.08.24 | Y29: 2.09.24
A30: 2.01.25 | D30: 2.02.25 | G30: 2.03.25 | J30: 2.04.25 | M30: 2.05.25 | P30: 2.06.25 | S30: 2.07.25 | V30: 2.08.25 | Y30: 2.09.25
A31: 2.01.26 | D31: 2.02.26 | G31: 2.03.26 | J31: 2.04.26 | M31: 2.05.26 | P31: 2.06.26 | S31: 2.07.26 | V31: 2.08.26 | Y31: 2.09.26
A32: 2.01.27 | D32: 2.02.27 | G32: 2.03.27 | J32: 2.04.27 | M32: 2.05.27 | P32: 2.06.27 | S32: 2.07.27 | V32: 2.08.27 | Y32: 2.09.27
A33: 2.01.28 | D33: 2.02.28 | G33: 2.03.28 | J33: 2.04.28 | M33: 2.05.28 | P33: 2.06.28 | S33: 2.07.28 | V33: 2.08.28 | Y33: 2.09.28
A34: 2.01.29 | D34: 2.02.29 | G34: 2.03.29 | J34: 2.04.29 | M34: 2.05.29 | P34: 2.06.29 | S34: 2.07.29 | V34: 2.08.29 | Y34: 2.09.29
A35: 2.01.30 | D35: 2.02.30 | G35: 2.03.30 | J35: 2.04.30 | M35: 2.05.30 | P35: 2.06.30 | S35: 2.07.30 | V35: 2.08.30 | Y35: 2.09.30

Sheet 2.3 PC. Transf.
A3: Transferências
A5: 3.01 | B5: TRANSFERÊNCIAS (CRÉDITO) | D5: 3.02 | E5: TRANSFERÊNCIAS (DÉBITO)
A6: 3.01.01 | D6: 3.02.01
A7: 3.01.02 | D7: 3.02.02
A8: 3.01.03 | D8: 3.02.03
A9: 3.01.04 | D9: 3.02.04
A10: 3.01.05 | D10: 3.02.05
A11: 3.01.06 | D11: 3.02.06
A12: 3.01.07 | D12: 3.02.07
A13: 3.01.08 | D13: 3.02.08
A14: 3.01.09 | D14: 3.02.09
A15: 3.01.10 | D15: 3.02.10
A16: 3.01.11 | D16: 3.02.11
A17: 3.01.12 | D17: 3.02.12
A18: 3.01.13 | D18: 3.02.13
A19: 3.01.14 | D19: 3.02.14
A20: 3.01.15 | D20: 3.02.15
A21: 3.01.16 | D21: 3.02.16

Sheet 2.4 PC. Contas
A3: Rescursos Financeiros | D3: Defina a data de início do controle: | E3: Mês | G3: Ano | I3: =DATE($G$4,VLOOKUP($E$4,Validações!$N:$O,2,FALSE),1) -> 2017-01-01
E4: Janeiro | G4: 2017
A6: Id | B6: Tipo | C6: Identificação | D6: Instituição | E6: Agência | F6: Conta | G6: =CONCATENATE("Saldo em ",TEXT($I$3,"dd/mm/aa")) -> Saldo em 01/01/17 | I6: Tipo existentes
A7: 4.01 | C7: Itau | D7: Itau (341) | E7: 1223 | F7: 123456-6 | G7: 9548.74 | I7: Caixa
A8: 4.02 | C8: Santander | D8: Santander (033) | E8: 2345 | F8: 4567898-9 | I8: Conta Corrente
A9: 4.03 | I9: Conta Poupança
A10: 4.04 | I10: Cartão de Crédito
A11: 4.05 | I11: Investimento

Sheet 2.5 PC. C. Custo
A3: Centro de custo
A5: 5.01 | B5: Centro de Custo | C5: Descrição (opcional) | D5: Nomenclatura
A6: 5.01.01 | B6: Sócios | D6: =A6&" - "&B6 -> 5.01.01 - Sócios
A7: 5.01.02 | B7: Administrativo | D7: =A7&" - "&B7 -> 5.01.02 - Administrativo
A8: 5.01.03 | B8: Argo | D8: 5.01.03 - Argo
A9: 5.01.04 | B9: PJI | C9: Estudo de Viabilidade | D9: 5.01.04 - PJI
A10: 5.01.05 | B10: Downstream | D10: 5.01.05 - Downstream
A11: 5.01.06 | B11: AF 233/17 | D11: 5.01.06 - AF 233/17
A12: 5.01.07 | B12: ET 589 | D12: 5.01.07 - ET 589
A13: 5.01.08 | B13: PPSJI | C13: Estudo de Viabilidade | D13: 5.01.08 - PPSJI
A14: 5.01.09 | B14: PSB | D14: 5.01.09 - PSB
A15: 5.01.10 | D15: 5.01.10 -
A16: 5.01.11 | D16: 5.01.11 -
A17: 5.01.12 | D17: 5.01.12 -
A18: 5.01.13 | D18: 5.01.13 -
A19: 5.01.14 | D19: 5.01.14 -
A20: 5.01.15 | D20: 5.01.15 -
A21: 5.01.16 | D21: 5.01.16 -
A22: 5.01.17 | D22: 5.01.17 -
A23: 5.01.18 | D23: 5.01.18 -
A24: 5.01.19 | D24: 5.01.19 -
A25: 5.01.20 | D25: 5.01.20 -
A26: 5.01.21 | D26: 5.01.21 -
A27: 5.01.22 | D27: 5.01.22 -
A28: 5.01.23 | D28: 5.01.23 -
A29: 5.01.24 | D29: 5.01.24 -
A30: 5.01.25 | D30: 5.01.25 -
A31: 5.01.26 | D31: 5.01.26 -
A32: 5.01.27 | D32: 5.01.27 -
A33: 5.01.28 | D33: 5.01.28 -
A34: 5.01.29 | D34: 5.01.29 -
A35: 5.01.30 | D35: 5.01.30 -
A36: 5.01.31 | D36: 5.01.31 -
A37: 5.01.32 | D37: 5.01.32 -
A38: 5.01.33 | D38: 5.01.33 -
A39: 5.01.34 | D39: 5.01.34 -
A40: 5.01.35 | D40: 5.01.35 -
A41: 5.01.36 | D41: 5.01.36 -
A42: 5.01.37 | D42: =A42&" - "&B42 -> 5.01.37 -
A43: 5.01.38 | D43: =A43&" - "&B43 -> 5.01.38 -
A44: 5.01.39 | D44: =A44&" - "&B44 -> 5.01.39 -
A45: 5.01.40 | D45: 5.01.40 -
A46: 5.01.41 | D46: =A46&" - "&B46 -> 5.01.41 -
A47: 5.01.42 | D47: 5.01.42 -
A48: 5.01.43 | D48: 5.01.43 -
A49: 5.01.44 | D49: 5.01.44 -
A50: 5.01.45 | D50: 5.01.45 -
A51: 5.01.46 | D51: 5.01.46 -
A52: 5.01.47 | D52: 5.01.47 -
A53: 5.01.48 | D53: 5.01.48 -
A54: 5.01.49 | D54: 5.01.49 -
A55: 5.01.50 | D55: 5.01.50 -
A56: 5.01.51 | D56: =A56&" - "&B56 -> 5.01.51 -
A57: 5.01.52 | D57: =A57&" - "&B57 -> 5.01.52 -
A58: 5.01.53 | D58: =A58&" - "&B58 -> 5.01.53 -
A59: 5.01.54 | D59: =A59&" - "&B59 -> 5.01.54 -
A60: 5.01.55 | D60: =A60&" - "&B60 -> 5.01.55 -
A61: 5.01.56 | D61: 5.01.56 -
A62: 5.01.57 | D62: 5.01.57 -
A63: 5.01.58 | D63: 5.01.58 -
A64: 5.01.59 | D64: 5.01.59 -
A65: 5.01.60 | D65: 5.01.60 -
A66: 5.01.61 | D66: 5.01.61 -
A67: 5.01.62 | D67: 5.01.62 -
A68: 5.01.63 | D68: 5.01.63 -
A69: 5.01.64 | D69: 5.01.64 -
A70: 5.01.65 | D70: 5.01.65 -
A71: 5.01.66 | D71: =A71&" - "&B71 -> 5.01.66 -
A72: 5.01.67 | D72: 5.01.67 -
A73: 5.01.68 | D73: 5.01.68 -
A74: 5.01.69 | D74: 5.01.69 -
A75: 5.01.70 | D75: 5.01.70 -
A76: 5.01.71 | D76: 5.01.71 -
A77: 5.01.72 | D77: 5.01.72 -
A78: 5.01.73 | D78: 5.01.73 -
A79: 5.01.74 | D79: 5.01.74 -
A80: 5.01.75 | D80: 5.01.75 -
A81: 5.01.76 | D81: 5.01.76 -
A82: 5.01.77 | D82: 5.01.77 -
A83: 5.01.78 | D83: 5.01.78 -
A84: 5.01.79 | D84: 5.01.79 -
A85: 5.01.80 | D85: 5.01.80 -
A86: 5.01.81 | D86: 5.01.81 -
A87: 5.01.82 | D87: 5.01.82 -
A88: 5.01.83 | D88: 5.01.83 -
A89: 5.01.84 | D89: 5.01.84 -
A90: 5.01.85 | D90: 5.01.85 -
A91: 5.01.86 | D91: 5.01.86 -
A92: 5.01.87 | D92: 5.01.87 -
A93: 5.01.88 | D93: 5.01.88 -
A94: 5.01.89 | D94: 5.01.89 -
A95: 5.01.90 | D95: 5.01.90 -
A96: 5.01.91 | D96: 5.01.91 -
A97: 5.01.92 | D97: 5.01.92 -
A98: 5.01.93 | D98: 5.01.93 -
A99: 5.01.94 | D99: 5.01.94 -
A100: 5.01.95 | D100: 5.01.95 -
A101: 5.01.96 | D101: 5.01.96 -
A102: 5.01.97 | D102: 5.01.97 -
A103: 5.01.98 | D103: 5.01.98 -
A104: 5.01.99 | D104: 5.01.99 -
A105: 5.01.100 | D105: 5.01.100 -

Sheet 2.6 PC. Cli. Fon.
A3: Clientes e Fornecedores
A5: 6.01 | B5: Clientes e Fornecedores | C5: Cliente / Fornecedor | D5: Descrição (opcional) | P5: 6.01 | Q5: Clientes e Fornecedores | R5: Cliente / Fornecedor | S5: Descrição (opcional)
A6: 6.01.159 | B6: AAAAAAA | C6: Fornecedor | Q6: =D3 -> 0
A7: 6.01.335 | B7: BBBBBBB | C7: Cliente
A8: 6.01.199 | B8: CCCCCCCC | C8: Fornecedor
A9: 6.01.95 | B9: DDDDDDDDDDDDD | C9: Fornecedor
A10: 6.01.252 | B10: EEEEEEEEEEEEEEEE | C10: Cliente
A11: 6.01.202 | B11: FFFFFFFFFFFFFFF | C11: Fornecedor
A12: 6.01.133 | B12: GGGGGGGGGGG | C12: Cliente
A13: 6.01.82 | B13: HHHHHHHHHHH | C13: Fornecedor
A14: 6.01.357 | B14: IIIIIIIIIIIIIIIIIIIIIIIII | C14: Cliente
A15: 6.01.330
A16: 6.01.327
A17: 6.01.304
A18: 6.01.01
A19: 6.01.172
A20: 6.01.02
A21: 6.01.321
A22: 6.01.91
A23: 6.01.204
A24: 6.01.61
A25: 6.01.63
A26: 6.01.322
A27: 6.01.108
A28: 6.01.214
A29: 6.01.111
A30: 6.01.345
A31: 6.01.285
A32: 6.01.188
A33: 6.01.308
A34: 6.01.150
A35: 6.01.50
A36: 6.01.130
A37: 6.01.196
A38: 6.01.236
A39: 6.01.250
A40: 6.01.93
A41: 6.01.80
A42: 6.01.187
A43: 6.01.216
A44: 6.01.65
A45: 6.01.316
A46: 6.01.329
A47: 6.01.03
A48: 6.01.343
A49: 6.01.189
A50: 6.01.269
A51: 6.01.230
A52: 6.01.138
A53: 6.01.263
A54: 6.01.275
A55: 6.01.84
A56: 6.01.71
A57: 6.01.72
A58: 6.01.04
A59: 6.01.289
A60: 6.01.60
A61: 6.01.120
A62: 6.01.137
A63: 6.01.56
A64: 6.01.143
A65: 6.01.140
A66: 6.01.336
A67: 6.01.323
A68: 6.01.05
A69: 6.01.06
A70: 6.01.162
A71: 6.01.174
A72: 6.01.211
A73: 6.01.152
A74: 6.01.317
A75: 6.01.07
A76: 6.01.135
A77: 6.01.255
A78: 6.01.124
A79: 6.01.178
A80: 6.01.311
A81: 6.01.55
A82: 6.01.271
A83: 6.01.08
A84: 6.01.09
A85: 6.01.98
A86: 6.01.238
A87: 6.01.222
A88: 6.01.276
A89: 6.01.10
A90: 6.01.242
A91: 6.01.99
A92: 6.01.193
A93: 6.01.246
A94: 6.01.331
A95: 6.01.251
A96: 6.01.309
A97: 6.01.180
A98: 6.01.213
A99: 6.01.11
A100: 6.01.76
A101: 6.01.186
A102: 6.01.73
A103: 6.01.243
A104: 6.01.68
A105: 6.01.51
A106: 6.01.54
A107: 6.01.12
A108: 6.01.163
A109: 6.01.279
A110: 6.01.126
A111: 6.01.209
A112: 6.01.313
A113: 6.01.13
A114: 6.01.314
A115: 6.01.183
A116: 6.01.14
A117: 6.01.210
A118: 6.01.15
A119: 6.01.325
A120: 6.01.256
A121: 6.01.340
A122: 6.01.16
A123: 6.01.123
A124: 6.01.320
A125: 6.01.164
A126: 6.01.245
A127: 6.01.240
A128: 6.01.253
A129: 6.01.212
A130: 6.01.348
A131: 6.01.177
A132: 6.01.307
A133: 6.01.52
A134: 6.01.105
A135: 6.01.258
A136: 6.01.157
A137: 6.01.254
A138: 6.01.207
A139: 6.01.17
A140: 6.01.332
A141: 6.01.87
A142: 6.01.18
A143: 6.01.306
A144: 6.01.132
A145: 6.01.19
A146: 6.01.83
A147: 6.01.20
A148: 6.01.127
A149: 6.01.104
A150: 6.01.21
A151: 6.01.22
A152: 6.01.158
A153: 6.01.239
A154: 6.01.131
A155: 6.01.281
A156: 6.01.23
A157: 6.01.283
A158: 6.01.233
A159: 6.01.362
A160: 6.01.78
A161: 6.01.333
A162: 6.01.184
A163: 6.01.260
A164: 6.01.197
A165: 6.01.24
A166: 6.01.166
A167: 6.01.25
A168: 6.01.328
A169: 6.01.244
A170: 6.01.182
A171: 6.01.241
A172: 6.01.337
A173: 6.01.26
A174: 6.01.315
A175: 6.01.125
A176: 6.01.27
A177: 6.01.117
A178: 6.01.89
A179: 6.01.28
A180: 6.01.225
A181: 6.01.112
A182: 6.01.29
A183: 6.01.94
A184: 6.01.30
A185: 6.01.347
A186: 6.01.161
A187: 6.01.88
A188: 6.01.232
A189: 6.01.219
A190: 6.01.318
A191: 6.01.280
A192: 6.01.31
A193: 6.01.134
A194: 6.01.179
A195: 6.01.81
A196: 6.01.70
A197: 6.01.295
A198: 6.01.290
A199: 6.01.144
A200: 6.01.148
A201: 6.01.75
A202: 6.01.266
A203: 6.01.341
... 802 more rows

Sheet Lançamentos
A3: Lançamentos | U3: =TODAY() -> 2023-01-23
Z4: Centro de Custo | AA4: Conta | AB4: Centro de Custo | AC4: Conta | AD4: Status | AE4: Cliente/Forn | AF4: Centro de Custo | AG4: Conta | AH4: Status | AI4: Cliente/Forn | AJ4: Centro de Custo | AK4: Conta | AL4: Status | AM4: Cliente/Forn | AN4: Centro de Custo | AO4: Conta | AP4: Status | AQ4: Cliente/Forn | AR4: Centro de Custo | AS4: Conta | AT4: Status | AU4: Cliente/Forn | AV4: Centro de Custo | AW4: Conta | AX4: Status | AY4: Cliente/Forn | AZ4: Centro de Custo | BA4: Cliente/Forn | BB4: Mês | BT4: Centro Custo | BU4: Cliente | BV4: Mês | BW4: Centro Custo | BX4: Cliente
A5: Data inclusão | B5: Data VCTO | C5: Competência | D5: Dia PGTO | E5: Parcela | F5: Classificação | G5: Plano de contas | H5: Descrição | I5: Cliente ou Fornecedor | J5: Centro de Custo | K5: Status | L5: Conta | M5: Valor | N5: Data PGTO | O5: Forma Pgto | P5: Acumulado | Q5: VENCIDO | R5: DIA PGTO | S5: MÊS PGTO | T5: ANO PGTO | U5: Realizado + Previsto do mês | X5: Tipo | Y5: Mês | Z5: FC - 4.1 | AA5: FC - 4.1 | AB5: FC - 4.2 | AC5: FC - 4.2 | AD5: FC - 4.2 | AE5: FC - 4.2 | AF5: FC - 4.3 | AG5: FC - 4.3 | AH5: FC - 4.3 | AI5: FC - 4.3 | AJ5: FC - 4.4 | AK5: FC - 4.4 | AL5: FC - 4.4 | AM5: FC - 4.4 | AN5: 5.1 | AO5: 5.1 | AP5: 5.1 | AQ5: 5.1 | AR5: 5.2 | AS5: 5.2 | AT5: 5.2 | AU5: 5.2 | AV5: 5.3 | AW5: 5.3 | AX5: 5.3 | AY5: 5.3 | AZ5: Dash | BA5: Dash | BB5: Dash | BE5: Data inclusão | BF5: Data vencimento | BG5: Competência | BH5: Dia PGTO | BI5: Classificação | BJ5: Plano de contas | BK5: Descrição | BL5: Cliente ou Fornecedor | BM5: Centro de Custo | BN5: Status | BO5: Conta | BP5: Valor | BQ5: Data PGTO | BR5: Acumulado | BT5: Desp.Adm. | BU5: Desp.Adm. | BV5: DRE | BW5: DRE | BX5: DRE
A6: 2022-12-01 | B6: 2023-01-11 | C6: 2022-12-22 | D6: =DAY(N6) -> 11 | E6: única | F6: 2.01 - Despesa Operacional | G6: 2.01.03 - Serviços de Terceiros | H6: Douglas - Elaboração RIT - Cabo Frio (parc.1/2) | I6: Synaz (Douglas - RIT) | J6: 5.01.30 - Sao Jose Desenv. Imob. SA | K6: Em aberto | L6: Santander | M6: -6200 | N6: 2023-01-11 | O6: Transferência | P6: =IFERROR(IF(OR(VLOOKUP(F6,Validações!$C$2:$D$17,2,FALSE)=1,VLOOKUP(F6,Validações!$C$2:$D$17,2,FALSE)=3),SUM(P5,M6),SUM(P5,-M6)),P5) -> 6200 | Q6: =IF(AND(N6<$U$3,K6="Em aberto"),"VENCIDO","-") -> VENCIDO | R6: =DAY(N6) -> 11 | S6: =TEXT($N6,"mmmm") -> janeiro | T6: =YEAR(N6) -> 2023 | U6: Saldo anterior | X6: =IFERROR(VLOOKUP(F6,Validações!$C$2:$D$17,2,FALSE),"") -> 2 | Y6: =IF(A6="","",TEXT($N6,"mmmm")) -> janeiro | Z6: =IF(#REF!="TODOS","TODOS",$J6) ->  | AA6: =IF(#REF!="TODAS","TODAS",$L6) ->  | AB6: =IF(#REF!="TODOS","TODOS",$J6) ->  | AC6: =IF(#REF!="TODAS","TODAS",$L6) ->  | AD6: =IF(#REF!="TODOS","TODOS",$K6) ->  | AE6: =IF(#REF!="TODOS","TODOS",$I6) ->  | AF6: =IF(#REF!="TODOS","TODOS",$J6) ->  | AG6: =IF(#REF!="TODAS","TODAS",$L6) ->  | AH6: =IF(#REF!="TODOS","TODOS",$K6) ->  | AI6: =IF(#REF!="TODOS","TODOS",$I6) ->  | AJ6: =IF(#REF!="TODOS","TODOS",$J6) ->  | AK6: =IF(#REF!="TODAS","TODAS",$L6) ->  | AL6: =IF(#REF!="TODOS","TODOS",$K6) ->  | AM6: =IF(#REF!="TODOS","TODOS",$I6) ->  | AN6: =IF(#REF!="TODOS","TODOS",$J6) ->  | AO6: =IF(#REF!="TODAS","TODAS",$L6) ->  | AP6: =IF(#REF!="TODOS","TODOS",$K6) ->  | AQ6: =IF(#REF!="TODOS","TODOS",$I6) ->  | AR6: =IF(#REF!="TODOS","TODOS",$J6) ->  | AS6: =IF(#REF!="TODAS","TODAS",$L6) ->  | AT6: =IF(#REF!="TODOS","TODOS",$K6) ->  | AU6: =IF(#REF!="TODOS","TODOS",$I6) ->  | AV6: =IF(#REF!="TODOS","TODOS",$J6) ->  | AW6: =IF(#REF!="TODAS","TODAS",$L6) ->  | AX6: =IF(#REF!="TODOS","TODOS",$K6) ->  | AY6: =IF(#REF!="TODOS","TODOS",$I6) ->  | AZ6: =IF(#REF!="TODOS","TODOS",$J6) ->  | BA6: =IF(#REF!="TODOS","TODOS",$I6) ->  | BB6: =IF(#REF!="TODOS","TODOS",$Y6) ->  | BN6: Em aberto | BQ6: =$U$3 -> 2023-01-23 | BT6: =IF(#REF!="TODOS","TODOS",$J6) ->  | BU6: =IF(#REF!="TODOS","TODOS",$I6) ->  | BV6: =IF(#REF!="TODOS","TODOS",$C6) ->  | BW6: =IF(#REF!="TODOS","TODOS",$J6) ->  | BX6: =IF(#REF!="TODOS","TODOS",$I6) -> 
A7: 2023-01-07 | B7: 2023-01-16 | C7: 2022-12-01 | D7: =DAY(N7) -> 16 | E7: única | F7: 2.01 - Despesa Operacional | G7: 2.01.03 - Serviços de Terceiros | H7: Ana Moura - Serviços de comunicação - Planos de Manejo | I7: Ana Moura | J7: 5.01.32 - IDG - Padua - Plano de Manejo | K7: Pago | L7: Santander | M7: -360 | N7: 2023-01-16 | O7: Transferência | P7: =IFERROR(IF(OR(VLOOKUP(F7,Validações!$C$2:$D$17,2,FALSE)=1,VLOOKUP(F7,Validações!$C$2:$D$17,2,FALSE)=3),SUM(P6,M7),SUM(P6,-M7)),P6) -> 6560 | Q7: =IF(AND(N7<$U$3,K7="Em aberto"),"VENCIDO","-") -> - | R7: 16 | S7: =TEXT($N7,"mmmm") -> janeiro | T7: 2023 | U7: =#REF! ->  | X7: =IFERROR(VLOOKUP(F7,Validações!$C$2:$D$17,2,FALSE),"") -> 2 | Y7: janeiro | Z7: =IF(#REF!="TODOS","TODOS",$J7) ->  | AA7: =IF(#REF!="TODAS","TODAS",$L7) ->  | AB7: =IF(#REF!="TODOS","TODOS",$J7) ->  | AC7: =IF(#REF!="TODAS","TODAS",$L7) ->  | AD7: =IF(#REF!="TODOS","TODOS",$K7) ->  | AE7: =IF(#REF!="TODOS","TODOS",$I7) ->  | AF7: =IF(#REF!="TODOS","TODOS",$J7) ->  | AG7: =IF(#REF!="TODAS","TODAS",$L7) ->  | AH7: =IF(#REF!="TODOS","TODOS",$K7) ->  | AI7: =IF(#REF!="TODOS","TODOS",$I7) ->  | AJ7: =IF(#REF!="TODOS","TODOS",$J7) ->  | AK7: =IF(#REF!="TODAS","TODAS",$L7) ->  | AL7: =IF(#REF!="TODOS","TODOS",$K7) ->  | AM7: =IF(#REF!="TODOS","TODOS",$I7) ->  | AN7: =IF(#REF!="TODOS","TODOS",$J7) ->  | AO7: =IF(#REF!="TODAS","TODAS",$L7) ->  | AP7: =IF(#REF!="TODOS","TODOS",$K7) ->  | AQ7: =IF(#REF!="TODOS","TODOS",$I7) ->  | AR7: =IF(#REF!="TODOS","TODOS",$J7) ->  | AS7: =IF(#REF!="TODAS","TODAS",$L7) ->  | AT7: =IF(#REF!="TODOS","TODOS",$K7) ->  | AU7: =IF(#REF!="TODOS","TODOS",$I7) ->  | AV7: =IF(#REF!="TODOS","TODOS",$J7) ->  | AW7: =IF(#REF!="TODAS","TODAS",$L7) ->  | AX7: =IF(#REF!="TODOS","TODOS",$K7) ->  | AY7: =IF(#REF!="TODOS","TODOS",$I7) ->  | AZ7: =IF(#REF!="TODOS","TODOS",$J7) ->  | BA7: =IF(#REF!="TODOS","TODOS",$I7) ->  | BB7: =IF(#REF!="TODOS","TODOS",$Y7) ->  | BT7: =IF(#REF!="TODOS","TODOS",$J7) ->  | BU7: =IF(#REF!="TODOS","TODOS",$I7) ->  | BV7: =IF(#REF!="TODOS","TODOS",$C7) ->  | BW7: =IF(#REF!="TODOS","TODOS",$J7) ->  | BX7: =IF(#REF!="TODOS","TODOS",$I7) -> 
A8: 2022-12-15 | B8: 2023-01-16 | C8: 2022-12-22 | D8: 16 | E8: única | F8: 1.01 - Receita de vendas | G8: 1.01.03 - RE | H8: NF 0259 - ETE Obra 640.01 Parque Tijuca (Proj. Layout) | I8: Obra 640.01 - Parque Tijuca | J8: 5.01.51 - ETE 640.01 - Parque Tijuca | K8: Em aberto | L8: Santander | M8: 3500 | N8: 2023-01-16 | O8: Transferência | P8: =IFERROR(IF(OR(VLOOKUP(F8,Validações!$C$2:$D$17,2,FALSE)=1,VLOOKUP(F8,Validações!$C$2:$D$17,2,FALSE)=3),SUM(P7,M8),SUM(P7,-M8)),P7) -> 10060 | Q8: VENCIDO | R8: 16 | S8: janeiro | T8: 2023 | U8: Total de entradas | X8: =IFERROR(VLOOKUP(F8,Validações!$C$2:$D$17,2,FALSE),"") -> 1 | Y8: janeiro | Z8: =IF(#REF!="TODOS","TODOS",$J8) ->  | AA8: =IF(#REF!="TODAS","TODAS",$L8) ->  | AB8: =IF(#REF!="TODOS","TODOS",$J8) ->  | AC8: =IF(#REF!="TODAS","TODAS",$L8) ->  | AD8: =IF(#REF!="TODOS","TODOS",$K8) ->  | AE8: =IF(#REF!="TODOS","TODOS",$I8) ->  | AF8: =IF(#REF!="TODOS","TODOS",$J8) ->  | AG8: =IF(#REF!="TODAS","TODAS",$L8) ->  | AH8: =IF(#REF!="TODOS","TODOS",$K8) ->  | AI8: =IF(#REF!="TODOS","TODOS",$I8) ->  | AJ8: =IF(#REF!="TODOS","TODOS",$J8) ->  | AK8: =IF(#REF!="TODAS","TODAS",$L8) ->  | AL8: =IF(#REF!="TODOS","TODOS",$K8) ->  | AM8: =IF(#REF!="TODOS","TODOS",$I8) ->  | AN8: =IF(#REF!="TODOS","TODOS",$J8) ->  | AO8: =IF(#REF!="TODAS","TODAS",$L8) ->  | AP8: =IF(#REF!="TODOS","TODOS",$K8) ->  | AQ8: =IF(#REF!="TODOS","TODOS",$I8) ->  | AR8: =IF(#REF!="TODOS","TODOS",$J8) ->  | AS8: =IF(#REF!="TODAS","TODAS",$L8) ->  | AT8: =IF(#REF!="TODOS","TODOS",$K8) ->  | AU8: =IF(#REF!="TODOS","TODOS",$I8) ->  | AV8: =IF(#REF!="TODOS","TODOS",$J8) ->  | AW8: =IF(#REF!="TODAS","TODAS",$L8) ->  | AX8: =IF(#REF!="TODOS","TODOS",$K8) ->  | AY8: =IF(#REF!="TODOS","TODOS",$I8) ->  | AZ8: =IF(#REF!="TODOS","TODOS",$J8) ->  | BA8: =IF(#REF!="TODOS","TODOS",$I8) ->  | BB8: =IF(#REF!="TODOS","TODOS",$Y8) ->  | BT8: =IF(#REF!="TODOS","TODOS",$J8) ->  | BU8: =IF(#REF!="TODOS","TODOS",$I8) ->  | BV8: =IF(#REF!="TODOS","TODOS",$C8) ->  | BW8: =IF(#REF!="TODOS","TODOS",$J8) ->  | BX8: =IF(#REF!="TODOS","TODOS",$I8) -> 
A9: 2023-01-16 | B9: 2023-01-16 | C9: 2023-01-01 | D9: 16 | E9: única | F9: 2.01 - Despesa Operacional | G9: 2.01.03 - Serviços de Terceiros | H9: Reembolso pgto Consultor Tecnico - Ciro - Braskem (parc. 2/2) | I9: Rodrigo Imbuzeiro Cardoso | J9: 5.01.31 - Braskem - Unidade Caxias | K9: Pago | L9: Santander | M9: -4400 | N9: 2023-01-16 | O9: Transferência | P9: =IFERROR(IF(OR(VLOOKUP(F9,Validações!$C$2:$D$17,2,FALSE)=1,VLOOKUP(F9,Validações!$C$2:$D$17,2,FALSE)=3),SUM(P8,M9),SUM(P8,-M9)),P8) -> 14460 | Q9: - | R9: 16 | S9: janeiro | T9: 2023 | U9: =SUMIF(X:X,1,$M:$M) -> 77226.6 | X9: =IFERROR(VLOOKUP(F9,Validações!$C$2:$D$17,2,FALSE),"") -> 2 | Y9: janeiro | Z9: =IF(#REF!="TODOS","TODOS",$J9) ->  | AA9: =IF(#REF!="TODAS","TODAS",$L9) ->  | AB9: =IF(#REF!="TODOS","TODOS",$J9) ->  | AC9: =IF(#REF!="TODAS","TODAS",$L9) ->  | AD9: =IF(#REF!="TODOS","TODOS",$K9) ->  | AE9: =IF(#REF!="TODOS","TODOS",$I9) ->  | AF9: =IF(#REF!="TODOS","TODOS",$J9) ->  | AG9: =IF(#REF!="TODAS","TODAS",$L9) ->  | AH9: =IF(#REF!="TODOS","TODOS",$K9) ->  | AI9: =IF(#REF!="TODOS","TODOS",$I9) ->  | AJ9: =IF(#REF!="TODOS","TODOS",$J9) ->  | AK9: =IF(#REF!="TODAS","TODAS",$L9) ->  | AL9: =IF(#REF!="TODOS","TODOS",$K9) ->  | AM9: =IF(#REF!="TODOS","TODOS",$I9) ->  | AN9: =IF(#REF!="TODOS","TODOS",$J9) ->  | AO9: =IF(#REF!="TODAS","TODAS",$L9) ->  | AP9: =IF(#REF!="TODOS","TODOS",$K9) ->  | AQ9: =IF(#REF!="TODOS","TODOS",$I9) ->  | AR9: =IF(#REF!="TODOS","TODOS",$J9) ->  | AS9: =IF(#REF!="TODAS","TODAS",$L9) ->  | AT9: =IF(#REF!="TODOS","TODOS",$K9) ->  | AU9: =IF(#REF!="TODOS","TODOS",$I9) ->  | AV9: =IF(#REF!="TODOS","TODOS",$J9) ->  | AW9: =IF(#REF!="TODAS","TODAS",$L9) ->  | AX9: =IF(#REF!="TODOS","TODOS",$K9) ->  | AY9: =IF(#REF!="TODOS","TODOS",$I9) ->  | AZ9: =IF(#REF!="TODOS","TODOS",$J9) ->  | BA9: =IF(#REF!="TODOS","TODOS",$I9) ->  | BB9: =IF(#REF!="TODOS","TODOS",$Y9) ->  | BT9: =IF(#REF!="TODOS","TODOS",$J9) ->  | BU9: =IF(#REF!="TODOS","TODOS",$I9) ->  | BV9: =IF(#REF!="TODOS","TODOS",$C9) ->  | BW9: =IF(#REF!="TODOS","TODOS",$J9) ->  | BX9: =IF(#REF!="TODOS","TODOS",$I9) -> 
A10: 2023-01-11 | B10: 2023-01-20 | C10: 2023-01-23 | D10: 20 | E10: única | F10: 2.04 - Despesas administrativas | G10: 2.04.10 - Taxas | H10: CREA RJ - Anuidade 2023 | I10: CREA RJ | J10: 5.01.02 - Administrativo | K10: Em aberto | L10: Santander | M10: -1069.23 | N10: 2023-01-20 | O10: Boleto | P10: =IFERROR(IF(OR(VLOOKUP(F10,Validações!$C$2:$D$17,2,FALSE)=1,VLOOKUP(F10,Validações!$C$2:$D$17,2,FALSE)=3),SUM(P9,M10),SUM(P9,-M10)),P9) -> 15529.23 | Q10: VENCIDO | R10: 20 | S10: janeiro | T10: 2023 | U10: Total de saídas | X10: =IFERROR(VLOOKUP(F10,Validações!$C$2:$D$17,2,FALSE),"") -> 2 | Y10: janeiro | Z10: =IF(#REF!="TODOS","TODOS",$J10) ->  | AA10: =IF(#REF!="TODAS","TODAS",$L10) ->  | AB10: =IF(#REF!="TODOS","TODOS",$J10) ->  | AC10: =IF(#REF!="TODAS","TODAS",$L10) ->  | AD10: =IF(#REF!="TODOS","TODOS",$K10) ->  | AE10: =IF(#REF!="TODOS","TODOS",$I10) ->  | AF10: =IF(#REF!="TODOS","TODOS",$J10) ->  | AG10: =IF(#REF!="TODAS","TODAS",$L10) ->  | AH10: =IF(#REF!="TODOS","TODOS",$K10) ->  | AI10: =IF(#REF!="TODOS","TODOS",$I10) ->  | AJ10: =IF(#REF!="TODOS","TODOS",$J10) ->  | AK10: =IF(#REF!="TODAS","TODAS",$L10) ->  | AL10: =IF(#REF!="TODOS","TODOS",$K10) ->  | AM10: =IF(#REF!="TODOS","TODOS",$I10) ->  | AN10: =IF(#REF!="TODOS","TODOS",$J10) ->  | AO10: =IF(#REF!="TODAS","TODAS",$L10) ->  | AP10: =IF(#REF!="TODOS","TODOS",$K10) ->  | AQ10: =IF(#REF!="TODOS","TODOS",$I10) ->  | AR10: =IF(#REF!="TODOS","TODOS",$J10) ->  | AS10: =IF(#REF!="TODAS","TODAS",$L10) ->  | AT10: =IF(#REF!="TODOS","TODOS",$K10) ->  | AU10: =IF(#REF!="TODOS","TODOS",$I10) ->  | AV10: =IF(#REF!="TODOS","TODOS",$J10) ->  | AW10: =IF(#REF!="TODAS","TODAS",$L10) ->  | AX10: =IF(#REF!="TODOS","TODOS",$K10) ->  | AY10: =IF(#REF!="TODOS","TODOS",$I10) ->  | AZ10: =IF(#REF!="TODOS","TODOS",$J10) ->  | BA10: =IF(#REF!="TODOS","TODOS",$I10) ->  | BB10: =IF(#REF!="TODOS","TODOS",$Y10) ->  | BT10: =IF(#REF!="TODOS","TODOS",$J10) ->  | BU10: =IF(#REF!="TODOS","TODOS",$I10) ->  | BV10: =IF(#REF!="TODOS","TODOS",$C10) ->  | BW10: =IF(#REF!="TODOS","TODOS",$J10) ->  | BX10: =IF(#REF!="TODOS","TODOS",$I10) -> 
A11: 2022-11-06 | B11: 2023-01-25 | C11: 2022-10-01 | D11: 25 | E11: única | F11: 2.01 - Despesa Operacional | G11: 2.01.03 - Serviços de Terceiros | H11: Magma - Daniel Marques - IAD Equinix (parc. 2/2) | I11: Daniel Marques (Magma) | J11: 5.01.39 - Togale - Equinix | K11: Em aberto | L11: Santander | M11: -5400 | N11: 2023-01-25 | O11: Transferência | P11: =IFERROR(IF(OR(VLOOKUP(F11,Validações!$C$2:$D$17,2,FALSE)=1,VLOOKUP(F11,Validações!$C$2:$D$17,2,FALSE)=3),SUM(P10,M11),SUM(P10,-M11)),P10) -> 20929.23 | Q11: - | R11: 25 | S11: janeiro | T11: 2023 | U11: =-SUMIF(X:X,2,$M:$M) -> 31276.35 | X11: =IFERROR(VLOOKUP(F11,Validações!$C$2:$D$17,2,FALSE),"") -> 2 | Y11: janeiro | Z11: =IF(#REF!="TODOS","TODOS",$J11) ->  | AA11: =IF(#REF!="TODAS","TODAS",$L11) ->  | AB11: =IF(#REF!="TODOS","TODOS",$J11) ->  | AC11: =IF(#REF!="TODAS","TODAS",$L11) ->  | AD11: =IF(#REF!="TODOS","TODOS",$K11) ->  | AE11: =IF(#REF!="TODOS","TODOS",$I11) ->  | AF11: =IF(#REF!="TODOS","TODOS",$J11) ->  | AG11: =IF(#REF!="TODAS","TODAS",$L11) ->  | AH11: =IF(#REF!="TODOS","TODOS",$K11) ->  | AI11: =IF(#REF!="TODOS","TODOS",$I11) ->  | AJ11: =IF(#REF!="TODOS","TODOS",$J11) ->  | AK11: =IF(#REF!="TODAS","TODAS",$L11) ->  | AL11: =IF(#REF!="TODOS","TODOS",$K11) ->  | AM11: =IF(#REF!="TODOS","TODOS",$I11) ->  | AN11: =IF(#REF!="TODOS","TODOS",$J11) ->  | AO11: =IF(#REF!="TODAS","TODAS",$L11) ->  | AP11: =IF(#REF!="TODOS","TODOS",$K11) ->  | AQ11: =IF(#REF!="TODOS","TODOS",$I11) ->  | AR11: =IF(#REF!="TODOS","TODOS",$J11) ->  | AS11: =IF(#REF!="TODAS","TODAS",$L11) ->  | AT11: =IF(#REF!="TODOS","TODOS",$K11) ->  | AU11: =IF(#REF!="TODOS","TODOS",$I11) ->  | AV11: =IF(#REF!="TODOS","TODOS",$J11) ->  | AW11: =IF(#REF!="TODAS","TODAS",$L11) ->  | AX11: =IF(#REF!="TODOS","TODOS",$K11) ->  | AY11: =IF(#REF!="TODOS","TODOS",$I11) ->  | AZ11: =IF(#REF!="TODOS","TODOS",$J11) ->  | BA11: =IF(#REF!="TODOS","TODOS",$I11) ->  | BB11: =IF(#REF!="TODOS","TODOS",$Y11) ->  | BT11: =IF(#REF!="TODOS","TODOS",$J11) ->  | BU11: =IF(#REF!="TODOS","TODOS",$I11) ->  | BV11: =IF(#REF!="TODOS","TODOS",$C11) ->  | BW11: =IF(#REF!="TODOS","TODOS",$J11) ->  | BX11: =IF(#REF!="TODOS","TODOS",$I11) -> 
A12: 2022-11-06 | B12: 2023-01-25 | C12: 2022-10-01 | D12: 25 | E12: única | F12: 1.01 - Receita de vendas | G12: 1.01.02 - GAC | H12: Togale - Equinix IAD (SNF) - parc.2/2 | I12: Togale | J12: 5.01.39 - Togale - Equinix | K12: Em aberto | L12: Santander | M12: 7250 | N12: 2023-01-25 | O12: Transferência | P12: =IFERROR(IF(OR(VLOOKUP(F12,Validações!$C$2:$D$17,2,FALSE)=1,VLOOKUP(F12,Validações!$C$2:$D$17,2,FALSE)=3),SUM(P11,M12),SUM(P11,-M12)),P11) -> 28179.23 | Q12: - | R12: 25 | S12: janeiro | T12: 2023 | U12: Resultado do mês | X12: =IFERROR(VLOOKUP(F12,Validações!$C$2:$D$17,2,FALSE),"") -> 1 | Y12: janeiro | Z12: =IF(#REF!="TODOS","TODOS",$J12) ->  | AA12: =IF(#REF!="TODAS","TODAS",$L12) ->  | AB12: =IF(#REF!="TODOS","TODOS",$J12) ->  | AC12: =IF(#REF!="TODAS","TODAS",$L12) ->  | AD12: =IF(#REF!="TODOS","TODOS",$K12) ->  | AE12: =IF(#REF!="TODOS","TODOS",$I12) ->  | AF12: =IF(#REF!="TODOS","TODOS",$J12) ->  | AG12: =IF(#REF!="TODAS","TODAS",$L12) ->  | AH12: =IF(#REF!="TODOS","TODOS",$K12) ->  | AI12: =IF(#REF!="TODOS","TODOS",$I12) ->  | AJ12: =IF(#REF!="TODOS","TODOS",$J12) ->  | AK12: =IF(#REF!="TODAS","TODAS",$L12) ->  | AL12: =IF(#REF!="TODOS","TODOS",$K12) ->  | AM12: =IF(#REF!="TODOS","TODOS",$I12) ->  | AN12: =IF(#REF!="TODOS","TODOS",$J12) ->  | AO12: =IF(#REF!="TODAS","TODAS",$L12) ->  | AP12: =IF(#REF!="TODOS","TODOS",$K12) ->  | AQ12: =IF(#REF!="TODOS","TODOS",$I12) ->  | AR12: =IF(#REF!="TODOS","TODOS",$J12) ->  | AS12: =IF(#REF!="TODAS","TODAS",$L12) ->  | AT12: =IF(#REF!="TODOS","TODOS",$K12) ->  | AU12: =IF(#REF!="TODOS","TODOS",$I12) ->  | AV12: =IF(#REF!="TODOS","TODOS",$J12) ->  | AW12: =IF(#REF!="TODAS","TODAS",$L12) ->  | AX12: =IF(#REF!="TODOS","TODOS",$K12) ->  | AY12: =IF(#REF!="TODOS","TODOS",$I12) ->  | AZ12: =IF(#REF!="TODOS","TODOS",$J12) ->  | BA12: =IF(#REF!="TODOS","TODOS",$I12) ->  | BB12: =IF(#REF!="TODOS","TODOS",$Y12) ->  | BT12: =IF(#REF!="TODOS","TODOS",$J12) ->  | BU12: =IF(#REF!="TODOS","TODOS",$I12) ->  | BV12: =IF(#REF!="TODOS","TODOS",$C12) ->  | BW12: =IF(#REF!="TODOS","TODOS",$J12) ->  | BX12: =IF(#REF!="TODOS","TODOS",$I12) -> 
A13: 2021-12-05 | B13: 2023-01-25 | C13: 2022-01-01 | D13: 25 | E13: única | F13: 1.01 - Receita de vendas | G13: 1.01.01 - CEPA | H13: NF 0xxx - Emissão DAIA ETIM (Parcela 3) | I13: ETIM - EXPANSION TRANSMISSAO ITUMBIARA MARIMBONDO S.A. | J13: 5.01.20 - State Grid | K13: Em aberto | L13: Santander | M13: 3966 | N13: 2023-01-25 | O13: Transferência | P13: =IFERROR(IF(OR(VLOOKUP(F13,Validações!$C$2:$D$17,2,FALSE)=1,VLOOKUP(F13,Validações!$C$2:$D$17,2,FALSE)=3),SUM(P12,M13),SUM(P12,-M13)),P12) -> 32145.23 | Q13: - | R13: 25 | S13: janeiro | T13: 2023 | U13: =SUM(U9,U11) -> 108502.95 | X13: =IFERROR(VLOOKUP(F13,Validações!$C$2:$D$17,2,FALSE),"") -> 1 | Y13: janeiro | Z13: =IF(#REF!="TODOS","TODOS",$J13) ->  | AA13: =IF(#REF!="TODAS","TODAS",$L13) ->  | AB13: =IF(#REF!="TODOS","TODOS",$J13) ->  | AC13: =IF(#REF!="TODAS","TODAS",$L13) ->  | AD13: =IF(#REF!="TODOS","TODOS",$K13) ->  | AE13: =IF(#REF!="TODOS","TODOS",$I13) ->  | AF13: =IF(#REF!="TODOS","TODOS",$J13) ->  | AG13: =IF(#REF!="TODAS","TODAS",$L13) ->  | AH13: =IF(#REF!="TODOS","TODOS",$K13) ->  | AI13: =IF(#REF!="TODOS","TODOS",$I13) ->  | AJ13: =IF(#REF!="TODOS","TODOS",$J13) ->  | AK13: =IF(#REF!="TODAS","TODAS",$L13) ->  | AL13: =IF(#REF!="TODOS","TODOS",$K13) ->  | AM13: =IF(#REF!="TODOS","TODOS",$I13) ->  | AN13: =IF(#REF!="TODOS","TODOS",$J13) ->  | AO13: =IF(#REF!="TODAS","TODAS",$L13) ->  | AP13: =IF(#REF!="TODOS","TODOS",$K13) ->  | AQ13: =IF(#REF!="TODOS","TODOS",$I13) ->  | AR13: =IF(#REF!="TODOS","TODOS",$J13) ->  | AS13: =IF(#REF!="TODAS","TODAS",$L13) ->  | AT13: =IF(#REF!="TODOS","TODOS",$K13) ->  | AU13: =IF(#REF!="TODOS","TODOS",$I13) ->  | AV13: =IF(#REF!="TODOS","TODOS",$J13) ->  | AW13: =IF(#REF!="TODAS","TODAS",$L13) ->  | AX13: =IF(#REF!="TODOS","TODOS",$K13) ->  | AY13: =IF(#REF!="TODOS","TODOS",$I13) ->  | AZ13: =IF(#REF!="TODOS","TODOS",$J13) ->  | BA13: =IF(#REF!="TODOS","TODOS",$I13) ->  | BB13: =IF(#REF!="TODOS","TODOS",$Y13) ->  | BT13: =IF(#REF!="TODOS","TODOS",$J13) ->  | BU13: =IF(#REF!="TODOS","TODOS",$I13) ->  | BV13: =IF(#REF!="TODOS","TODOS",$C13) ->  | BW13: =IF(#REF!="TODOS","TODOS",$J13) ->  | BX13: =IF(#REF!="TODOS","TODOS",$I13) -> 
A14: 2021-12-01 | B14: 2023-01-25 | C14: 2021-10-01 | D14: 25 | E14: única | F14: 2.01 - Despesa Operacional | G14: 2.01.03 - Serviços de Terceiros | H14: DAIA ETIM - State Grid - Andre Barata (Parcela 3) | I14: Andre de Souza Santos | J14: 5.01.20 - State Grid | K14: Em aberto | L14: Itau | M14: -1593 | N14: 2023-01-25 | O14: Transferência | P14: =IFERROR(IF(OR(VLOOKUP(F14,Validações!$C$2:$D$17,2,FALSE)=1,VLOOKUP(F14,Validações!$C$2:$D$17,2,FALSE)=3),SUM(P13,M14),SUM(P13,-M14)),P13) -> 33738.23 | Q14: - | R14: 25 | S14: janeiro | T14: 2023 | U14: Saldo final do mês | X14: =IFERROR(VLOOKUP(F14,Validações!$C$2:$D$17,2,FALSE),"") -> 2 | Y14: janeiro | Z14: =IF(#REF!="TODOS","TODOS",$J14) ->  | AA14: =IF(#REF!="TODAS","TODAS",$L14) ->  | AB14: =IF(#REF!="TODOS","TODOS",$J14) ->  | AC14: =IF(#REF!="TODAS","TODAS",$L14) ->  | AD14: =IF(#REF!="TODOS","TODOS",$K14) ->  | AE14: =IF(#REF!="TODOS","TODOS",$I14) ->  | AF14: =IF(#REF!="TODOS","TODOS",$J14) ->  | AG14: =IF(#REF!="TODAS","TODAS",$L14) ->  | AH14: =IF(#REF!="TODOS","TODOS",$K14) ->  | AI14: =IF(#REF!="TODOS","TODOS",$I14) ->  | AJ14: =IF(#REF!="TODOS","TODOS",$J14) ->  | AK14: =IF(#REF!="TODAS","TODAS",$L14) ->  | AL14: =IF(#REF!="TODOS","TODOS",$K14) ->  | AM14: =IF(#REF!="TODOS","TODOS",$I14) ->  | AN14: =IF(#REF!="TODOS","TODOS",$J14) ->  | AO14: =IF(#REF!="TODAS","TODAS",$L14) ->  | AP14: =IF(#REF!="TODOS","TODOS",$K14) ->  | AQ14: =IF(#REF!="TODOS","TODOS",$I14) ->  | AR14: =IF(#REF!="TODOS","TODOS",$J14) ->  | AS14: =IF(#REF!="TODAS","TODAS",$L14) ->  | AT14: =IF(#REF!="TODOS","TODOS",$K14) ->  | AU14: =IF(#REF!="TODOS","TODOS",$I14) ->  | AV14: =IF(#REF!="TODOS","TODOS",$J14) ->  | AW14: =IF(#REF!="TODAS","TODAS",$L14) ->  | AX14: =IF(#REF!="TODOS","TODOS",$K14) ->  | AY14: =IF(#REF!="TODOS","TODOS",$I14) ->  | AZ14: =IF(#REF!="TODOS","TODOS",$J14) ->  | BA14: =IF(#REF!="TODOS","TODOS",$I14) ->  | BB14: =IF(#REF!="TODOS","TODOS",$Y14) ->  | BT14: =IF(#REF!="TODOS","TODOS",$J14) ->  | BU14: =IF(#REF!="TODOS","TODOS",$I14) ->  | BV14: =IF(#REF!="TODOS","TODOS",$C14) ->  | BW14: =IF(#REF!="TODOS","TODOS",$J14) ->  | BX14: =IF(#REF!="TODOS","TODOS",$I14) -> 
A15: 2021-12-01 | B15: 2023-01-25 | C15: 2021-10-01 | D15: 25 | E15: única | F15: 2.01 - Despesa Operacional | G15: 2.01.03 - Serviços de Terceiros | H15: DAIA ETIM - State Grid - Andre Barata (Parcela 2) | I15: Andre de Souza Santos | J15: 5.01.20 - State Grid | K15: Em aberto | L15: Itau | M15: -1858.5 | N15: 2023-01-25 | O15: Transferência | P15: =IFERROR(IF(OR(VLOOKUP(F15,Validações!$C$2:$D$17,2,FALSE)=1,VLOOKUP(F15,Validações!$C$2:$D$17,2,FALSE)=3),SUM(P14,M15),SUM(P14,-M15)),P14) -> 35596.73 | Q15: - | R15: 25 | S15: janeiro | T15: 2023 | U15: =SUM(U7,U13) ->  | X15: =IFERROR(VLOOKUP(F15,Validações!$C$2:$D$17,2,FALSE),"") -> 2 | Y15: janeiro | Z15: =IF(#REF!="TODOS","TODOS",$J15) ->  | AA15: =IF(#REF!="TODAS","TODAS",$L15) ->  | AB15: =IF(#REF!="TODOS","TODOS",$J15) ->  | AC15: =IF(#REF!="TODAS","TODAS",$L15) ->  | AD15: =IF(#REF!="TODOS","TODOS",$K15) ->  | AE15: =IF(#REF!="TODOS","TODOS",$I15) ->  | AF15: =IF(#REF!="TODOS","TODOS",$J15) ->  | AG15: =IF(#REF!="TODAS","TODAS",$L15) ->  | AH15: =IF(#REF!="TODOS","TODOS",$K15) ->  | AI15: =IF(#REF!="TODOS","TODOS",$I15) ->  | AJ15: =IF(#REF!="TODOS","TODOS",$J15) ->  | AK15: =IF(#REF!="TODAS","TODAS",$L15) ->  | AL15: =IF(#REF!="TODOS","TODOS",$K15) ->  | AM15: =IF(#REF!="TODOS","TODOS",$I15) ->  | AN15: =IF(#REF!="TODOS","TODOS",$J15) ->  | AO15: =IF(#REF!="TODAS","TODAS",$L15) ->  | AP15: =IF(#REF!="TODOS","TODOS",$K15) ->  | AQ15: =IF(#REF!="TODOS","TODOS",$I15) ->  | AR15: =IF(#REF!="TODOS","TODOS",$J15) ->  | AS15: =IF(#REF!="TODAS","TODAS",$L15) ->  | AT15: =IF(#REF!="TODOS","TODOS",$K15) ->  | AU15: =IF(#REF!="TODOS","TODOS",$I15) ->  | AV15: =IF(#REF!="TODOS","TODOS",$J15) ->  | AW15: =IF(#REF!="TODAS","TODAS",$L15) ->  | AX15: =IF(#REF!="TODOS","TODOS",$K15) ->  | AY15: =IF(#REF!="TODOS","TODOS",$I15) ->  | AZ15: =IF(#REF!="TODOS","TODOS",$J15) ->  | BA15: =IF(#REF!="TODOS","TODOS",$I15) ->  | BB15: =IF(#REF!="TODOS","TODOS",$Y15) ->  | BT15: =IF(#REF!="TODOS","TODOS",$J15) ->  | BU15: =IF(#REF!="TODOS","TODOS",$I15) ->  | BV15: =IF(#REF!="TODOS","TODOS",$C15) ->  | BW15: =IF(#REF!="TODOS","TODOS",$J15) ->  | BX15: =IF(#REF!="TODOS","TODOS",$I15) -> 
A16: 2023-01-16 | B16: 2023-01-16 | C16: 2023-01-23 | D16: 16 | E16: única | F16: 2.02 - Despesa com pessoal | G16: 2.02.12 - Exames (ASO) | H16: ASO Periodico - Ciro Moura | I16: GL MED | J16: 5.01.31 - Braskem - Unidade Caxias | K16: Pago | L16: Santander | M16: -45 | N16: 2023-01-16 | O16: Transferência | P16: =IFERROR(IF(OR(VLOOKUP(F16,Validações!$C$2:$D$17,2,FALSE)=1,VLOOKUP(F16,Validações!$C$2:$D$17,2,FALSE)=3),SUM(P15,M16),SUM(P15,-M16)),P15) -> 35641.73 | Q16: - | R16: 16 | S16: janeiro | T16: 2023 | X16: =IFERROR(VLOOKUP(F16,Validações!$C$2:$D$17,2,FALSE),"") -> 2 | Y16: janeiro | Z16: =IF(#REF!="TODOS","TODOS",$J16) ->  | AA16: =IF(#REF!="TODAS","TODAS",$L16) ->  | AB16: =IF(#REF!="TODOS","TODOS",$J16) ->  | AC16: =IF(#REF!="TODAS","TODAS",$L16) ->  | AD16: =IF(#REF!="TODOS","TODOS",$K16) ->  | AE16: =IF(#REF!="TODOS","TODOS",$I16) ->  | AF16: =IF(#REF!="TODOS","TODOS",$J16) ->  | AG16: =IF(#REF!="TODAS","TODAS",$L16) ->  | AH16: =IF(#REF!="TODOS","TODOS",$K16) ->  | AI16: =IF(#REF!="TODOS","TODOS",$I16) ->  | AJ16: =IF(#REF!="TODOS","TODOS",$J16) ->  | AK16: =IF(#REF!="TODAS","TODAS",$L16) ->  | AL16: =IF(#REF!="TODOS","TODOS",$K16) ->  | AM16: =IF(#REF!="TODOS","TODOS",$I16) ->  | AN16: =IF(#REF!="TODOS","TODOS",$J16) ->  | AO16: =IF(#REF!="TODAS","TODAS",$L16) ->  | AP16: =IF(#REF!="TODOS","TODOS",$K16) ->  | AQ16: =IF(#REF!="TODOS","TODOS",$I16) ->  | AR16: =IF(#REF!="TODOS","TODOS",$J16) ->  | AS16: =IF(#REF!="TODAS","TODAS",$L16) ->  | AT16: =IF(#REF!="TODOS","TODOS",$K16) ->  | AU16: =IF(#REF!="TODOS","TODOS",$I16) ->  | AV16: =IF(#REF!="TODOS","TODOS",$J16) ->  | AW16: =IF(#REF!="TODAS","TODAS",$L16) ->  | AX16: =IF(#REF!="TODOS","TODOS",$K16) ->  | AY16: =IF(#REF!="TODOS","TODOS",$I16) ->  | AZ16: =IF(#REF!="TODOS","TODOS",$J16) ->  | BA16: =IF(#REF!="TODOS","TODOS",$I16) ->  | BB16: =IF(#REF!="TODOS","TODOS",$Y16) ->  | BT16: =IF(#REF!="TODOS","TODOS",$J16) ->  | BU16: =IF(#REF!="TODOS","TODOS",$I16) ->  | BV16: =IF(#REF!="TODOS","TODOS",$C16) ->  | BW16: =IF(#REF!="TODOS","TODOS",$J16) ->  | BX16: =IF(#REF!="TODOS","TODOS",$I16) -> 
A17: 2023-01-10 | B17: 2023-01-30 | C17: 2023-01-23 | D17: 30 | E17: única | F17: 1.01 - Receita de vendas | G17: 1.01.01 - CEPA | H17: NF 0270 - IDG - PM Mangaratiba (Produto 6) | I17: IDG - Instituto de Desenvolvimento e Gestão | J17: 5.01.33 - IDG - Mangaratiba - Plano de Manejo | K17: Em aberto | L17: Santander | M17: 48990.6 | N17: 2023-01-30 | O17: Transferência | P17: =IFERROR(IF(OR(VLOOKUP(F17,Validações!$C$2:$D$17,2,FALSE)=1,VLOOKUP(F17,Validações!$C$2:$D$17,2,FALSE)=3),SUM(P16,M17),SUM(P16,-M17)),P16) -> 84632.33 | Q17: - | R17: 30 | S17: janeiro | T17: 2023 | X17: =IFERROR(VLOOKUP(F17,Validações!$C$2:$D$17,2,FALSE),"") -> 1 | Y17: janeiro | Z17: =IF(#REF!="TODOS","TODOS",$J17) ->  | AA17: =IF(#REF!="TODAS","TODAS",$L17) ->  | AB17: =IF(#REF!="TODOS","TODOS",$J17) ->  | AC17: =IF(#REF!="TODAS","TODAS",$L17) ->  | AD17: =IF(#REF!="TODOS","TODOS",$K17) ->  | AE17: =IF(#REF!="TODOS","TODOS",$I17) ->  | AF17: =IF(#REF!="TODOS","TODOS",$J17) ->  | AG17: =IF(#REF!="TODAS","TODAS",$L17) ->  | AH17: =IF(#REF!="TODOS","TODOS",$K17) ->  | AI17: =IF(#REF!="TODOS","TODOS",$I17) ->  | AJ17: =IF(#REF!="TODOS","TODOS",$J17) ->  | AK17: =IF(#REF!="TODAS","TODAS",$L17) ->  | AL17: =IF(#REF!="TODOS","TODOS",$K17) ->  | AM17: =IF(#REF!="TODOS","TODOS",$I17) ->  | AN17: =IF(#REF!="TODOS","TODOS",$J17) ->  | AO17: =IF(#REF!="TODAS","TODAS",$L17) ->  | AP17: =IF(#REF!="TODOS","TODOS",$K17) ->  | AQ17: =IF(#REF!="TODOS","TODOS",$I17) ->  | AR17: =IF(#REF!="TODOS","TODOS",$J17) ->  | AS17: =IF(#REF!="TODAS","TODAS",$L17) ->  | AT17: =IF(#REF!="TODOS","TODOS",$K17) ->  | AU17: =IF(#REF!="TODOS","TODOS",$I17) ->  | AV17: =IF(#REF!="TODOS","TODOS",$J17) ->  | AW17: =IF(#REF!="TODAS","TODAS",$L17) ->  | AX17: =IF(#REF!="TODOS","TODOS",$K17) ->  | AY17: =IF(#REF!="TODOS","TODOS",$I17) ->  | AZ17: =IF(#REF!="TODOS","TODOS",$J17) ->  | BA17: =IF(#REF!="TODOS","TODOS",$I17) ->  | BB17: =IF(#REF!="TODOS","TODOS",$Y17) ->  | BT17: =IF(#REF!="TODOS","TODOS",$J17) ->  | BU17: =IF(#REF!="TODOS","TODOS",$I17) ->  | BV17: =IF(#REF!="TODOS","TODOS",$C17) ->  | BW17: =IF(#REF!="TODOS","TODOS",$J17) ->  | BX17: =IF(#REF!="TODOS","TODOS",$I17) -> 
A18: 2023-01-10 | B18: 2023-01-30 | C18: 2023-01-01 | D18: 30 | E18: única | F18: 1.01 - Receita de vendas | G18: 1.01.01 - CEPA | H18: NF 0269 - Lorintech Unidade Caxias - Acompahamento das Condicionantes da LO | I18: Lorintech | J18: 5.01.37 - Lorintech - Unidade Caxias | K18: Em aberto | L18: Santander | M18: 1290 | N18: 2023-01-30 | O18: Transferência | P18: =IFERROR(IF(OR(VLOOKUP(F18,Validações!$C$2:$D$17,2,FALSE)=1,VLOOKUP(F18,Validações!$C$2:$D$17,2,FALSE)=3),SUM(P17,M18),SUM(P17,-M18)),P17) -> 85922.33 | Q18: - | R18: 30 | S18: janeiro | T18: 2023 | X18: =IFERROR(VLOOKUP(F18,Validações!$C$2:$D$17,2,FALSE),"") -> 1 | Y18: janeiro | Z18: =IF(#REF!="TODOS","TODOS",$J18) ->  | AA18: =IF(#REF!="TODAS","TODAS",$L18) ->  | AB18: =IF(#REF!="TODOS","TODOS",$J18) ->  | AC18: =IF(#REF!="TODAS","TODAS",$L18) ->  | AD18: =IF(#REF!="TODOS","TODOS",$K18) ->  | AE18: =IF(#REF!="TODOS","TODOS",$I18) ->  | AF18: =IF(#REF!="TODOS","TODOS",$J18) ->  | AG18: =IF(#REF!="TODAS","TODAS",$L18) ->  | AH18: =IF(#REF!="TODOS","TODOS",$K18) ->  | AI18: =IF(#REF!="TODOS","TODOS",$I18) ->  | AJ18: =IF(#REF!="TODOS","TODOS",$J18) ->  | AK18: =IF(#REF!="TODAS","TODAS",$L18) ->  | AL18: =IF(#REF!="TODOS","TODOS",$K18) ->  | AM18: =IF(#REF!="TODOS","TODOS",$I18) ->  | AN18: =IF(#REF!="TODOS","TODOS",$J18) ->  | AO18: =IF(#REF!="TODAS","TODAS",$L18) ->  | AP18: =IF(#REF!="TODOS","TODOS",$K18) ->  | AQ18: =IF(#REF!="TODOS","TODOS",$I18) ->  | AR18: =IF(#REF!="TODOS","TODOS",$J18) ->  | AS18: =IF(#REF!="TODAS","TODAS",$L18) ->  | AT18: =IF(#REF!="TODOS","TODOS",$K18) ->  | AU18: =IF(#REF!="TODOS","TODOS",$I18) ->  | AV18: =IF(#REF!="TODOS","TODOS",$J18) ->  | AW18: =IF(#REF!="TODAS","TODAS",$L18) ->  | AX18: =IF(#REF!="TODOS","TODOS",$K18) ->  | AY18: =IF(#REF!="TODOS","TODOS",$I18) ->  | AZ18: =IF(#REF!="TODOS","TODOS",$J18) ->  | BA18: =IF(#REF!="TODOS","TODOS",$I18) ->  | BB18: =IF(#REF!="TODOS","TODOS",$Y18) ->  | BT18: =IF(#REF!="TODOS","TODOS",$J18) ->  | BU18: =IF(#REF!="TODOS","TODOS",$I18) ->  | BV18: =IF(#REF!="TODOS","TODOS",$C18) ->  | BW18: =IF(#REF!="TODOS","TODOS",$J18) ->  | BX18: =IF(#REF!="TODOS","TODOS",$I18) -> 
A19: 2023-01-08 | B19: 2023-01-30 | C19: 2023-01-22 | D19: 30 | E19: única | F19: 2.01 - Despesa Operacional | G19: 2.01.03 - Serviços de Terceiros | H19: Reemb. Pgto Venturini - Lorintech Unidade Caxias - Acompahamento das Condicionantes da LO (parcela 1 - abr.22) | I19: Rodrigo Imbuzeiro Cardoso | J19: 5.01.37 - Lorintech - Unidade Caxias | K19: Em aberto | L19: Santander | M19: -552.5 | N19: 2023-01-30 | O19: Transferência | P19: =IFERROR(IF(OR(VLOOKUP(F19,Validações!$C$2:$D$17,2,FALSE)=1,VLOOKUP(F19,Validações!$C$2:$D$17,2,FALSE)=3),SUM(P18,M19),SUM(P18,-M19)),P18) -> 86474.83 | Q19: - | R19: 30 | S19: janeiro | T19: 2023 | X19: =IFERROR(VLOOKUP(F19,Validações!$C$2:$D$17,2,FALSE),"") -> 2 | Y19: janeiro | Z19: =IF(#REF!="TODOS","TODOS",$J19) ->  | AA19: =IF(#REF!="TODAS","TODAS",$L19) ->  | AB19: =IF(#REF!="TODOS","TODOS",$J19) ->  | AC19: =IF(#REF!="TODAS","TODAS",$L19) ->  | AD19: =IF(#REF!="TODOS","TODOS",$K19) ->  | AE19: =IF(#REF!="TODOS","TODOS",$I19) ->  | AF19: =IF(#REF!="TODOS","TODOS",$J19) ->  | AG19: =IF(#REF!="TODAS","TODAS",$L19) ->  | AH19: =IF(#REF!="TODOS","TODOS",$K19) ->  | AI19: =IF(#REF!="TODOS","TODOS",$I19) ->  | AJ19: =IF(#REF!="TODOS","TODOS",$J19) ->  | AK19: =IF(#REF!="TODAS","TODAS",$L19) ->  | AL19: =IF(#REF!="TODOS","TODOS",$K19) ->  | AM19: =IF(#REF!="TODOS","TODOS",$I19) ->  | AN19: =IF(#REF!="TODOS","TODOS",$J19) ->  | AO19: =IF(#REF!="TODAS","TODAS",$L19) ->  | AP19: =IF(#REF!="TODOS","TODOS",$K19) ->  | AQ19: =IF(#REF!="TODOS","TODOS",$I19) ->  | AR19: =IF(#REF!="TODOS","TODOS",$J19) ->  | AS19: =IF(#REF!="TODAS","TODAS",$L19) ->  | AT19: =IF(#REF!="TODOS","TODOS",$K19) ->  | AU19: =IF(#REF!="TODOS","TODOS",$I19) ->  | AV19: =IF(#REF!="TODOS","TODOS",$J19) ->  | AW19: =IF(#REF!="TODAS","TODAS",$L19) ->  | AX19: =IF(#REF!="TODOS","TODOS",$K19) ->  | AY19: =IF(#REF!="TODOS","TODOS",$I19) ->  | AZ19: =IF(#REF!="TODOS","TODOS",$J19) ->  | BA19: =IF(#REF!="TODOS","TODOS",$I19) ->  | BB19: =IF(#REF!="TODOS","TODOS",$Y19) ->  | BT19: =IF(#REF!="TODOS","TODOS",$J19) ->  | BU19: =IF(#REF!="TODOS","TODOS",$I19) ->  | BV19: =IF(#REF!="TODOS","TODOS",$C19) ->  | BW19: =IF(#REF!="TODOS","TODOS",$J19) ->  | BX19: =IF(#REF!="TODOS","TODOS",$I19) -> 
A20: 2023-01-09 | B20: 2023-01-09 | C20: 2023-01-01 | D20: 9 | E20: única | F20: 2.08 - Retirada de sócios | G20: 2.08.02 - Mensal | H20: Retirada 09.01.23 - iphone | I20: Rodrigo Imbuzeiro Cardoso | J20: 5.01.01 - Sócios | K20: Pago | L20: Santander | M20: -8900 | N20: 2023-01-09 | O20: Transferência | P20: =IFERROR(IF(OR(VLOOKUP(F20,Validações!$C$2:$D$17,2,FALSE)=1,VLOOKUP(F20,Validações!$C$2:$D$17,2,FALSE)=3),SUM(P19,M20),SUM(P19,-M20)),P19) -> 95374.83 | Q20: - | R20: 9 | S20: janeiro | T20: 2023 | X20: =IFERROR(VLOOKUP(F20,Validações!$C$2:$D$17,2,FALSE),"") -> 2 | Y20: janeiro | Z20: =IF(#REF!="TODOS","TODOS",$J20) ->  | AA20: =IF(#REF!="TODAS","TODAS",$L20) ->  | AB20: =IF(#REF!="TODOS","TODOS",$J20) ->  | AC20: =IF(#REF!="TODAS","TODAS",$L20) ->  | AD20: =IF(#REF!="TODOS","TODOS",$K20) ->  | AE20: =IF(#REF!="TODOS","TODOS",$I20) ->  | AF20: =IF(#REF!="TODOS","TODOS",$J20) ->  | AG20: =IF(#REF!="TODAS","TODAS",$L20) ->  | AH20: =IF(#REF!="TODOS","TODOS",$K20) ->  | AI20: =IF(#REF!="TODOS","TODOS",$I20) ->  | AJ20: =IF(#REF!="TODOS","TODOS",$J20) ->  | AK20: =IF(#REF!="TODAS","TODAS",$L20) ->  | AL20: =IF(#REF!="TODOS","TODOS",$K20) ->  | AM20: =IF(#REF!="TODOS","TODOS",$I20) ->  | AN20: =IF(#REF!="TODOS","TODOS",$J20) ->  | AO20: =IF(#REF!="TODAS","TODAS",$L20) ->  | AP20: =IF(#REF!="TODOS","TODOS",$K20) ->  | AQ20: =IF(#REF!="TODOS","TODOS",$I20) ->  | AR20: =IF(#REF!="TODOS","TODOS",$J20) ->  | AS20: =IF(#REF!="TODAS","TODAS",$L20) ->  | AT20: =IF(#REF!="TODOS","TODOS",$K20) ->  | AU20: =IF(#REF!="TODOS","TODOS",$I20) ->  | AV20: =IF(#REF!="TODOS","TODOS",$J20) ->  | AW20: =IF(#REF!="TODAS","TODAS",$L20) ->  | AX20: =IF(#REF!="TODOS","TODOS",$K20) ->  | AY20: =IF(#REF!="TODOS","TODOS",$I20) ->  | AZ20: =IF(#REF!="TODOS","TODOS",$J20) ->  | BA20: =IF(#REF!="TODOS","TODOS",$I20) ->  | BB20: =IF(#REF!="TODOS","TODOS",$Y20) ->  | BT20: =IF(#REF!="TODOS","TODOS",$J20) ->  | BU20: =IF(#REF!="TODOS","TODOS",$I20) ->  | BV20: =IF(#REF!="TODOS","TODOS",$C20) ->  | BW20: =IF(#REF!="TODOS","TODOS",$J20) ->  | BX20: =IF(#REF!="TODOS","TODOS",$I20) -> 
A21: 2023-01-02 | B21: 2023-02-02 | C21: 2022-12-01 | D21: 2 | E21: única | F21: 1.01 - Receita de vendas | G21: 1.01.03 - RE | H21: NF 0266 - ETE 656.02 - Leo Paulista II (Proj. Layout) | I21: Direcional Engenharia S.A | J21: 5.01.53 - ETE 656.02 - Leo Paulista II | K21: Em aberto | L21: Santander | M21: 3325 | N21: 2023-02-02 | O21: Transferência | P21: =IFERROR(IF(OR(VLOOKUP(F21,Validações!$C$2:$D$17,2,FALSE)=1,VLOOKUP(F21,Validações!$C$2:$D$17,2,FALSE)=3),SUM(P20,M21),SUM(P20,-M21)),P20) -> 98699.83 | Q21: - | R21: 2 | S21: fevereiro | T21: 2023 | X21: =IFERROR(VLOOKUP(F21,Validações!$C$2:$D$17,2,FALSE),"") -> 1 | Y21: fevereiro | Z21: =IF(#REF!="TODOS","TODOS",$J21) ->  | AA21: =IF(#REF!="TODAS","TODAS",$L21) ->  | AB21: =IF(#REF!="TODOS","TODOS",$J21) ->  | AC21: =IF(#REF!="TODAS","TODAS",$L21) ->  | AD21: =IF(#REF!="TODOS","TODOS",$K21) ->  | AE21: =IF(#REF!="TODOS","TODOS",$I21) ->  | AF21: =IF(#REF!="TODOS","TODOS",$J21) ->  | AG21: =IF(#REF!="TODAS","TODAS",$L21) ->  | AH21: =IF(#REF!="TODOS","TODOS",$K21) ->  | AI21: =IF(#REF!="TODOS","TODOS",$I21) ->  | AJ21: =IF(#REF!="TODOS","TODOS",$J21) ->  | AK21: =IF(#REF!="TODAS","TODAS",$L21) ->  | AL21: =IF(#REF!="TODOS","TODOS",$K21) ->  | AM21: =IF(#REF!="TODOS","TODOS",$I21) ->  | AN21: =IF(#REF!="TODOS","TODOS",$J21) ->  | AO21: =IF(#REF!="TODAS","TODAS",$L21) ->  | AP21: =IF(#REF!="TODOS","TODOS",$K21) ->  | AQ21: =IF(#REF!="TODOS","TODOS",$I21) ->  | AR21: =IF(#REF!="TODOS","TODOS",$J21) ->  | AS21: =IF(#REF!="TODAS","TODAS",$L21) ->  | AT21: =IF(#REF!="TODOS","TODOS",$K21) ->  | AU21: =IF(#REF!="TODOS","TODOS",$I21) ->  | AV21: =IF(#REF!="TODOS","TODOS",$J21) ->  | AW21: =IF(#REF!="TODAS","TODAS",$L21) ->  | AX21: =IF(#REF!="TODOS","TODOS",$K21) ->  | AY21: =IF(#REF!="TODOS","TODOS",$I21) ->  | AZ21: =IF(#REF!="TODOS","TODOS",$J21) ->  | BA21: =IF(#REF!="TODOS","TODOS",$I21) ->  | BB21: =IF(#REF!="TODOS","TODOS",$Y21) ->  | BT21: =IF(#REF!="TODOS","TODOS",$J21) ->  | BU21: =IF(#REF!="TODOS","TODOS",$I21) ->  | BV21: =IF(#REF!="TODOS","TODOS",$C21) ->  | BW21: =IF(#REF!="TODOS","TODOS",$J21) ->  | BX21: =IF(#REF!="TODOS","TODOS",$I21) -> 
A22: 2023-01-02 | B22: 2023-02-02 | C22: 2022-12-01 | D22: =DAY(N22) -> 2 | E22: única | F22: 1.01 - Receita de vendas | G22: 1.01.03 - RE | H22: NF 0265 - ETE 656.01 - Leo Paulista I (Proj. Layout) | I22: Direcional Engenharia S.A | J22: 5.01.52 - ETE 656.01 - Leo Paulista I | K22: Em aberto | L22: Santander | M22: 3325 | N22: 2023-02-02 | O22: Transferência | P22: =IFERROR(IF(OR(VLOOKUP(F22,Validações!$C$2:$D$17,2,FALSE)=1,VLOOKUP(F22,Validações!$C$2:$D$17,2,FALSE)=3),SUM(P21,M22),SUM(P21,-M22)),P21) -> 102024.83 | Q22: - | R22: 2 | S22: fevereiro | T22: 2023 | X22: =IFERROR(VLOOKUP(F22,Validações!$C$2:$D$17,2,FALSE),"") -> 1 | Y22: fevereiro | Z22: =IF(#REF!="TODOS","TODOS",$J22) ->  | AA22: =IF(#REF!="TODAS","TODAS",$L22) ->  | AB22: =IF(#REF!="TODOS","TODOS",$J22) ->  | AC22: =IF(#REF!="TODAS","TODAS",$L22) ->  | AD22: =IF(#REF!="TODOS","TODOS",$K22) ->  | AE22: =IF(#REF!="TODOS","TODOS",$I22) ->  | AF22: =IF(#REF!="TODOS","TODOS",$J22) ->  | AG22: =IF(#REF!="TODAS","TODAS",$L22) ->  | AH22: =IF(#REF!="TODOS","TODOS",$K22) ->  | AI22: =IF(#REF!="TODOS","TODOS",$I22) ->  | AJ22: =IF(#REF!="TODOS","TODOS",$J22) ->  | AK22: =IF(#REF!="TODAS","TODAS",$L22) ->  | AL22: =IF(#REF!="TODOS","TODOS",$K22) ->  | AM22: =IF(#REF!="TODOS","TODOS",$I22) ->  | AN22: =IF(#REF!="TODOS","TODOS",$J22) ->  | AO22: =IF(#REF!="TODAS","TODAS",$L22) ->  | AP22: =IF(#REF!="TODOS","TODOS",$K22) ->  | AQ22: =IF(#REF!="TODOS","TODOS",$I22) ->  | AR22: =IF(#REF!="TODOS","TODOS",$J22) ->  | AS22: =IF(#REF!="TODAS","TODAS",$L22) ->  | AT22: =IF(#REF!="TODOS","TODOS",$K22) ->  | AU22: =IF(#REF!="TODOS","TODOS",$I22) ->  | AV22: =IF(#REF!="TODOS","TODOS",$J22) ->  | AW22: =IF(#REF!="TODAS","TODAS",$L22) ->  | AX22: =IF(#REF!="TODOS","TODOS",$K22) ->  | AY22: =IF(#REF!="TODOS","TODOS",$I22) ->  | AZ22: =IF(#REF!="TODOS","TODOS",$J22) ->  | BA22: =IF(#REF!="TODOS","TODOS",$I22) ->  | BB22: =IF(#REF!="TODOS","TODOS",$Y22) ->  | BT22: =IF(#REF!="TODOS","TODOS",$J22) ->  | BU22: =IF(#REF!="TODOS","TODOS",$I22) ->  | BV22: =IF(#REF!="TODOS","TODOS",$C22) ->  | BW22: =IF(#REF!="TODOS","TODOS",$J22) ->  | BX22: =IF(#REF!="TODOS","TODOS",$I22) -> 
A23: 2023-01-06 | B23: 2023-01-06 | C23: 2023-01-23 | D23: =DAY(N23) -> 6 | E23: única | F23: 2.01 - Despesa Operacional | G23: 2.01.05 - Deslocamento (Aliment. / Combust. / Passagem / etc) | H23: Reembolso Obra 470 - Despesas lanche e Ajuda de 6 funcionarios Direcional | I23: Rodrigo Imbuzeiro Cardoso | J23: 5.01.42 - ETE 470 - Nova Olinda | K23: Pago | L23: Santander | M23: -600 | N23: 2023-01-06 | O23: Transferência | P23: =IFERROR(IF(OR(VLOOKUP(F23,Validações!$C$2:$D$17,2,FALSE)=1,VLOOKUP(F23,Validações!$C$2:$D$17,2,FALSE)=3),SUM(P22,M23),SUM(P22,-M23)),P22) -> 102624.83 | Q23: - | R23: 6 | S23: janeiro | T23: 2023 | X23: =IFERROR(VLOOKUP(F23,Validações!$C$2:$D$17,2,FALSE),"") -> 2 | Y23: janeiro | Z23: =IF(#REF!="TODOS","TODOS",$J23) ->  | AA23: =IF(#REF!="TODAS","TODAS",$L23) ->  | AB23: =IF(#REF!="TODOS","TODOS",$J23) ->  | AC23: =IF(#REF!="TODAS","TODAS",$L23) ->  | AD23: =IF(#REF!="TODOS","TODOS",$K23) ->  | AE23: =IF(#REF!="TODOS","TODOS",$I23) ->  | AF23: =IF(#REF!="TODOS","TODOS",$J23) ->  | AG23: =IF(#REF!="TODAS","TODAS",$L23) ->  | AH23: =IF(#REF!="TODOS","TODOS",$K23) ->  | AI23: =IF(#REF!="TODOS","TODOS",$I23) ->  | AJ23: =IF(#REF!="TODOS","TODOS",$J23) ->  | AK23: =IF(#REF!="TODAS","TODAS",$L23) ->  | AL23: =IF(#REF!="TODOS","TODOS",$K23) ->  | AM23: =IF(#REF!="TODOS","TODOS",$I23) ->  | AN23: =IF(#REF!="TODOS","TODOS",$J23) ->  | AO23: =IF(#REF!="TODAS","TODAS",$L23) ->  | AP23: =IF(#REF!="TODOS","TODOS",$K23) ->  | AQ23: =IF(#REF!="TODOS","TODOS",$I23) ->  | AR23: =IF(#REF!="TODOS","TODOS",$J23) ->  | AS23: =IF(#REF!="TODAS","TODAS",$L23) ->  | AT23: =IF(#REF!="TODOS","TODOS",$K23) ->  | AU23: =IF(#REF!="TODOS","TODOS",$I23) ->  | AV23: =IF(#REF!="TODOS","TODOS",$J23) ->  | AW23: =IF(#REF!="TODAS","TODAS",$L23) ->  | AX23: =IF(#REF!="TODOS","TODOS",$K23) ->  | AY23: =IF(#REF!="TODOS","TODOS",$I23) ->  | AZ23: =IF(#REF!="TODOS","TODOS",$J23) ->  | BA23: =IF(#REF!="TODOS","TODOS",$I23) ->  | BB23: =IF(#REF!="TODOS","TODOS",$Y23) ->  | BT23: =IF(#REF!="TODOS","TODOS",$J23) ->  | BU23: =IF(#REF!="TODOS","TODOS",$I23) ->  | BV23: =IF(#REF!="TODOS","TODOS",$C23) ->  | BW23: =IF(#REF!="TODOS","TODOS",$J23) ->  | BX23: =IF(#REF!="TODOS","TODOS",$I23) -> 
A24: 2023-01-02 | B24: 2023-02-02 | C24: 2022-12-01 | D24: 2 | E24: única | F24: 1.01 - Receita de vendas | G24: 1.01.01 - CEPA | H24: NF 0264 - Ecoporto Santos - Monit. Estuario | I24: Ecoporto Santos | J24: 5.01.15 - Ecoporto Santos (Monit) | K24: Em aberto | L24: Santander | M24: 5580 | N24: 2023-02-02 | O24: Transferência | P24: =IFERROR(IF(OR(VLOOKUP(F24,Validações!$C$2:$D$17,2,FALSE)=1,VLOOKUP(F24,Validações!$C$2:$D$17,2,FALSE)=3),SUM(P23,M24),SUM(P23,-M24)),P23) -> 108204.83 | Q24: - | R24: 2 | S24: fevereiro | T24: 2023 | X24: =IFERROR(VLOOKUP(F24,Validações!$C$2:$D$17,2,FALSE),"") -> 1 | Y24: fevereiro | Z24: =IF(#REF!="TODOS","TODOS",$J24) ->  | AA24: =IF(#REF!="TODAS","TODAS",$L24) ->  | AB24: =IF(#REF!="TODOS","TODOS",$J24) ->  | AC24: =IF(#REF!="TODAS","TODAS",$L24) ->  | AD24: =IF(#REF!="TODOS","TODOS",$K24) ->  | AE24: =IF(#REF!="TODOS","TODOS",$I24) ->  | AF24: =IF(#REF!="TODOS","TODOS",$J24) ->  | AG24: =IF(#REF!="TODAS","TODAS",$L24) ->  | AH24: =IF(#REF!="TODOS","TODOS",$K24) ->  | AI24: =IF(#REF!="TODOS","TODOS",$I24) ->  | AJ24: =IF(#REF!="TODOS","TODOS",$J24) ->  | AK24: =IF(#REF!="TODAS","TODAS",$L24) ->  | AL24: =IF(#REF!="TODOS","TODOS",$K24) ->  | AM24: =IF(#REF!="TODOS","TODOS",$I24) ->  | AN24: =IF(#REF!="TODOS","TODOS",$J24) ->  | AO24: =IF(#REF!="TODAS","TODAS",$L24) ->  | AP24: =IF(#REF!="TODOS","TODOS",$K24) ->  | AQ24: =IF(#REF!="TODOS","TODOS",$I24) ->  | AR24: =IF(#REF!="TODOS","TODOS",$J24) ->  | AS24: =IF(#REF!="TODAS","TODAS",$L24) ->  | AT24: =IF(#REF!="TODOS","TODOS",$K24) ->  | AU24: =IF(#REF!="TODOS","TODOS",$I24) ->  | AV24: =IF(#REF!="TODOS","TODOS",$J24) ->  | AW24: =IF(#REF!="TODAS","TODAS",$L24) ->  | AX24: =IF(#REF!="TODOS","TODOS",$K24) ->  | AY24: =IF(#REF!="TODOS","TODOS",$I24) ->  | AZ24: =IF(#REF!="TODOS","TODOS",$J24) ->  | BA24: =IF(#REF!="TODOS","TODOS",$I24) ->  | BB24: =IF(#REF!="TODOS","TODOS",$Y24) ->  | BT24: =IF(#REF!="TODOS","TODOS",$J24) ->  | BU24: =IF(#REF!="TODOS","TODOS",$I24) ->  | BV24: =IF(#REF!="TODOS","TODOS",$C24) ->  | BW24: =IF(#REF!="TODOS","TODOS",$J24) ->  | BX24: =IF(#REF!="TODOS","TODOS",$I24) -> 
A25: 2023-01-03 | B25: 2023-01-11 | C25: 2022-12-01 | D25: 11 | E25: única | F25: 2.02 - Despesa com pessoal | G25: 2.02.09 - INSS | H25: INSS 11.22 - Rodrigo Imbuzeiro | I25: INSS | J25: 5.01.01 - Sócios | K25: Pago | L25: Santander | M25: -133.32 | N25: 2023-01-11 | O25: Boleto | P25: =IFERROR(IF(OR(VLOOKUP(F25,Validações!$C$2:$D$17,2,FALSE)=1,VLOOKUP(F25,Validações!$C$2:$D$17,2,FALSE)=3),SUM(P24,M25),SUM(P24,-M25)),P24) -> 108338.15 | Q25: - | R25: 11 | S25: janeiro | T25: 2023 | X25: =IFERROR(VLOOKUP(F25,Validações!$C$2:$D$17,2,FALSE),"") -> 2 | Y25: janeiro | Z25: =IF(#REF!="TODOS","TODOS",$J25) ->  | AA25: =IF(#REF!="TODAS","TODAS",$L25) ->  | AB25: =IF(#REF!="TODOS","TODOS",$J25) ->  | AC25: =IF(#REF!="TODAS","TODAS",$L25) ->  | AD25: =IF(#REF!="TODOS","TODOS",$K25) ->  | AE25: =IF(#REF!="TODOS","TODOS",$I25) ->  | AF25: =IF(#REF!="TODOS","TODOS",$J25) ->  | AG25: =IF(#REF!="TODAS","TODAS",$L25) ->  | AH25: =IF(#REF!="TODOS","TODOS",$K25) ->  | AI25: =IF(#REF!="TODOS","TODOS",$I25) ->  | AJ25: =IF(#REF!="TODOS","TODOS",$J25) ->  | AK25: =IF(#REF!="TODAS","TODAS",$L25) ->  | AL25: =IF(#REF!="TODOS","TODOS",$K25) ->  | AM25: =IF(#REF!="TODOS","TODOS",$I25) ->  | AN25: =IF(#REF!="TODOS","TODOS",$J25) ->  | AO25: =IF(#REF!="TODAS","TODAS",$L25) ->  | AP25: =IF(#REF!="TODOS","TODOS",$K25) ->  | AQ25: =IF(#REF!="TODOS","TODOS",$I25) ->  | AR25: =IF(#REF!="TODOS","TODOS",$J25) ->  | AS25: =IF(#REF!="TODAS","TODAS",$L25) ->  | AT25: =IF(#REF!="TODOS","TODOS",$K25) ->  | AU25: =IF(#REF!="TODOS","TODOS",$I25) ->  | AV25: =IF(#REF!="TODOS","TODOS",$J25) ->  | AW25: =IF(#REF!="TODAS","TODAS",$L25) ->  | AX25: =IF(#REF!="TODOS","TODOS",$K25) ->  | AY25: =IF(#REF!="TODOS","TODOS",$I25) ->  | AZ25: =IF(#REF!="TODOS","TODOS",$J25) ->  | BA25: =IF(#REF!="TODOS","TODOS",$I25) ->  | BB25: =IF(#REF!="TODOS","TODOS",$Y25) ->  | BT25: =IF(#REF!="TODOS","TODOS",$J25) ->  | BU25: =IF(#REF!="TODOS","TODOS",$I25) ->  | BV25: =IF(#REF!="TODOS","TODOS",$C25) ->  | BW25: =IF(#REF!="TODOS","TODOS",$J25) ->  | BX25: =IF(#REF!="TODOS","TODOS",$I25) -> 
A26: 2023-01-03 | B26: 2023-01-11 | C26: 2022-12-01 | D26: 11 | E26: única | F26: 2.02 - Despesa com pessoal | G26: 2.02.09 - INSS | H26: INSS 11.22 - Ciro Moura | I26: INSS | J26: 5.01.32 - IDG - Padua - Plano de Manejo | K26: Pago | L26: Santander | M26: -164.8 | N26: 2023-01-11 | O26: Boleto | P26: =IFERROR(IF(OR(VLOOKUP(F26,Validações!$C$2:$D$17,2,FALSE)=1,VLOOKUP(F26,Validações!$C$2:$D$17,2,FALSE)=3),SUM(P25,M26),SUM(P25,-M26)),P25) -> 108502.95 | Q26: - | R26: 11 | S26: janeiro | T26: 2023 | X26: =IFERROR(VLOOKUP(F26,Validações!$C$2:$D$17,2,FALSE),"") -> 2 | Y26: janeiro | Z26: =IF(#REF!="TODOS","TODOS",$J26) ->  | AA26: =IF(#REF!="TODAS","TODAS",$L26) ->  | AB26: =IF(#REF!="TODOS","TODOS",$J26) ->  | AC26: =IF(#REF!="TODAS","TODAS",$L26) ->  | AD26: =IF(#REF!="TODOS","TODOS",$K26) ->  | AE26: =IF(#REF!="TODOS","TODOS",$I26) ->  | AF26: =IF(#REF!="TODOS","TODOS",$J26) ->  | AG26: =IF(#REF!="TODAS","TODAS",$L26) ->  | AH26: =IF(#REF!="TODOS","TODOS",$K26) ->  | AI26: =IF(#REF!="TODOS","TODOS",$I26) ->  | AJ26: =IF(#REF!="TODOS","TODOS",$J26) ->  | AK26: =IF(#REF!="TODAS","TODAS",$L26) ->  | AL26: =IF(#REF!="TODOS","TODOS",$K26) ->  | AM26: =IF(#REF!="TODOS","TODOS",$I26) ->  | AN26: =IF(#REF!="TODOS","TODOS",$J26) ->  | AO26: =IF(#REF!="TODAS","TODAS",$L26) ->  | AP26: =IF(#REF!="TODOS","TODOS",$K26) ->  | AQ26: =IF(#REF!="TODOS","TODOS",$I26) ->  | AR26: =IF(#REF!="TODOS","TODOS",$J26) ->  | AS26: =IF(#REF!="TODAS","TODAS",$L26) ->  | AT26: =IF(#REF!="TODOS","TODOS",$K26) ->  | AU26: =IF(#REF!="TODOS","TODOS",$I26) ->  | AV26: =IF(#REF!="TODOS","TODOS",$J26) ->  | AW26: =IF(#REF!="TODAS","TODAS",$L26) ->  | AX26: =IF(#REF!="TODOS","TODOS",$K26) ->  | AY26: =IF(#REF!="TODOS","TODOS",$I26) ->  | AZ26: =IF(#REF!="TODOS","TODOS",$J26) ->  | BA26: =IF(#REF!="TODOS","TODOS",$I26) ->  | BB26: =IF(#REF!="TODOS","TODOS",$Y26) ->  | BT26: =IF(#REF!="TODOS","TODOS",$J26) ->  | BU26: =IF(#REF!="TODOS","TODOS",$I26) ->  | BV26: =IF(#REF!="TODOS","TODOS",$C26) ->  | BW26: =IF(#REF!="TODOS","TODOS",$J26) ->  | BX26: =IF(#REF!="TODOS","TODOS",$I26) -> 
A27: 2023-01-03 | B27: 2023-01-11 | C27: 2022-12-01 | D27: 11 | E27: única | F27: 2.06 - Impostos | G27: 2.06.01 - DAS | H27: NF 0251 - Lorintech Unidade Caxias Galpao II - IAP (parc. 2/2) | I27: DAS - Simples Nacional | J27: 5.01.37 - Lorintech - Unidade Caxias | K27: Pago | L27: Santander | M27: -735.1482051 | N27: 2023-01-11 | O27: Boleto | P27: =IFERROR(IF(OR(VLOOKUP(F27,Validações!$C$2:$D$17,2,FALSE)=1,VLOOKUP(F27,Validações!$C$2:$D$17,2,FALSE)=3),SUM(P26,M27),SUM(P26,-M27)),P26) -> 109238.0982
A28: 2023-01-03 | B28: 2023-01-11 | C28: 2022-12-01 | D28: 11 | E28: única | F28: 2.06 - Impostos | G28: 2.06.01 - DAS | H28: NF 0252 - Lorintech Unidade Caxias - Acompahamento das Condicionantes da LO | I28: DAS - Simples Nacional | J28: 5.01.37 - Lorintech - Unidade Caxias | K28: Pago | L28: Santander | M28: -223.1391022 | N28: 2023-01-11 | O28: Boleto | P28: =IFERROR(IF(OR(VLOOKUP(F28,Validações!$C$2:$D$17,2,FALSE)=1,VLOOKUP(F28,Validações!$C$2:$D$17,2,FALSE)=3),SUM(P27,M28),SUM(P27,-M28)),P27) -> 109461.2373
A29: 2023-01-03 | B29: 2023-01-11 | C29: 2022-12-01 | D29: 11 | E29: única | F29: 2.06 - Impostos | G29: 2.06.01 - DAS | H29: NF 0253 - Elaboração RIT - Cabo Frio (parc.1/2) | I29: DAS - Simples Nacional | J29: 5.01.30 - Sao Jose Desenv. Imob. SA | K29: Pago | L29: Santander | M29: -1957.742914 | N29: 2023-01-11 | O29: Boleto | P29: =IFERROR(IF(OR(VLOOKUP(F29,Validações!$C$2:$D$17,2,FALSE)=1,VLOOKUP(F29,Validações!$C$2:$D$17,2,FALSE)=3),SUM(P28,M29),SUM(P28,-M29)),P28) -> 111418.9802
A30: 2023-01-03 | B30: 2023-01-11 | C30: 2022-12-01 | D30: 11 | E30: única | F30: 2.06 - Impostos | G30: 2.06.01 - DAS | H30: NF 0254 - ETE Obra 495 (Med.01) | I30: DAS - Simples Nacional | J30: 5.01.49 - ETE 495 - Cerejeiras | K30: Pago | L30: Santander | M30: -1729.760483 | N30: 2023-01-11 | O30: Boleto | P30: =IFERROR(IF(OR(VLOOKUP(F30,Validações!$C$2:$D$17,2,FALSE)=1,VLOOKUP(F30,Validações!$C$2:$D$17,2,FALSE)=3),SUM(P29,M30),SUM(P29,-M30)),P29) -> 113148.7407
A31: 2023-01-03 | B31: 2023-01-11 | C31: 2022-12-01 | D31: 11 | E31: única | F31: 2.06 - Impostos | G31: 2.06.01 - DAS | H31: NF 0255 - ETE Obra 564 (Med.01) | I31: DAS - Simples Nacional | J31: 5.01.50 - ETE 564 - Pavuna Empreendimentos | K31: Pago | L31: Santander | M31: -1729.760483 | N31: 2023-01-11 | O31: Boleto | P31: =IFERROR(IF(OR(VLOOKUP(F31,Validações!$C$2:$D$17,2,FALSE)=1,VLOOKUP(F31,Validações!$C$2:$D$17,2,FALSE)=3),SUM(P30,M31),SUM(P30,-M31)),P30) -> 114878.5012
A32: 2023-01-03 | B32: 2023-01-11 | C32: 2022-12-01 | D32: 11 | E32: única | F32: 2.06 - Impostos | G32: 2.06.01 - DAS | H32: NF 0256 - Emissão DAIA LTMC | I32: DAS - Simples Nacional | J32: 5.01.20 - State Grid | K32: Pago | L32: Santander | M32: -653.3305342 | N32: 2023-01-11 | O32: Boleto | P32: =IFERROR(IF(OR(VLOOKUP(F32,Validações!$C$2:$D$17,2,FALSE)=1,VLOOKUP(F32,Validações!$C$2:$D$17,2,FALSE)=3),SUM(P31,M32),SUM(P31,-M32)),P31) -> 115531.8317
A33: 2023-01-03 | B33: 2023-01-11 | C33: 2022-12-01 | D33: 11 | E33: única | F33: 2.06 - Impostos | G33: 2.06.01 - DAS | H33: NF 0257 - IDG - PM Mangaratiba (Produto 4) | I33: DAS - Simples Nacional | J33: 5.01.33 - IDG - Mangaratiba - Plano de Manejo | K33: Pago | L33: Santander | M33: -6355.650292 | N33: 2023-01-11 | O33: Boleto | P33: =IFERROR(IF(OR(VLOOKUP(F33,Validações!$C$2:$D$17,2,FALSE)=1,VLOOKUP(F33,Validações!$C$2:$D$17,2,FALSE)=3),SUM(P32,M33),SUM(P32,-M33)),P32) -> 121887.482
A34: 2023-01-03 | B34: 2023-01-11 | C34: 2022-12-01 | D34: 11 | E34: única | F34: 2.06 - Impostos | G34: 2.06.01 - DAS | H34: NF 0258 - IDG - PM Mangaratiba (Produto 5) | I34: DAS - Simples Nacional | J34: 5.01.33 - IDG - Mangaratiba - Plano de Manejo | K34: Pago | L34: Santander | M34: -8474.200389 | N34: 2023-01-11 | O34: Boleto | P34: =IFERROR(IF(OR(VLOOKUP(F34,Validações!$C$2:$D$17,2,FALSE)=1,VLOOKUP(F34,Validações!$C$2:$D$17,2,FALSE)=3),SUM(P33,M34),SUM(P33,-M34)),P33) -> 130361.6824
A35: 2023-01-03 | B35: 2023-01-11 | C35: 2022-12-01 | D35: 11 | E35: única | F35: 2.06 - Impostos | G35: 2.06.01 - DAS | H35: NF 0259 - ETE Obra 640.01 Parque Tijuca (Proj. Layout) | I35: DAS - Simples Nacional | J35: 5.01.51 - ETE 640.01 - Parque Tijuca | K35: Pago | L35: Santander | M35: -605.4161689 | N35: 2023-01-11 | O35: Boleto | P35: =IFERROR(IF(OR(VLOOKUP(F35,Validações!$C$2:$D$17,2,FALSE)=1,VLOOKUP(F35,Validações!$C$2:$D$17,2,FALSE)=3),SUM(P34,M35),SUM(P34,-M35)),P34) -> 130967.0986
A36: 2023-01-03 | B36: 2023-01-11 | C36: 2022-12-01 | D36: 11 | E36: única | F36: 2.06 - Impostos | G36: 2.06.01 - DAS | H36: NF 0260 - Braskem Caxias - Inventario - parc. 2/2 | I36: DAS - Simples Nacional | J36: 5.01.31 - Braskem - Unidade Caxias | K36: Pago | L36: Santander | M36: -1331.050691 | N36: 2023-01-11 | O36: Boleto | P36: =IFERROR(IF(OR(VLOOKUP(F36,Validações!$C$2:$D$17,2,FALSE)=1,VLOOKUP(F36,Validações!$C$2:$D$17,2,FALSE)=3),SUM(P35,M36),SUM(P35,-M36)),P35) -> 132298.1493
A37: 2023-01-03 | B37: 2023-01-11 | C37: 2022-12-01 | D37: 11 | E37: única | F37: 2.06 - Impostos | G37: 2.06.01 - DAS | H37: NF 0261 - IDG - PM Resende (Produto 3) | I37: DAS - Simples Nacional | J37: 5.01.34 - IDG - Resende - Plano de Manejo | K37: Pago | L37: Santander | M37: -6351.680492 | N37: 2023-01-11 | O37: Boleto | P37: =IFERROR(IF(OR(VLOOKUP(F37,Validações!$C$2:$D$17,2,FALSE)=1,VLOOKUP(F37,Validações!$C$2:$D$17,2,FALSE)=3),SUM(P36,M37),SUM(P36,-M37)),P36) -> 138649.8298
A38: 2023-01-03 | B38: 2023-01-11 | C38: 2022-12-01 | D38: 11 | E38: única | F38: 2.06 - Impostos | G38: 2.06.01 - DAS | H38: NF 0262 - IDG - PM Resende (Produto 4) | I38: DAS - Simples Nacional | J38: 5.01.34 - IDG - Resende - Plano de Manejo | K38: Pago | L38: Santander | M38: -3175.840246 | N38: 2023-01-11 | O38: Boleto | P38: =IFERROR(IF(OR(VLOOKUP(F38,Validações!$C$2:$D$17,2,FALSE)=1,VLOOKUP(F38,Validações!$C$2:$D$17,2,FALSE)=3),SUM(P37,M38),SUM(P37,-M38)),P37) -> 141825.67
A39: 2023-01-03 | B39: 2023-01-06 | C39: 2022-12-01 | D39: 6 | E39: única | F39: 2.02 - Despesa com pessoal | G39: 2.02.10 - FGTS | H39: GRF - FGTS 12.22 | I39: FGTS | J39: 5.01.32 - IDG - Padua - Plano de Manejo | K39: Pago | L39: Santander | M39: -164.56 | N39: 2023-01-06 | O39: Boleto | P39: =IFERROR(IF(OR(VLOOKUP(F39,Validações!$C$2:$D$17,2,FALSE)=1,VLOOKUP(F39,Validações!$C$2:$D$17,2,FALSE)=3),SUM(P38,M39),SUM(P38,-M39)),P38) -> 141990.23
A40: 2023-01-03 | B40: 2023-01-04 | C40: 2022-12-01 | D40: 4 | E40: única | F40: 2.02 - Despesa com pessoal | G40: 2.02.02 - Salário mensal | H40: Salario Ciro 12.22 | I40: Ciro Jose Ribeiro de Moura | J40: 5.01.32 - IDG - Padua - Plano de Manejo | K40: Pago | L40: Santander | M40: -1892.3 | N40: 2023-01-04 | O40: Transferência | P40: =IFERROR(IF(OR(VLOOKUP(F40,Validações!$C$2:$D$17,2,FALSE)=1,VLOOKUP(F40,Validações!$C$2:$D$17,2,FALSE)=3),SUM(P39,M40),SUM(P39,-M40)),P39) -> 143882.53
A41: 2023-01-03 | B41: 2023-01-04 | C41: 2023-01-01 | D41: 4 | E41: única | F41: 2.08 - Retirada de sócios | G41: 2.08.02 - Mensal | H41: Retirada 01.23 | I41: Rodrigo Imbuzeiro Cardoso | J41: 5.01.01 - Sócios | K41: Pago | L41: Santander | M41: -15971.88 | N41: 2023-01-04 | O41: Transferência | P41: =IFERROR(IF(OR(VLOOKUP(F41,Validações!$C$2:$D$17,2,FALSE)=1,VLOOKUP(F41,Validações!$C$2:$D$17,2,FALSE)=3),SUM(P40,M41),SUM(P40,-M41)),P40) -> 159854.41
A42: 2023-01-03 | B42: 2023-01-04 | C42: 2022-12-01 | D42: 4 | E42: única | F42: 2.02 - Despesa com pessoal | G42: 2.02.01 - Pró labore | H42: Pro Labore 12.22 | I42: Rodrigo Imbuzeiro Cardoso | J42: 5.01.01 - Sócios | K42: Pago | L42: Santander | M42: -1078.68 | N42: 2023-01-04 | O42: Transferência | P42: =IFERROR(IF(OR(VLOOKUP(F42,Validações!$C$2:$D$17,2,FALSE)=1,VLOOKUP(F42,Validações!$C$2:$D$17,2,FALSE)=3),SUM(P41,M42),SUM(P41,-M42)),P41) -> 160933.09
A43: 2023-01-06 | B43: 2023-02-06 | C43: 2023-01-01 | D43: 6 | E43: única | F43: 1.01 - Receita de vendas | G43: 1.01.03 - RE | H43: NF 0268 - ETE Obra 532 (Med.05) | I43: Obra 532 - Conquista Varzea | J43: 5.01.43 - ETE 532 - Conquista Varzea | K43: Em aberto | L43: Santander | M43: 32448.87 | N43: 2023-02-06 | O43: Transferência | P43: =IFERROR(IF(OR(VLOOKUP(F43,Validações!$C$2:$D$17,2,FALSE)=1,VLOOKUP(F43,Validações!$C$2:$D$17,2,FALSE)=3),SUM(P42,M43),SUM(P42,-M43)),P42) -> 193381.96
A44: 2023-02-07 | B44: 2023-02-15 | C44: 2023-01-01 | D44: 15 | E44: única | F44: 2.01 - Despesa Operacional | G44: 2.01.03 - Serviços de Terceiros | H44: Ana Moura - Serviços de comunicação - Planos de Manejo | I44: Ana Moura | J44: 5.01.33 - IDG - Mangaratiba - Plano de Manejo | K44: Em aberto | L44: Santander | M44: -360 | N44: 2023-02-15 | O44: Transferência | P44: =IFERROR(IF(OR(VLOOKUP(F44,Validações!$C$2:$D$17,2,FALSE)=1,VLOOKUP(F44,Validações!$C$2:$D$17,2,FALSE)=3),SUM(P43,M44),SUM(P43,-M44)),P43) -> 193741.96
A45: 2023-02-08 | B45: 2023-02-20 | C45: 2023-02-22 | D45: 20 | E45: única | F45: 2.01 - Despesa Operacional | G45: 2.01.03 - Serviços de Terceiros | H45: Reemb. Pgto Venturini - Lorintech Unidade Caxias - Acompahamento das Condicionantes da LO (parcela 1 - abr.22) | I45: Rodrigo Imbuzeiro Cardoso | J45: 5.01.37 - Lorintech - Unidade Caxias | K45: Em aberto | L45: Santander | M45: -552.5 | N45: 2023-02-20 | O45: Transferência | P45: =IFERROR(IF(OR(VLOOKUP(F45,Validações!$C$2:$D$17,2,FALSE)=1,VLOOKUP(F45,Validações!$C$2:$D$17,2,FALSE)=3),SUM(P44,M45),SUM(P44,-M45)),P44) -> 194294.46
A46: 2023-01-02 | B46: 2023-01-08 | C46: 2022-12-01 | D46: 8 | E46: única | F46: 2.04 - Despesas administrativas | G46: 2.04.05 - Contabilidade | H46: Contabiidade 12.22 | I46: Ethicos Contabilidade e Consultoria Ltda. | J46: 5.01.02 - Administrativo | K46: Pago | L46: Santander | M46: -468 | N46: 2023-01-08 | O46: Boleto | P46: =IFERROR(IF(OR(VLOOKUP(F46,Validações!$C$2:$D$17,2,FALSE)=1,VLOOKUP(F46,Validações!$C$2:$D$17,2,FALSE)=3),SUM(P45,M46),SUM(P45,-M46)),P45) -> 194762.46
A47: 2023-01-01 | B47: 2023-01-10 | C47: 2023-01-01 | D47: 10 | E47: única | F47: 2.05 - Despesas financeiras | G47: 2.05.01 - Despesas bancárias | H47: Anuidade cartão | I47: Sonen Ambiental (Santander) | J47: 5.01.02 - Administrativo | K47: Pago | L47: Santander | M47: -18.5 | N47: 2023-01-10 | O47: Crédito | P47: =IFERROR(IF(OR(VLOOKUP(F47,Validações!$C$2:$D$17,2,FALSE)=1,VLOOKUP(F47,Validações!$C$2:$D$17,2,FALSE)=3),SUM(P46,M47),SUM(P46,-M47)),P46) -> 194780.96
A48: 2023-01-01 | B48: 2023-01-10 | C48: 2023-01-01 | D48: 10 | E48: única | F48: 2.04 - Despesas administrativas | G48: 2.04.09 - Informatica | H48: Google - Emails 01/23 | I48: Google | J48: 5.01.02 - Administrativo | K48: Pago | L48: Santander | M48: -289.2 | N48: 2023-01-10 | O48: Crédito | P48: =IFERROR(IF(OR(VLOOKUP(F48,Validações!$C$2:$D$17,2,FALSE)=1,VLOOKUP(F48,Validações!$C$2:$D$17,2,FALSE)=3),SUM(P47,M48),SUM(P47,-M48)),P47) -> 195070.16
A49: 2023-01-01 | B49: 2023-01-10 | C49: 2023-01-01 | D49: 10 | E49: única | F49: 2.04 - Despesas administrativas | G49: 2.04.09 - Informatica | H49: Adobe PDF | I49: Adobe | J49: 5.01.02 - Administrativo | K49: Pago | L49: Santander | M49: -86 | N49: 2023-01-10 | O49: Crédito | P49: =IFERROR(IF(OR(VLOOKUP(F49,Validações!$C$2:$D$17,2,FALSE)=1,VLOOKUP(F49,Validações!$C$2:$D$17,2,FALSE)=3),SUM(P48,M49),SUM(P48,-M49)),P48) -> 195156.16
A50: 2022-12-17 | B50: 2023-01-03 | C50: 2023-01-01 | D50: 3 | E50: única | F50: 2.02 - Despesa com pessoal | G50: 2.02.06 - Assistência médica | H50: Plano de Saude 01.23 | I50: Golden Cross - Supermed Adm de Beneficios | J50: 5.01.01 - Sócios | K50: Pago | L50: Santander | M50: -1672.67 | N50: 2023-01-03 | O50: Boleto | P50: =IFERROR(IF(OR(VLOOKUP(F50,Validações!$C$2:$D$17,2,FALSE)=1,VLOOKUP(F50,Validações!$C$2:$D$17,2,FALSE)=3),SUM(P49,M50),SUM(P49,-M50)),P49) -> 196828.83
A51: 2022-12-15 | B51: 2023-01-16 | C51: 2022-12-22 | D51: 16 | E51: única | F51: 1.01 - Receita de vendas | G51: 1.01.01 - CEPA | H51: NF 0260 - Braskem Caxias - Inventario - parc. 2/2 | I51: Braskem S.A | J51: 5.01.31 - Braskem - Unidade Caxias | K51: Pago | L51: Santander | M51: 7695 | N51: 2023-01-16 | O51: Transferência | P51: =IFERROR(IF(OR(VLOOKUP(F51,Validações!$C$2:$D$17,2,FALSE)=1,VLOOKUP(F51,Validações!$C$2:$D$17,2,FALSE)=3),SUM(P50,M51),SUM(P50,-M51)),P50) -> 204523.83
A52: 2023-02-08 | B52: 2023-02-20 | C52: 2023-02-01 | D52: 20 | E52: única | F52: 1.01 - Receita de vendas | G52: 1.01.01 - CEPA | H52: NF 0xxx - Lorintech Unidade Caxias - Acompahamento das Condicionantes da LO | I52: Lorintech | J52: 5.01.37 - Lorintech - Unidade Caxias | K52: Em aberto | L52: Santander | M52: 1290 | N52: 2023-02-20 | O52: Transferência | P52: =IFERROR(IF(OR(VLOOKUP(F52,Validações!$C$2:$D$17,2,FALSE)=1,VLOOKUP(F52,Validações!$C$2:$D$17,2,FALSE)=3),SUM(P51,M52),SUM(P51,-M52)),P51) -> 205813.83
A53: 2022-12-02 | B53: 2023-01-02 | C53: 2022-11-22 | D53: 2 | E53: única | F53: 1.01 - Receita de vendas | G53: 1.01.03 - RE | H53: NF 0255 - ETE Obra 564 (Med.01) | I53: Obra 564 - Pavuna Empreendimentos | J53: 5.01.50 - ETE 564 - Pavuna Empreendimentos | K53: Pago | L53: Santander | M53: 9800 | N53: 2023-01-02 | O53: Transferência | P53: =IFERROR(IF(OR(VLOOKUP(F53,Validações!$C$2:$D$17,2,FALSE)=1,VLOOKUP(F53,Validações!$C$2:$D$17,2,FALSE)=3),SUM(P52,M53),SUM(P52,-M53)),P52) -> 215613.83
A54: 2022-12-02 | B54: 2023-01-02 | C54: 2022-11-22 | D54: 2 | E54: única | F54: 1.01 - Receita de vendas | G54: 1.01.03 - RE | H54: NF 0254 - ETE Obra 495 (Med.01) | I54: Obra 495 - Cerejeiras | J54: 5.01.49 - ETE 495 - Cerejeiras | K54: Pago | L54: Santander | M54: 9500 | N54: 2023-01-02 | O54: Transferência | P54: =IFERROR(IF(OR(VLOOKUP(F54,Validações!$C$2:$D$17,2,FALSE)=1,VLOOKUP(F54,Validações!$C$2:$D$17,2,FALSE)=3),SUM(P53,M54),SUM(P53,-M54)),P53) -> 225113.83
A55: 2023-02-02 | B55: 2023-02-20 | C55: 2023-02-01 | D55: 20 | E55: única | F55: 2.01 - Despesa Operacional | G55: 2.01.03 - Serviços de Terceiros | H55: Reemb. Pgto Venturini - Lorintech Unidade Caxias - LO Galpao II (parc. 4/4) | I55: Rodrigo Imbuzeiro Cardoso | J55: 5.01.37 - Lorintech - Unidade Caxias | K55: Em aberto | L55: Santander | M55: -3062.5 | N55: 2023-02-20 | O55: Transferência | P55: =IFERROR(IF(OR(VLOOKUP(F55,Validações!$C$2:$D$17,2,FALSE)=1,VLOOKUP(F55,Validações!$C$2:$D$17,2,FALSE)=3),SUM(P54,M55),SUM(P54,-M55)),P54) -> 228176.33
A56: 2022-12-01 | B56: 2023-01-04 | C56: 2022-12-01 | D56: 4 | E56: única | F56: 2.01 - Despesa Operacional | G56: 2.01.03 - Serviços de Terceiros | H56: IAP Galpao II - Lorintech Unidade Caxias (parcela 2/2) | I56: Daniel Marques (Magma) | J56: 5.01.37 - Lorintech - Unidade Caxias | K56: Pago | L56: Santander | M56: -2250 | N56: 2023-01-04 | O56: Transferência | P56: =IFERROR(IF(OR(VLOOKUP(F56,Validações!$C$2:$D$17,2,FALSE)=1,VLOOKUP(F56,Validações!$C$2:$D$17,2,FALSE)=3),SUM(P55,M56),SUM(P55,-M56)),P55) -> 230426.33
A57: 2023-02-02 | B57: 2023-02-20 | C57: 2023-02-01 | D57: 20 | E57: única | F57: 1.01 - Receita de vendas | G57: 1.01.01 - CEPA | H57: NF 0xxx - Lorintech - LO Galpao II Caxias (parcela 4/4) | I57: Lorintech | J57: 5.01.37 - Lorintech - Unidade Caxias | K57: Em aberto | L57: Santander | M57: 3996 | N57: 2023-02-20 | O57: Transferência | P57: =IFERROR(IF(OR(VLOOKUP(F57,Validações!$C$2:$D$17,2,FALSE)=1,VLOOKUP(F57,Validações!$C$2:$D$17,2,FALSE)=3),SUM(P56,M57),SUM(P56,-M57)),P56) -> 234422.33
A58: 2023-02-15 | B58: 2023-02-25 | C58: 2023-02-01 | D58: 25 | E58: única | F58: 2.01 - Despesa Operacional | G58: 2.01.03 - Serviços de Terceiros | H58: Douglas - Elaboração RIT - Cabo Frio (parc.2/2) | I58: Synaz (Douglas - RIT) | J58: 5.01.30 - Sao Jose Desenv. Imob. SA | K58: Em aberto | L58: Santander | M58: -9300 | N58: 2023-02-25 | O58: Transferência | P58: =IFERROR(IF(OR(VLOOKUP(F58,Validações!$C$2:$D$17,2,FALSE)=1,VLOOKUP(F58,Validações!$C$2:$D$17,2,FALSE)=3),SUM(P57,M58),SUM(P57,-M58)),P57) -> 243722.33
A59: 2023-03-07 | B59: 2023-03-15 | C59: 2023-02-01 | D59: 15 | E59: única | F59: 2.01 - Despesa Operacional | G59: 2.01.03 - Serviços de Terceiros | H59: Ana Moura - Serviços de comunicação - Planos de Manejo | I59: Ana Moura | J59: 5.01.33 - IDG - Mangaratiba - Plano de Manejo | K59: Em aberto | L59: Santander | M59: -360 | N59: 2023-03-15 | O59: Transferência | P59: =IFERROR(IF(OR(VLOOKUP(F59,Validações!$C$2:$D$17,2,FALSE)=1,VLOOKUP(F59,Validações!$C$2:$D$17,2,FALSE)=3),SUM(P58,M59),SUM(P58,-M59)),P58) -> 244082.33
A60: 2023-03-08 | B60: 2023-03-20 | C60: 2023-03-22 | D60: 20 | E60: única | F60: 2.01 - Despesa Operacional | G60: 2.01.03 - Serviços de Terceiros | H60: Reemb. Pgto Venturini - Lorintech Unidade Caxias - Acompahamento das Condicionantes da LO (parcela 1 - abr.22) | I60: Rodrigo Imbuzeiro Cardoso | J60: 5.01.37 - Lorintech - Unidade Caxias | K60: Em aberto | L60: Santander | M60: -552.5 | N60: 2023-03-20 | O60: Transferência | P60: =IFERROR(IF(OR(VLOOKUP(F60,Validações!$C$2:$D$17,2,FALSE)=1,VLOOKUP(F60,Validações!$C$2:$D$17,2,FALSE)=3),SUM(P59,M60),SUM(P59,-M60)),P59) -> 244634.83
A61: 2023-03-01 | B61: 2023-03-20 | C61: 2023-03-01 | D61: 20 | E61: única | F61: 1.01 - Receita de vendas | G61: 1.01.01 - CEPA | H61: NF 0xxx - Lorintech Unidade Caxias - Acompahamento das Condicionantes da LO | I61: Lorintech | J61: 5.01.37 - Lorintech - Unidade Caxias | K61: Em aberto | L61: Santander | M61: 1290 | N61: 2023-03-20 | O61: Transferência | P61: =IFERROR(IF(OR(VLOOKUP(F61,Validações!$C$2:$D$17,2,FALSE)=1,VLOOKUP(F61,Validações!$C$2:$D$17,2,FALSE)=3),SUM(P60,M61),SUM(P60,-M61)),P60) -> 245924.83
A62: 2023-04-07 | B62: 2023-04-15 | C62: 2023-03-01 | D62: 15 | E62: única | F62: 2.01 - Despesa Operacional | G62: 2.01.03 - Serviços de Terceiros | H62: Ana Moura - Serviços de comunicação - Planos de Manejo | I62: Ana Moura | J62: 5.01.33 - IDG - Mangaratiba - Plano de Manejo | K62: Em aberto | L62: Santander | M62: -360 | N62: 2023-04-15 | O62: Transferência | P62: =IFERROR(IF(OR(VLOOKUP(F62,Validações!$C$2:$D$17,2,FALSE)=1,VLOOKUP(F62,Validações!$C$2:$D$17,2,FALSE)=3),SUM(P61,M62),SUM(P61,-M62)),P61) -> 246284.83
A63: 2023-05-07 | B63: 2023-05-15 | C63: 2023-04-01 | D63: 15 | E63: única | F63: 2.01 - Despesa Operacional | G63: 2.01.03 - Serviços de Terceiros | H63: Ana Moura - Serviços de comunicação - Planos de Manejo | I63: Ana Moura | J63: 5.01.33 - IDG - Mangaratiba - Plano de Manejo | K63: Em aberto | L63: Santander | M63: -360 | N63: 2023-05-15 | O63: Transferência | P63: =IFERROR(IF(OR(VLOOKUP(F63,Validações!$C$2:$D$17,2,FALSE)=1,VLOOKUP(F63,Validações!$C$2:$D$17,2,FALSE)=3),SUM(P62,M63),SUM(P62,-M63)),P62) -> 246644.83
A64: 2021-05-21 | B64: 2023-01-04 | C64: 2021-05-21 | D64: 4 | E64: única | F64: 2.01 - Despesa Operacional | G64: 2.01.03 - Serviços de Terceiros | H64: DAIA LTMC - State Grid - Andre Barata (50% final) | I64: Andre de Souza Santos | J64: 5.01.20 - State Grid | K64: Pago | L64: Santander | M64: -3270 | N64: 2023-01-04 | O64: Transferência | P64: =IFERROR(IF(OR(VLOOKUP(F64,Validações!$C$2:$D$17,2,FALSE)=1,VLOOKUP(F64,Validações!$C$2:$D$17,2,FALSE)=3),SUM(P63,M64),SUM(P63,-M64)),P63) -> 249914.83

Sheet Validações
A1: Pagamento | C1: Entradas ou saídas | F1: Contas | H1: Centro de Custo | J1: Clientes e Fornecedores | L1: Status Forecast | N1: Meses | Q1: Status | S1: Meses TODOS | U1: Forma Pgto | W1: Parcela
A2: Em aberto | C2: ='1.x PC'!A$9 -> 1.01 - Receita de vendas | D2: 1 | F2: TODAS | H2: TODOS | J2: TODOS | L2: Realizado | N2: Janeiro | O2: 1 | Q2: TODOS | S2: TODOS | U2: Boleto | W2: única
A3: Pago | C3: ='1.x PC'!B$9 -> 1.02 - Receitas financeiras | D3: 1 | F3: ='2.4 PC. Contas'!C7 -> Itau | H3: ='2.5 PC. C. Custo'!B6 -> Sócios | J3: ='2.6 PC. Cli. Fon.'!B6 -> AAAAAAA | L3: Prev. Inicial | N3: Fevereiro | O3: 2 | Q3: Em aberto | S3: Janeiro | U3: Débito | W3: 1
A4: Cancelado | C4: ='1.x PC'!C$9 -> 1.03 - Outras entradas | D4: 1 | F4: ='2.4 PC. Contas'!C8 -> Santander | H4: ='2.5 PC. C. Custo'!B7 -> Administrativo | J4: ='2.6 PC. Cli. Fon.'!B7 -> BBBBBBB | L4: Prev. Ajustada | N4: Março | O4: 3 | Q4: Pago | S4: Fevereiro | U4: Transferência | W4: 2
C5: ='1.x PC'!D$9 -> 2.01 - Despesa Operacional | D5: 2 | F5: ='2.4 PC. Contas'!C9 -> 0 | H5: ='2.5 PC. C. Custo'!B8 -> Argo | J5: ='2.6 PC. Cli. Fon.'!B8 -> CCCCCCCC | N5: Abril | O5: 4 | S5: Março | U5: Saque | W5: 3
C6: ='1.x PC'!E$9 -> 2.02 - Despesa com pessoal | D6: 2 | F6: ='2.4 PC. Contas'!C10 -> 0 | H6: ='2.5 PC. C. Custo'!B9 -> PJI | J6: ='2.6 PC. Cli. Fon.'!B9 -> DDDDDDDDDDDDD | N6: Maio | O6: 5 | S6: Abril | U6: Débito Automático | W6: 4
C7: ='1.x PC'!F$9 -> 2.03 - Despesas comerciais | D7: 2 | F7: ='2.4 PC. Contas'!C11 -> 0 | H7: ='2.5 PC. C. Custo'!B10 -> Downstream | J7: ='2.6 PC. Cli. Fon.'!B10 -> EEEEEEEEEEEEEEEE | N7: Junho | O7: 6 | S7: Maio | U7: Crédito | W7: 5
C8: ='1.x PC'!G$9 -> 2.04 - Despesas administrativas | D8: 2 | H8: ='2.5 PC. C. Custo'!B11 -> AF 233/17 | J8: ='2.6 PC. Cli. Fon.'!B11 -> FFFFFFFFFFFFFFF | N8: Julho | O8: 7 | S8: Junho | W8: 6
C9: ='1.x PC'!H$9 -> 2.05 - Despesas financeiras | D9: 2 | H9: ='2.5 PC. C. Custo'!B12 -> ET 589 | J9: ='2.6 PC. Cli. Fon.'!B12 -> GGGGGGGGGGG | N9: Agosto | O9: 8 | S9: Julho | W9: 7
C10: ='1.x PC'!I$9 -> 2.06 - Impostos | D10: 2 | H10: ='2.5 PC. C. Custo'!B13 -> PPSJI | J10: ='2.6 PC. Cli. Fon.'!B13 -> HHHHHHHHHHH | N10: Setembro | O10: 9 | S10: Agosto | W10: 8
C11: ='1.x PC'!J$9 -> 2.07 - Investimentos | D11: 2 | H11: ='2.5 PC. C. Custo'!B14 -> PSB | J11: ='2.6 PC. Cli. Fon.'!B14 -> IIIIIIIIIIIIIIIIIIIIIIIII | N11: Outubro | O11: 10 | S11: Setembro | W11: 9
C12: ='1.x PC'!K$9 -> 2.08 - Retirada de sócios | D12: 2 | H12: ='2.5 PC. C. Custo'!B15 -> 0 | J12: ='2.6 PC. Cli. Fon.'!B15 -> 0 | N12: Novembro | O12: 11 | S12: Outubro | W12: 10
C13: ='1.x PC'!L$9 -> 2.09 - Outras saídas | D13: 2 | H13: ='2.5 PC. C. Custo'!B16 -> 0 | J13: ='2.6 PC. Cli. Fon.'!B16 -> 0 | N13: Dezembro | O13: 12 | S13: Novembro | W13: 11
C14: ='1.x PC'!M$9 -> 3.01 - TRANSFERÊNCIAS (CRÉDITO) | D14: 3 | H14: ='2.5 PC. C. Custo'!B17 -> 0 | J14: ='2.6 PC. Cli. Fon.'!B17 -> 0 | S14: Dezembro | W14: 12
C15: ='1.x PC'!N$9 -> 3.02 - TRANSFERÊNCIAS (DÉBITO) | D15: 4 | H15: ='2.5 PC. C. Custo'!B18 -> 0 | J15: ='2.6 PC. Cli. Fon.'!B18 -> 0
H16: ='2.5 PC. C. Custo'!B19 -> 0 | J16: ='2.6 PC. Cli. Fon.'!B19 -> 0
H17: ='2.5 PC. C. Custo'!B20 -> 0 | J17: ='2.6 PC. Cli. Fon.'!B20 -> 0
H18: ='2.5 PC. C. Custo'!B21 -> 0 | J18: ='2.6 PC. Cli. Fon.'!B21 -> 0
H19: ='2.5 PC. C. Custo'!B22 -> 0 | J19: ='2.6 PC. Cli. Fon.'!B22 -> 0
H20: ='2.5 PC. C. Custo'!B23 -> 0 | J20: ='2.6 PC. Cli. Fon.'!B23 -> 0
H21: ='2.5 PC. C. Custo'!B24 -> 0 | J21: ='2.6 PC. Cli. Fon.'!B24 -> 0
H22: ='2.5 PC. C. Custo'!B25 -> 0 | J22: ='2.6 PC. Cli. Fon.'!B25 -> 0
H23: ='2.5 PC. C. Custo'!B26 -> 0 | J23: ='2.6 PC. Cli. Fon.'!B26 -> 0
H24: ='2.5 PC. C. Custo'!B27 -> 0 | J24: ='2.6 PC. Cli. Fon.'!B27 -> 0
H25: ='2.5 PC. C. Custo'!B28 -> 0 | J25: ='2.6 PC. Cli. Fon.'!B28 -> 0
H26: ='2.5 PC. C. Custo'!B29 -> 0 | J26: ='2.6 PC. Cli. Fon.'!B29 -> 0
H27: ='2.5 PC. C. Custo'!B30 -> 0 | J27: ='2.6 PC. Cli. Fon.'!B30 -> 0
H28: ='2.5 PC. C. Custo'!B31 -> 0 | J28: ='2.6 PC. Cli. Fon.'!B31 -> 0
H29: ='2.5 PC. C. Custo'!B32 -> 0 | J29: ='2.6 PC. Cli. Fon.'!B32 -> 0
H30: ='2.5 PC. C. Custo'!B33 -> 0 | J30: ='2.6 PC. Cli. Fon.'!B33 -> 0
H31: ='2.5 PC. C. Custo'!B34 -> 0 | J31: ='2.6 PC. Cli. Fon.'!B34 -> 0
H32: ='2.5 PC. C. Custo'!B35 -> 0 | J32: ='2.6 PC. Cli. Fon.'!B35 -> 0
H33: ='2.5 PC. C. Custo'!B36 -> 0 | J33: ='2.6 PC. Cli. Fon.'!B36 -> 0
H34: ='2.5 PC. C. Custo'!B37 -> 0 | J34: ='2.6 PC. Cli. Fon.'!B37 -> 0
H35: ='2.5 PC. C. Custo'!B38 -> 0 | J35: ='2.6 PC. Cli. Fon.'!B38 -> 0
H36: ='2.5 PC. C. Custo'!B39 -> 0 | J36: ='2.6 PC. Cli. Fon.'!B39 -> 0
H37: ='2.5 PC. C. Custo'!B40 -> 0 | J37: ='2.6 PC. Cli. Fon.'!B40 -> 0
H38: ='2.5 PC. C. Custo'!B41 -> 0 | J38: ='2.6 PC. Cli. Fon.'!B41 -> 0
H39: ='2.5 PC. C. Custo'!B42 -> 0 | J39: ='2.6 PC. Cli. Fon.'!B42 -> 0
H40: ='2.5 PC. C. Custo'!B43 -> 0 | J40: ='2.6 PC. Cli. Fon.'!B43 -> 0
H41: ='2.5 PC. C. Custo'!B44 -> 0 | J41: ='2.6 PC. Cli. Fon.'!B44 -> 0
H42: ='2.5 PC. C. Custo'!B45 -> 0 | J42: ='2.6 PC. Cli. Fon.'!B45 -> 0
H43: ='2.5 PC. C. Custo'!B46 -> 0 | J43: ='2.6 PC. Cli. Fon.'!B46 -> 0
H44: ='2.5 PC. C. Custo'!B47 -> 0 | J44: ='2.6 PC. Cli. Fon.'!B47 -> 0
H45: ='2.5 PC. C. Custo'!B48 -> 0 | J45: ='2.6 PC. Cli. Fon.'!B48 -> 0
H46: ='2.5 PC. C. Custo'!B49 -> 0 | J46: ='2.6 PC. Cli. Fon.'!B49 -> 0
H47: ='2.5 PC. C. Custo'!B50 -> 0 | J47: ='2.6 PC. Cli. Fon.'!B50 -> 0
H48: ='2.5 PC. C. Custo'!B51 -> 0 | J48: ='2.6 PC. Cli. Fon.'!B51 -> 0
H49: ='2.5 PC. C. Custo'!B52 -> 0 | J49: ='2.6 PC. Cli. Fon.'!B52 -> 0
H50: ='2.5 PC. C. Custo'!B53 -> 0 | J50: ='2.6 PC. Cli. Fon.'!B53 -> 0
H51: ='2.5 PC. C. Custo'!B54 -> 0 | J51: ='2.6 PC. Cli. Fon.'!B54 -> 0
H52: ='2.5 PC. C. Custo'!B55 -> 0 | J52: ='2.6 PC. Cli. Fon.'!B55 -> 0
H53: ='2.5 PC. C. Custo'!B56 -> 0 | J53: ='2.6 PC. Cli. Fon.'!B56 -> 0
H54: ='2.5 PC. C. Custo'!B57 -> 0 | J54: ='2.6 PC. Cli. Fon.'!B57 -> 0
H55: ='2.5 PC. C. Custo'!B58 -> 0 | J55: ='2.6 PC. Cli. Fon.'!B58 -> 0
H56: ='2.5 PC. C. Custo'!B59 -> 0 | J56: ='2.6 PC. Cli. Fon.'!B59 -> 0
H57: ='2.5 PC. C. Custo'!B60 -> 0 | J57: ='2.6 PC. Cli. Fon.'!B60 -> 0
H58: ='2.5 PC. C. Custo'!B61 -> 0 | J58: ='2.6 PC. Cli. Fon.'!B61 -> 0
H59: ='2.5 PC. C. Custo'!B62 -> 0 | J59: ='2.6 PC. Cli. Fon.'!B62 -> 0
H60: ='2.5 PC. C. Custo'!B63 -> 0 | J60: ='2.6 PC. Cli. Fon.'!B63 -> 0
H61: ='2.5 PC. C. Custo'!B64 -> 0 | J61: ='2.6 PC. Cli. Fon.'!B64 -> 0
H62: ='2.5 PC. C. Custo'!B65 -> 0 | J62: ='2.6 PC. Cli. Fon.'!B65 -> 0
H63: ='2.5 PC. C. Custo'!B66 -> 0 | J63: ='2.6 PC. Cli. Fon.'!B66 -> 0
H64: ='2.5 PC. C. Custo'!B67 -> 0 | J64: ='2.6 PC. Cli. Fon.'!B67 -> 0
H65: ='2.5 PC. C. Custo'!B68 -> 0 | J65: ='2.6 PC. Cli. Fon.'!B68 -> 0
H66: ='2.5 PC. C. Custo'!B69 -> 0 | J66: ='2.6 PC. Cli. Fon.'!B69 -> 0
H67: ='2.5 PC. C. Custo'!B70 -> 0 | J67: ='2.6 PC. Cli. Fon.'!B70 -> 0
H68: ='2.5 PC. C. Custo'!B71 -> 0 | J68: ='2.6 PC. Cli. Fon.'!B71 -> 0
H69: ='2.5 PC. C. Custo'!B72 -> 0 | J69: ='2.6 PC. Cli. Fon.'!B72 -> 0
H70: ='2.5 PC. C. Custo'!B73 -> 0 | J70: ='2.6 PC. Cli. Fon.'!B73 -> 0
H71: ='2.5 PC. C. Custo'!B74 -> 0 | J71: ='2.6 PC. Cli. Fon.'!B74 -> 0
H72: ='2.5 PC. C. Custo'!B75 -> 0 | J72: ='2.6 PC. Cli. Fon.'!B75 -> 0
H73: ='2.5 PC. C. Custo'!B76 -> 0 | J73: ='2.6 PC. Cli. Fon.'!B76 -> 0
H74: ='2.5 PC. C. Custo'!B77 -> 0 | J74: ='2.6 PC. Cli. Fon.'!B77 -> 0
H75: ='2.5 PC. C. Custo'!B78 -> 0 | J75: ='2.6 PC. Cli. Fon.'!B78 -> 0
H76: ='2.5 PC. C. Custo'!B79 -> 0 | J76: ='2.6 PC. Cli. Fon.'!B79 -> 0
H77: ='2.5 PC. C. Custo'!B80 -> 0 | J77: ='2.6 PC. Cli. Fon.'!B80 -> 0
H78: ='2.5 PC. C. Custo'!B81 -> 0 | J78: ='2.6 PC. Cli. Fon.'!B81 -> 0
H79: ='2.5 PC. C. Custo'!B82 -> 0 | J79: ='2.6 PC. Cli. Fon.'!B82 -> 0
H80: ='2.5 PC. C. Custo'!B83 -> 0 | J80: ='2.6 PC. Cli. Fon.'!B83 -> 0
H81: ='2.5 PC. C. Custo'!B84 -> 0 | J81: ='2.6 PC. Cli. Fon.'!B84 -> 0
H82: ='2.5 PC. C. Custo'!B85 -> 0 | J82: ='2.6 PC. Cli. Fon.'!B85 -> 0
H83: ='2.5 PC. C. Custo'!B86 -> 0 | J83: ='2.6 PC. Cli. Fon.'!B86 -> 0
H84: ='2.5 PC. C. Custo'!B87 -> 0 | J84: ='2.6 PC. Cli. Fon.'!B87 -> 0
H85: ='2.5 PC. C. Custo'!B88 -> 0 | J85: ='2.6 PC. Cli. Fon.'!B88 -> 0
H86: ='2.5 PC. C. Custo'!B89 -> 0 | J86: ='2.6 PC. Cli. Fon.'!B89 -> 0
H87: ='2.5 PC. C. Custo'!B90 -> 0 | J87: ='2.6 PC. Cli. Fon.'!B90 -> 0
H88: ='2.5 PC. C. Custo'!B91 -> 0 | J88: ='2.6 PC. Cli. Fon.'!B91 -> 0
H89: ='2.5 PC. C. Custo'!B92 -> 0 | J89: ='2.6 PC. Cli. Fon.'!B92 -> 0
H90: ='2.5 PC. C. Custo'!B93 -> 0 | J90: ='2.6 PC. Cli. Fon.'!B93 -> 0
H91: ='2.5 PC. C. Custo'!B94 -> 0 | J91: ='2.6 PC. Cli. Fon.'!B94 -> 0
H92: ='2.5 PC. C. Custo'!B95 -> 0 | J92: ='2.6 PC. Cli. Fon.'!B95 -> 0
H93: ='2.5 PC. C. Custo'!B96 -> 0 | J93: ='2.6 PC. Cli. Fon.'!B96 -> 0
H94: ='2.5 PC. C. Custo'!B97 -> 0 | J94: ='2.6 PC. Cli. Fon.'!B97 -> 0
H95: ='2.5 PC. C. Custo'!B98 -> 0 | J95: ='2.6 PC. Cli. Fon.'!B98 -> 0
H96: ='2.5 PC. C. Custo'!B99 -> 0 | J96: ='2.6 PC. Cli. Fon.'!B99 -> 0
H97: ='2.5 PC. C. Custo'!B100 -> 0 | J97: ='2.6 PC. Cli. Fon.'!B100 -> 0
H98: ='2.5 PC. C. Custo'!B101 -> 0 | J98: ='2.6 PC. Cli. Fon.'!B101 -> 0
H99: ='2.5 PC. C. Custo'!B102 -> 0 | J99: ='2.6 PC. Cli. Fon.'!B102 -> 0
H100: ='2.5 PC. C. Custo'!B103 -> 0 | J100: ='2.6 PC. Cli. Fon.'!B103 -> 0
H101: ='2.5 PC. C. Custo'!B104 -> 0 | J101: ='2.6 PC. Cli. Fon.'!B104 -> 0
H102: ='2.5 PC. C. Custo'!B105 -> 0 | J102: ='2.6 PC. Cli. Fon.'!B105 -> 0
J103: ='2.6 PC. Cli. Fon.'!B106 -> 0
J104: ='2.6 PC. Cli. Fon.'!B107 -> 0
J105: ='2.6 PC. Cli. Fon.'!B108 -> 0
J106: ='2.6 PC. Cli. Fon.'!B109 -> 0
J107: ='2.6 PC. Cli. Fon.'!B110 -> 0
J108: ='2.6 PC. Cli. Fon.'!B111 -> 0
J109: ='2.6 PC. Cli. Fon.'!B112 -> 0
J110: ='2.6 PC. Cli. Fon.'!B113 -> 0
J111: ='2.6 PC. Cli. Fon.'!B114 -> 0
J112: ='2.6 PC. Cli. Fon.'!B115 -> 0
J113: ='2.6 PC. Cli. Fon.'!B116 -> 0
J114: ='2.6 PC. Cli. Fon.'!B117 -> 0
J115: ='2.6 PC. Cli. Fon.'!B118 -> 0
J116: ='2.6 PC. Cli. Fon.'!B119 -> 0
J117: ='2.6 PC. Cli. Fon.'!B120 -> 0
J118: ='2.6 PC. Cli. Fon.'!B121 -> 0
J119: ='2.6 PC. Cli. Fon.'!B122 -> 0
J120: ='2.6 PC. Cli. Fon.'!B123 -> 0
J121: ='2.6 PC. Cli. Fon.'!B124 -> 0
J122: ='2.6 PC. Cli. Fon.'!B125 -> 0
J123: ='2.6 PC. Cli. Fon.'!B126 -> 0
J124: ='2.6 PC. Cli. Fon.'!B127 -> 0
J125: ='2.6 PC. Cli. Fon.'!B128 -> 0
J126: ='2.6 PC. Cli. Fon.'!B129 -> 0
J127: ='2.6 PC. Cli. Fon.'!B130 -> 0
J128: ='2.6 PC. Cli. Fon.'!B131 -> 0
J129: ='2.6 PC. Cli. Fon.'!B132 -> 0
J130: ='2.6 PC. Cli. Fon.'!B133 -> 0
J131: ='2.6 PC. Cli. Fon.'!B134 -> 0
J132: ='2.6 PC. Cli. Fon.'!B135 -> 0
J133: ='2.6 PC. Cli. Fon.'!B136 -> 0
J134: ='2.6 PC. Cli. Fon.'!B137 -> 0
J135: ='2.6 PC. Cli. Fon.'!B138 -> 0
J136: ='2.6 PC. Cli. Fon.'!B139 -> 0
J137: ='2.6 PC. Cli. Fon.'!B140 -> 0
J138: ='2.6 PC. Cli. Fon.'!B141 -> 0
J139: ='2.6 PC. Cli. Fon.'!B142 -> 0
J140: ='2.6 PC. Cli. Fon.'!B143 -> 0
J141: ='2.6 PC. Cli. Fon.'!B144 -> 0
J142: ='2.6 PC. Cli. Fon.'!B145 -> 0
J143: ='2.6 PC. Cli. Fon.'!B146 -> 0
J144: ='2.6 PC. Cli. Fon.'!B147 -> 0
J145: ='2.6 PC. Cli. Fon.'!B148 -> 0
J146: ='2.6 PC. Cli. Fon.'!B149 -> 0
J147: ='2.6 PC. Cli. Fon.'!B150 -> 0
J148: ='2.6 PC. Cli. Fon.'!B151 -> 0
J149: ='2.6 PC. Cli. Fon.'!B152 -> 0
J150: ='2.6 PC. Cli. Fon.'!B153 -> 0
J151: ='2.6 PC. Cli. Fon.'!B154 -> 0
J152: ='2.6 PC. Cli. Fon.'!B155 -> 0
J153: ='2.6 PC. Cli. Fon.'!B156 -> 0
J154: ='2.6 PC. Cli. Fon.'!B157 -> 0
J155: ='2.6 PC. Cli. Fon.'!B158 -> 0
J156: ='2.6 PC. Cli. Fon.'!B159 -> 0
J157: ='2.6 PC. Cli. Fon.'!B160 -> 0
J158: ='2.6 PC. Cli. Fon.'!B161 -> 0
J159: ='2.6 PC. Cli. Fon.'!B162 -> 0
J160: ='2.6 PC. Cli. Fon.'!B163 -> 0
J161: ='2.6 PC. Cli. Fon.'!B164 -> 0
J162: ='2.6 PC. Cli. Fon.'!B165 -> 0
J163: ='2.6 PC. Cli. Fon.'!B166 -> 0
J164: ='2.6 PC. Cli. Fon.'!B167 -> 0
J165: ='2.6 PC. Cli. Fon.'!B168 -> 0
J166: ='2.6 PC. Cli. Fon.'!B169 -> 0
J167: ='2.6 PC. Cli. Fon.'!B170 -> 0
J168: ='2.6 PC. Cli. Fon.'!B171 -> 0
J169: ='2.6 PC. Cli. Fon.'!B172 -> 0
J170: ='2.6 PC. Cli. Fon.'!B173 -> 0
J171: ='2.6 PC. Cli. Fon.'!B174 -> 0
J172: ='2.6 PC. Cli. Fon.'!B175 -> 0
J173: ='2.6 PC. Cli. Fon.'!B176 -> 0
J174: ='2.6 PC. Cli. Fon.'!B177 -> 0
J175: ='2.6 PC. Cli. Fon.'!B178 -> 0
J176: ='2.6 PC. Cli. Fon.'!B179 -> 0
J177: ='2.6 PC. Cli. Fon.'!B180 -> 0
J178: ='2.6 PC. Cli. Fon.'!B181 -> 0
J179: ='2.6 PC. Cli. Fon.'!B182 -> 0
J180: ='2.6 PC. Cli. Fon.'!B183 -> 0
J181: ='2.6 PC. Cli. Fon.'!B184 -> 0
J182: ='2.6 PC. Cli. Fon.'!B185 -> 0
J183: ='2.6 PC. Cli. Fon.'!B186 -> 0
J184: ='2.6 PC. Cli. Fon.'!B187 -> 0
J185: ='2.6 PC. Cli. Fon.'!B188 -> 0
J186: ='2.6 PC. Cli. Fon.'!B189 -> 0
J187: ='2.6 PC. Cli. Fon.'!B190 -> 0
J188: ='2.6 PC. Cli. Fon.'!B191 -> 0
J189: ='2.6 PC. Cli. Fon.'!B192 -> 0
J190: ='2.6 PC. Cli. Fon.'!B193 -> 0
J191: ='2.6 PC. Cli. Fon.'!B194 -> 0
J192: ='2.6 PC. Cli. Fon.'!B195 -> 0
J193: ='2.6 PC. Cli. Fon.'!B196 -> 0
J194: ='2.6 PC. Cli. Fon.'!B197 -> 0
J195: ='2.6 PC. Cli. Fon.'!B198 -> 0
J196: ='2.6 PC. Cli. Fon.'!B199 -> 0
J197: ='2.6 PC. Cli. Fon.'!B200 -> 0
J198: ='2.6 PC. Cli. Fon.'!B201 -> 0
J199: ='2.6 PC. Cli. Fon.'!B202 -> 0
J200: ='2.6 PC. Cli. Fon.'!B203 -> 0
... 802 more rows
